{"text_format":"1","workbook":"xlsx","n_sheets":12,"sheets":["Prezenční listina","Startovní listina","Výsledková listina","Družstva","Běh Vírem","mezičasy","mezičasy 2015","Diplom MSM A5","Diplom MSM A5 (2)","Výsledková listina 2015","Družstva (prac.)","Výsledková listina (2)"],"not_rendered":{"charts":0,"images":19,"macros":1,"external_links":2,"defined_names":15,"comments":0,"pivot_tables":0},"unopened":[],"bounds":{"document_bytes":16777216,"sheet_cells":100000,"rows_first":2000,"rows_last":500,"rows_between":2000,"halvings":0,"cell_chars":16384,"cell_head_chars":4096},"cells_cut":0,"cells_raw":0,"read":"whole","date_system":"1900"}

{"sheet":"Prezenční listina","index":0,"n_rows":152,"n_cols":19,"rows_kept":152,"cut":false,"hidden":true,"merged":[[5,10,5,12],[0,0,0,7]]}
[{"$f":"\"Prezenční listina - Malý svratecký maratón \"&O2","v":"Prezenční listina - Malý svratecký maratón 2016"}]
[null,"Příjmení","Jméno","Narození","Oddíl / Bydliště","Startovní číslo","Adresa (e-mail)","Kategorie",null,null,null,null,null,null,2016,null,null,null,"Pohlaví"]
[1,"Alman","Dušan",1967,"Babice nad Svitavou",42,"Babice n S",{"$f":"IF(S3<>\"Ž\",IF($O$2-D3>39,IF($O$2-D3>49,IF($O$2-D3>59,IF($O$2-D3>69,IF($O$2-D3>90,\"\",\"E\"),\"D\"),\"C\"),\"B\"),\"A\"),IF(S3=\"Ž\",IF($O$2-D3>34,IF($O$2-D3>44,IF($O$2-D3>90,\"\",\"H\"),\"G\"),\"F\")))","v":"B"},null,null,null,null,null,null,null,null,null,null,{"$f":"IF(LEN(B3)=0,\" \",IF(MID(B3,LEN(B3),1)=\"á\",\"Ž\",\"M\"))","v":"M"}]
[{"$f":"IF(B4<>0,A3+1,\"\")","v":2},"Barták","Ronald",1965,"Kuřim",41,"Kuřim","C",null,null,null,null,null,null,null,null,null,null,"M"]
[3,"Barvíř","Jiří",1982,"R.I.P. Brno",2,"Ježkova 7, Brno","A",null,null,null,null,null,null,null,null,null,null,"M"]
[4,"Brabenec","Miroslav",1959,"Žďár nad Sázavou",67,"Žďár nad Sáz.","C",null,null,"Rok nastavit v buňce O2",null,null,null,null,null,null,null,"M"]
[5,"Brabenec","Aleš",1987,"Žďár nad Sázavou",69,"Žďár nad Sáz.","A",null,null,null,null,null,null,null,null,null,null,"M"]
[6,"Češner","Vladimír",1958,"Odolená Voda",3,"Odolená Voda","C",null,null,null,null,null,null,null,null,null,null,"M"]
[7,"Dušil","Jaroslav",1970,"Běžecký klub Brno",35,"Brno","B",null,null,null,null,null,null,null,null,null,null,"M"]
[8,"Dýrová Macháčková","Šárka",1983,"AK Olymp Brno",34,"Brno","F",null,null,null,null,null,null,null,null,null,null,"Ž"]
[9,"Hakl","Zdeněk",1982,"SK Tri Cyklochlubna",90,"Žďár nad Sázavou","A",null,null,null,null,null,null,null,null,null,null,"M"]
[10,"Hakl","Martin",1987,"Running With Those That Can't",91,"Praha","A",null,null,null,null,null,null,null,null,null,null,"M"]
[11,"Holý","Josef",1941,"AC Moravská Slávia Brno",14,"Brno","E",null,null,null,null,null,null,null,null,null,null,"M"]
[12,"Hrdina","Tomáš",1979,"Běžecký klub Brno",37,"Moravský Krumlov","A",null,null,null,null,null,null,null,null,null,null,"M"]
[13,"Hýbl","Jiří",1967,"Hrušovany u Brna",54,"Hrušovany u Brna","B",null,null,null,null,null,null,null,null,null,null,"M"]
[14,"Chramosta","Jaroslav",1966,"JABOJA Team Děčín",8,"Děčín","C",null,null,null,null,null,null,null,null,null,null,"M"]
[15,"Kocur","Lukáš",1977,"VHS Brno",49,"Brno","A",null,null,null,null,null,null,null,null,null,null,"M"]
[16,"Kohoutek","Jaromír",1955,"watter and snow ski club Brno",26,"Brno","D",null,null,null,null,null,null,null,null,null,null,"M"]
[17,"Kohut","Jan",1985,"Elite Sport Team Blansko",31,"Lažánky 55, Blansko","A",null,null,null,null,null,null,null,null,null,null,"M"]
[18,"Komárková","Zdeňka",1974,"SDH Bolešín",4,"Olešnice na Mor.","G",null,null,null,null,null,null,null,null,null,null,"Ž"]
[19,"Konečný","Libor",1971,"Kuřim",93,"Kuřim","B",null,null,null,null,null,null,null,null,null,null,"M"]
[20,"Konečný","Jaroslav",1969,"Essens Popůvky",96,"Popůvky","B",null,null,null,null,null,null,null,null,null,null,"M"]
[21,"Kopečný","Dušan",1973,"AK Drnovice",11,"Tovačovského 40, Prostějov","B",null,null,null,null,null,null,null,null,null,null,"M"]
[22,"Koudelka","Lukáš",1983,"AK Drnovice",12,"Rousínov","A",null,null,null,null,null,null,null,null,null,null,"M"]
[23,"Koutský","Tomáš",1987,"Ledová stěna Vír",97,null,"A",null,null,null,null,null,null,null,null,null,null,"M"]
[24,"Krátká","Anna",1969,"SKP Hvězda Pardubice",18,null,"H",null,null,null,null,null,null,null,null,null,null,"Ž"]
[25,"Krátký","Josef",1965,"SKP Hvězda Pardubice",19,null,"C",null,null,null,null,null,null,null,null,null,null,"M"]
[26,"Kratochvíl","Jaroslav",1977,"SDH Hluboké",1,null,"A",null,null,null,null,null,null,null,null,null,null,"M"]
[27,"Kropáček","Jaroslav",1970,"Brno",51,"Brno","B",null,null,null,null,null,null,null,null,null,null,"M"]
[28,"Kupidlovský","Daniel",1976,"Praha Stodůlky",null,"Praha","B",null,null,null,null,null,null,null,null,null,null,"M"]
[29,"Mahelová","Jitka",1962,"Atletic Třebíč",null,"Třebíč","H",null,null,null,null,null,null,null,null,null,null,"Ž"]
[30,"Mareš","Bohumil",1951,"LEAR Brno",28,"Brno","D",null,null,null,null,null,null,null,null,null,null,"M"]
[31,"Martincová","Ivana",1963,"AC Moravská Slávia Brno",30,"Ukrajinská 3,62500 Brno-Bohunice","H",null,null,null,null,null,null,null,null,null,null,"Ž"]
[32,"Mička","Michal",1987,"Žďár nad Sázavou",70,"Žďár nad Sáz.","A",null,null,null,null,null,null,null,null,null,null,"M"]
[33,"Misař","Ondřej",2000,"Brno",45,"Srbská 49, Brno",{"$f":"IF(S35<>\"Ž\",IF($O$2-D35>39,IF($O$2-D35>49,IF($O$2-D35>59,IF($O$2-D35>69,IF($O$2-D35>90,\"\",\"E\"),\"D\"),\"C\"),\"B\"),\"A\"),IF(S35=\"Ž\",IF($O$2-D35>34,IF($O$2-D35>44,IF($O$2-D35>90,\"\",\"H\"),\"G\"),\"F\")))","v":"A"},null,null,null,null,null,null,null,null,null,null,{"$f":"IF(LEN(B35)=0,\" \",IF(MID(B35,LEN(B35),1)=\"á\",\"Ž\",\"M\"))","v":"M"}]
[{"$f":"IF(B36<>0,A35+1,\"\")","v":34},"Nekuža","Jiří",1951,"Runners Zbýšov",62,"Zbýšov","D",null,null,null,null,null,null,null,null,null,null,"M"]
[35,"Němec","Jaroslav",1952,"Blansko",36,"Blansko","D",null,null,null,null,null,null,null,null,null,null,"M"]
[36,"Nosek","Pavel",1965,"ASK Slavkov o.s.",79,"Slavkov","C",null,null,null,null,null,null,null,null,null,null,"M"]
[37,"Novotný","Petr",1965,"Kuřim",92,"Kuřim","C",null,null,null,null,null,null,null,null,null,null,"M"]
[38,"Orálek","Daniel",1970,"adidas Boost Team/AC Moravská Slávia Brno",83,"Brno","B",null,null,null,null,null,null,null,null,null,null,"M"]
[39,"Pešáková","Mirka",1985,"AC Racers Tetčice",38,null,"F",null,null,null,null,null,null,null,null,null,null,"Ž"]
[40,"Petrů","Roman",1976,"Drnovice",80,"Drnovice","B",null,null,null,null,null,null,null,null,null,null,"M"]
[41,"Podmelová","Vilma",1962,"AC Moravská Slávia Brno",84,"Brno","H",null,null,null,null,null,null,null,null,null,null,"Ž"]
[42,"Rerych","Jiří",1962,"adidas Boost Team/AC Moravská Slávia Brno",77,"Brno","C",null,null,null,null,null,null,null,null,null,null,"M"]
[43,"Řezníček","Roman",1977,"Žďár nad Sázavou",85,"Žďár nad Sáz.","A",null,null,null,null,null,null,null,null,null,null,"M"]
[44,"Srnec","Lukáš",1990,"Židlochovice",56,"Židlochovice","A",null,null,null,null,null,null,null,null,null,null,"M"]
[45,"Suchý","Karel",1956,"Atletic Třebíč",60,"Smetanova 244, 67571 Náměšť nad Osl.","D",null,null,null,null,null,null,null,null,null,null,"M"]
[46,"Šádek","Jiří",1959,"Lomnice nad Popelkou",47,"Lomnice nad Popelkou","C",null,null,null,null,null,null,null,null,null,null,"M"]
[47,"Šedová","Věra",1964,"Atletic Třebíč",24,"Třebíč","H",null,null,null,null,null,null,null,null,null,null,"Ž"]
[48,"Šorf","Ivo",1975,"ABND Racing Team Bystřice nad Pernštejnem",82,"Bystřice nad Pernštejnem","B",null,null,null,null,null,null,null,null,null,null,"M"]
[49,"Šperka","Oldřich",1956,"Jedovnice",86,"Jedovnice","D",null,null,null,null,null,null,null,null,null,null,"M"]
[50,"Tesařová","Marie",1954,"Křižanov",13,"Křižanov","H",null,null,null,null,null,null,null,null,null,null,"Ž"]
[51,"Tonarová","Miroslava",1976,"Bory",98,"Bory","G",null,null,null,null,null,null,null,null,null,null,"Ž"]
[52,"Vágner","Vojtěch",1999,"Brno",46,"B. Němcové 25, Brno","A",null,null,null,null,null,null,null,null,null,null,"M"]
[53,"Vytisk","Alfons",1949,"MKS Ostrava",9,"R.Prchaly 4479/26 Ostrava-Poruba","D",null,null,null,null,null,null,null,null,null,null,"M"]
[54,"Weis","Josef",1974,"Elite Sport Boskovice",89,"Olešnice","B",null,null,null,null,null,null,null,null,null,null,"M"]
[55,"Zejda","Ivo",1956,"AC Moravská Slávia Brno",17,"Brno","D",null,null,null,null,null,null,null,null,null,null,"M"]
[56,"Železná","Lada",1989,"Brno",5,null,"F",null,null,null,null,null,null,null,null,null,null,"Ž"]
[57,"Forýtek","Michal",1982,"Praha",6,null,"A",null,null,null,null,null,null,null,null,null,null,"M"]
[58,"Forýtková","Žaneta",1984,"Praha",7,null,"F",null,null,null,null,null,null,null,null,null,null,"Ž"]
[59,"Bolek","Rostislav",1965,"Insportline Ostrava",10,null,"C",null,null,null,null,null,null,null,null,null,null,"M"]
[60,"Sláma","Adolf",1970,"Žďár nad Sázavou",21,"Adslama@seznam.cz","B",null,null,null,null,null,null,null,null,null,null,"M"]
[61,"Provazník","Milan",1966,"Atletika Polička",22,"m.provaznik@email.cz","C",null,null,null,null,null,null,null,null,null,null,"M"]
[62,"Kryštof","Ondřej",1976,"Jiskra Vír",23,"o.krystof@seznam.cz","B",null,null,null,null,null,null,null,null,null,null,"M"]
[63,"Kubík","Jaromír",1955,"Blansko",27,"mika-k@seznam.cz","D",null,null,null,null,null,null,null,null,null,null,"M"]
[64,"Dvořáček","Jiří",1968,"Elite sport team",33,"dvorjiri@centrum.cz","B",null,null,null,null,null,null,null,null,null,null,"M"]
[65,"Brázda","Richard",1975,"AC NOTARBRAZDA.CZ",40,"brazda@notarbrazda.cz",{"$f":"IF(S67<>\"Ž\",IF($O$2-D67>39,IF($O$2-D67>49,IF($O$2-D67>59,IF($O$2-D67>69,IF($O$2-D67>90,\"\",\"E\"),\"D\"),\"C\"),\"B\"),\"A\"),IF(S67=\"Ž\",IF($O$2-D67>34,IF($O$2-D67>44,IF($O$2-D67>90,\"\",\"H\"),\"G\"),\"F\")))","v":"B"},null,null,null,null,null,null,null,null,null,null,{"$f":"IF(LEN(B67)=0,\" \",IF(MID(B67,LEN(B67),1)=\"á\",\"Ž\",\"M\"))","v":"M"}]
[66,"Dubský","Roman",1978,"Přibyslav",44,"dubsky.roman@seznam.cz","A",null,null,null,null,null,null,null,null,null,null,"M"]
[67,"Příhoda","Jan",1983,"Ždánice",48,"honza.prihoda@seznam.cz","A",null,null,null,null,null,null,null,null,null,null,"M"]
[68,"Šimunek","Martin",1966,"Botanka running, Modřice",58,"simunek@servisdmychadel.cz","C",null,null,null,null,null,null,null,null,null,null,"M"]
[69,"Dvořák","Vojtěch",1974,"Brno",59,"vdvorak3@nbox.cz","B",null,null,null,null,null,null,null,null,null,null,"M"]
[70,"Nováček","Tomáš",1983,"Atletic Třebíč",61,null,"A",null,null,null,null,null,null,null,null,null,null,"M"]
[71,"Rokosová","Ivana",1982,"Polička",63,null,"F",null,null,null,null,null,null,null,null,null,null,"Ž"]
[{"$f":"IF(B74<>0,A73+1,\"\")","v":72},"Ožana","Václav",1964,"Atletic Třebíč",64,null,"C",null,null,null,null,null,null,null,null,null,null,"M"]
[73,"Báňa","Karel",1975,"Jabloňov",72,null,"B",null,null,null,null,null,null,null,null,null,null,"M"]
[74,"Hlavsa","Tomáš",1983,"Adamov",73,null,"A",null,null,null,null,null,null,null,null,null,null,"M"]
[75,"Kalich","Radim",1985,"Odranec",75,null,"A",null,null,null,null,null,null,null,null,null,null,"M"]
[76,"Prokop","Ondřej",1962,"Čau, Brno",76,null,"C",null,null,null,null,null,null,null,null,null,null,"M"]
[77,"Hančl","Roman",1967,"Tišnov",87,null,"B",null,null,null,null,null,null,null,null,null,null,"M"]
[78,"Benc","Karel",1975,"Pivonice",94,null,"B",null,null,null,null,null,null,null,null,null,null,"M"]
[79,"Zourek","Karel",1959,"Bedřichovice",95,null,"C",null,null,null,null,null,null,null,null,null,null,"M"]
[80,"Daněk","Milan",1962,"Horizont kola Novák Blansko",99,null,"C",null,null,null,null,null,null,null,null,null,null,"M"]
[81,"Šacl","Pavel",1981,"Dolní Rožínka",100,null,"A",null,null,null,null,null,null,null,null,null,null,"M"]
[82,"Jeneš","Kamil",1984,"3KJRUN",101,null,"A",null,null,null,null,null,null,null,null,null,null,"M"]
["",null,null,null,null,null,null,"",null,null,null,null,null,null,null,null,null,null," "]
["",null,null,null,null,null,null,"",null,null,null,null,null,null,null,null,null,null," "]
["",null,null,null,null,null,null,"",null,null,null,null,null,null,null,null,null,null," "]
["",null,null,null,null,null,null,"",null,null,null,null,null,null,null,null,null,null," "]
["",null,null,null,null,null,null,"",null,null,null,null,null,null,null,null,null,null," "]
["",null,null,null,null,null,null,"",null,null,null,null,null,null,null,null,null,null," "]
["",null,null,null,null,null,null,"",null,null,null,null,null,null,null,null,null,null," "]
["",null,null,null,null,null,null,"",null,null,null,null,null,null,null,null,null,null," "]
["",null,null,null,null,null,null,"",null,null,null,null,null,null,null,null,null,null," "]
["",null,null,null,null,null,null,"",null,null,null,null,null,null,null,null,null,null," "]
["",null,null,null,null,null,null,"",null,null,null,null,null,null,null,null,null,null," "]
["",null,null,null,null,null,null,"",null,null,null,null,null,null,null,null,null,null," "]
["",null,null,null,null,null,null,"",null,null,null,null,null,null,null,null,null,null," "]
["",null,null,null,null,null,null,"",null,null,null,null,null,null,null,null,null,null," "]
["",null,null,null,null,null,null,{"$f":"IF(S99<>\"Ž\",IF($O$2-D99>39,IF($O$2-D99>49,IF($O$2-D99>59,IF($O$2-D99>69,IF($O$2-D99>90,\"\",\"E\"),\"D\"),\"C\"),\"B\"),\"A\"),IF(S99=\"Ž\",IF($O$2-D99>34,IF($O$2-D99>44,IF($O$2-D99>90,\"\",\"H\"),\"G\"),\"F\")))","v":""},null,null,null,null,null,null,null,null,null,null,{"$f":"IF(LEN(B99)=0,\" \",IF(MID(B99,LEN(B99),1)=\"á\",\"Ž\",\"M\"))","v":" "}]
[{"$f":"IF(B100<>0,A99+1,\"\")","v":""},null,null,null,null,null,null,"",null,null,null,null,null,null,null,null,null,null," "]
["",null,null,null,null,null,null,"",null,null,null,null,null,null,null,null,null,null," "]
["",null,null,null,null,null,null,"",null,null,null,null,null,null,null,null,null,null," "]
["",null,null,null,null,null,null,"",null,null,null,null,null,null,null,null,null,null," "]
["",null,null,null,null,null,null,"",null,null,null,null,null,null,null,null,null,null," "]
["",null,null,null,null,null,null,"",null,null,null,null,null,null,null,null,null,null," "]
["",null,null,null,null,null,null,"",null,null,null,null,null,null,null,null,null,null," "]
["",null,null,null,null,null,null,"",null,null,null,null,null,null,null,null,null,null," "]
["",null,null,null,null,null,null,"",null,null,null,null,null,null,null,null,null,null," "]
["",null,null,null,null,null,null,"",null,null,null,null,null,null,null,null,null,null," "]
["",null,null,null,null,null,null,"",null,null,null,null,null,null,null,null,null,null," "]
["",null,null,null,null,null,null,"",null,null,null,null,null,null,null,null,null,null," "]
["",null,null,null,null,null,null,"",null,null,null,null,null,null,null,null,null,null," "]
["",null,null,null,null,null,null,"",null,null,null,null,null,null,null,null,null,null," "]
["",null,null,null,null,null,null,"",null,null,null,null,null,null,null,null,null,null," "]
["",null,null,null,null,null,null,"",null,null,null,null,null,null,null,null,null,null," "]
["",null,null,null,null,null,null,"",null,null,null,null,null,null,null,null,null,null," "]
["",null,null,null,null,null,null,"",null,null,null,null,null,null,null,null,null,null," "]
["",null,null,null,null,null,null,"",null,null,null,null,null,null,null,null,null,null," "]
["",null,null,null,null,null,null,"",null,null,null,null,null,null,null,null,null,null," "]
["",null,null,null,null,null,null,"",null,null,null,null,null,null,null,null,null,null," "]
["",null,null,null,null,null,null,"",null,null,null,null,null,null,null,null,null,null," "]
["",null,null,null,null,null,null,"",null,null,null,null,null,null,null,null,null,null," "]
["",null,null,null,null,null,null,"",null,null,null,null,null,null,null,null,null,null," "]
["",null,null,null,null,null,null,"",null,null,null,null,null,null,null,null,null,null," "]
["",null,null,null,null,null,null,"",null,null,null,null,null,null,null,null,null,null," "]
["",null,null,null,null,null,null,"",null,null,null,null,null,null,null,null,null,null," "]
["",null,null,null,null,null,null,"",null,null,null,null,null,null,null,null,null,null," "]
["",null,null,null,null,null,null,"",null,null,null,null,null,null,null,null,null,null," "]
["",null,null,null,null,null,null,"",null,null,null,null,null,null,null,null,null,null," "]
["",null,null,null,null,null,null,"",null,null,null,null,null,null,null,null,null,null," "]
["",null,null,null,null,null,null,{"$f":"IF(S131<>\"Ž\",IF($O$2-D131>39,IF($O$2-D131>49,IF($O$2-D131>59,IF($O$2-D131>69,IF($O$2-D131>90,\"\",\"E\"),\"D\"),\"C\"),\"B\"),\"A\"),IF(S131=\"Ž\",IF($O$2-D131>34,IF($O$2-D131>44,IF($O$2-D131>90,\"\",\"H\"),\"G\"),\"F\")))","v":""},null,null,null,null,null,null,null,null,null,null,{"$f":"IF(LEN(B131)=0,\" \",IF(MID(B131,LEN(B131),1)=\"á\",\"Ž\",\"M\"))","v":" "}]
[{"$f":"IF(B132<>0,A131+1,\"\")","v":""},null,null,null,null,null,null,"",null,null,null,null,null,null,null,null,null,null," "]
["",null,null,null,null,null,null,"",null,null,null,null,null,null,null,null,null,null," "]
["",null,null,null,null,null,null,"",null,null,null,null,null,null,null,null,null,null," "]
["",null,null,null,null,null,null,"",null,null,null,null,null,null,null,null,null,null," "]
["",null,null,null,null,null,null,"",null,null,null,null,null,null,null,null,null,null," "]
["",null,null,null,null,null,null,"",null,null,null,null,null,null,null,null,null,null," "]
["",null,null,null,null,null,null,"",null,null,null,null,null,null,null,null,null,null," "]
["",null,null,null,null,null,null,"",null,null,null,null,null,null,null,null,null,null," "]
["",null,null,null,null,null,null,"",null,null,null,null,null,null,null,null,null,null," "]
["",null,null,null,null,null,null,"",null,null,null,null,null,null,null,null,null,null," "]
["",null,null,null,null,null,null,"",null,null,null,null,null,null,null,null,null,null," "]
["",null,null,null,null,null,null,"",null,null,null,null,null,null,null,null,null,null," "]
["",null,null,null,null,null,null,"",null,null,null,null,null,null,null,null,null,null," "]
["",null,null,null,null,null,null,"",null,null,null,null,null,null,null,null,null,null," "]
["",null,null,null,null,null,null,"",null,null,null,null,null,null,null,null,null,null," "]
["",null,null,null,null,null,null,"",null,null,null,null,null,null,null,null,null,null," "]
["",null,null,null,null,null,null,"",null,null,null,null,null,null,null,null,null,null," "]
["",null,null,null,null,null,null,"",null,null,null,null,null,null,null,null,null,null," "]
["",null,null,null,null,null,null,"",null,null,null,null,null,null,null,null,null,null," "]
["",null,null,null,null,null,null,"",null,null,null,null,null,null,null,null,null,null," "]
["",null,null,null,null,null,null,"",null,null,null,null,null,null,null,null,null,null," "]

{"sheet":"Startovní listina","index":1,"n_rows":141,"n_cols":12,"rows_kept":141,"cut":false,"hidden":false,"merged":[[4,11,11,11],[0,0,0,6],[2,0,2,6],[1,0,1,6],[1,8,2,9]]}
[{"$f":"\"Startovní listina - Malý svratecký maraton \"&'Prezenční listina'!O2","v":"Startovní listina - Malý svratecký maraton 2016"}]
["2016-08-20",null,null,null,null,null,null,null,"Počet přihlášených v jednotlivých kategoriích"]
[{"$f":"'Prezenční listina'!O2-1953&\". ročník\"","v":"63. ročník"},null,null,null,null,null,null,null,null,null,null,"Celkem startujících"]
[null,"Startovní číslo","Příjmení","Jméno","Narození","Oddíl / Bydliště","Kategorie"]
[1,{"$f":"IF('Prezenční listina'!F28=0,\"\",'Prezenční listina'!F28)","v":1},{"$f":"IF('Prezenční listina'!F28=0,\"\",'Prezenční listina'!B28)","v":"Kratochvíl"},{"$f":"IF('Prezenční listina'!F28=0,\"\",'Prezenční listina'!C28)","v":"Jaroslav"},{"$f":"IF('Prezenční listina'!F28=0,\"\",'Prezenční listina'!D28)","v":1977},{"$f":"IF('Prezenční listina'!F28=0,\"\",'Prezenční listina'!E28)","v":"SDH Hluboké"},{"$f":"IF('Prezenční listina'!F28=0,\"\",'Prezenční listina'!H28)","v":"A"},null,"A:",{"$f":"COUNTIF($G$5:$G$141,\"A\")","v":23},null,{"$f":"COUNT(B5:B141)","v":80}]
[{"$f":"IF(C6=\"\",\"\",A5+1)","v":2},{"$f":"IF('Prezenční listina'!F5=0,\"\",'Prezenční listina'!F5)","v":2},{"$f":"IF('Prezenční listina'!F5=0,\"\",'Prezenční listina'!B5)","v":"Barvíř"},{"$f":"IF('Prezenční listina'!F5=0,\"\",'Prezenční listina'!C5)","v":"Jiří"},{"$f":"IF('Prezenční listina'!F5=0,\"\",'Prezenční listina'!D5)","v":1982},{"$f":"IF('Prezenční listina'!F5=0,\"\",'Prezenční listina'!E5)","v":"R.I.P. Brno"},{"$f":"IF('Prezenční listina'!F5=0,\"\",'Prezenční listina'!H5)","v":"A"},null,"B:",{"$f":"COUNTIF($G$5:$G$141,\"B\")","v":19}]
[3,{"$f":"IF('Prezenční listina'!F8=0,\"\",'Prezenční listina'!F8)","v":3},{"$f":"IF('Prezenční listina'!F8=0,\"\",'Prezenční listina'!B8)","v":"Češner"},{"$f":"IF('Prezenční listina'!F8=0,\"\",'Prezenční listina'!C8)","v":"Vladimír"},{"$f":"IF('Prezenční listina'!F8=0,\"\",'Prezenční listina'!D8)","v":1958},{"$f":"IF('Prezenční listina'!F8=0,\"\",'Prezenční listina'!E8)","v":"Odolená Voda"},{"$f":"IF('Prezenční listina'!F8=0,\"\",'Prezenční listina'!H8)","v":"C"},null,"C:",{"$f":"COUNTIF($G$5:$G$141,\"C\")","v":16}]
[4,{"$f":"IF('Prezenční listina'!F20=0,\"\",'Prezenční listina'!F20)","v":4},{"$f":"IF('Prezenční listina'!F20=0,\"\",'Prezenční listina'!B20)","v":"Komárková"},{"$f":"IF('Prezenční listina'!F20=0,\"\",'Prezenční listina'!C20)","v":"Zdeňka"},{"$f":"IF('Prezenční listina'!F20=0,\"\",'Prezenční listina'!D20)","v":1974},{"$f":"IF('Prezenční listina'!F20=0,\"\",'Prezenční listina'!E20)","v":"SDH Bolešín"},{"$f":"IF('Prezenční listina'!F20=0,\"\",'Prezenční listina'!H20)","v":"G"},null,"D:",{"$f":"COUNTIF($G$5:$G$141,\"D\")","v":9}]
[5,{"$f":"IF('Prezenční listina'!F58=0,\"\",'Prezenční listina'!F58)","v":5},{"$f":"IF('Prezenční listina'!F58=0,\"\",'Prezenční listina'!B58)","v":"Železná"},{"$f":"IF('Prezenční listina'!F58=0,\"\",'Prezenční listina'!C58)","v":"Lada"},{"$f":"IF('Prezenční listina'!F58=0,\"\",'Prezenční listina'!D58)","v":1989},{"$f":"IF('Prezenční listina'!F58=0,\"\",'Prezenční listina'!E58)","v":"Brno"},{"$f":"IF('Prezenční listina'!F58=0,\"\",'Prezenční listina'!H58)","v":"F"},null,"E:",{"$f":"COUNTIF($G$5:$G$141,\"E\")","v":1}]
[6,{"$f":"IF('Prezenční listina'!F59=0,\"\",'Prezenční listina'!F59)","v":6},{"$f":"IF('Prezenční listina'!F59=0,\"\",'Prezenční listina'!B59)","v":"Forýtek"},{"$f":"IF('Prezenční listina'!F59=0,\"\",'Prezenční listina'!C59)","v":"Michal"},{"$f":"IF('Prezenční listina'!F59=0,\"\",'Prezenční listina'!D59)","v":1982},{"$f":"IF('Prezenční listina'!F59=0,\"\",'Prezenční listina'!E59)","v":"Praha"},{"$f":"IF('Prezenční listina'!F59=0,\"\",'Prezenční listina'!H59)","v":"A"},null,"F:",{"$f":"COUNTIF($G$5:$G$141,\"F\")","v":5}]
[7,{"$f":"IF('Prezenční listina'!F60=0,\"\",'Prezenční listina'!F60)","v":7},{"$f":"IF('Prezenční listina'!F60=0,\"\",'Prezenční listina'!B60)","v":"Forýtková"},{"$f":"IF('Prezenční listina'!F60=0,\"\",'Prezenční listina'!C60)","v":"Žaneta"},{"$f":"IF('Prezenční listina'!F60=0,\"\",'Prezenční listina'!D60)","v":1984},{"$f":"IF('Prezenční listina'!F60=0,\"\",'Prezenční listina'!E60)","v":"Praha"},{"$f":"IF('Prezenční listina'!F60=0,\"\",'Prezenční listina'!H60)","v":"F"},null,"G:",{"$f":"COUNTIF($G$5:$G$141,\"G\")","v":2}]
[8,{"$f":"IF('Prezenční listina'!F16=0,\"\",'Prezenční listina'!F16)","v":8},{"$f":"IF('Prezenční listina'!F16=0,\"\",'Prezenční listina'!B16)","v":"Chramosta"},{"$f":"IF('Prezenční listina'!F16=0,\"\",'Prezenční listina'!C16)","v":"Jaroslav"},{"$f":"IF('Prezenční listina'!F16=0,\"\",'Prezenční listina'!D16)","v":1966},{"$f":"IF('Prezenční listina'!F16=0,\"\",'Prezenční listina'!E16)","v":"JABOJA Team Děčín"},{"$f":"IF('Prezenční listina'!F16=0,\"\",'Prezenční listina'!H16)","v":"C"},null,"H:",{"$f":"COUNTIF($G$5:$G$141,\"H\")","v":5}]
[9,{"$f":"IF('Prezenční listina'!F55=0,\"\",'Prezenční listina'!F55)","v":9},{"$f":"IF('Prezenční listina'!F55=0,\"\",'Prezenční listina'!B55)","v":"Vytisk"},{"$f":"IF('Prezenční listina'!F55=0,\"\",'Prezenční listina'!C55)","v":"Alfons"},{"$f":"IF('Prezenční listina'!F55=0,\"\",'Prezenční listina'!D55)","v":1949},{"$f":"IF('Prezenční listina'!F55=0,\"\",'Prezenční listina'!E55)","v":"MKS Ostrava"},{"$f":"IF('Prezenční listina'!F55=0,\"\",'Prezenční listina'!H55)","v":"D"}]
[10,{"$f":"IF('Prezenční listina'!F61=0,\"\",'Prezenční listina'!F61)","v":10},{"$f":"IF('Prezenční listina'!F61=0,\"\",'Prezenční listina'!B61)","v":"Bolek"},{"$f":"IF('Prezenční listina'!F61=0,\"\",'Prezenční listina'!C61)","v":"Rostislav"},{"$f":"IF('Prezenční listina'!F61=0,\"\",'Prezenční listina'!D61)","v":1965},{"$f":"IF('Prezenční listina'!F61=0,\"\",'Prezenční listina'!E61)","v":"Insportline Ostrava"},{"$f":"IF('Prezenční listina'!F61=0,\"\",'Prezenční listina'!H61)","v":"C"}]
[11,{"$f":"IF('Prezenční listina'!F23=0,\"\",'Prezenční listina'!F23)","v":11},{"$f":"IF('Prezenční listina'!F23=0,\"\",'Prezenční listina'!B23)","v":"Kopečný"},{"$f":"IF('Prezenční listina'!F23=0,\"\",'Prezenční listina'!C23)","v":"Dušan"},{"$f":"IF('Prezenční listina'!F23=0,\"\",'Prezenční listina'!D23)","v":1973},{"$f":"IF('Prezenční listina'!F23=0,\"\",'Prezenční listina'!E23)","v":"AK Drnovice"},{"$f":"IF('Prezenční listina'!F23=0,\"\",'Prezenční listina'!H23)","v":"B"}]
[12,{"$f":"IF('Prezenční listina'!F24=0,\"\",'Prezenční listina'!F24)","v":12},{"$f":"IF('Prezenční listina'!F24=0,\"\",'Prezenční listina'!B24)","v":"Koudelka"},{"$f":"IF('Prezenční listina'!F24=0,\"\",'Prezenční listina'!C24)","v":"Lukáš"},{"$f":"IF('Prezenční listina'!F24=0,\"\",'Prezenční listina'!D24)","v":1983},{"$f":"IF('Prezenční listina'!F24=0,\"\",'Prezenční listina'!E24)","v":"AK Drnovice"},{"$f":"IF('Prezenční listina'!F24=0,\"\",'Prezenční listina'!H24)","v":"A"}]
[13,{"$f":"IF('Prezenční listina'!F52=0,\"\",'Prezenční listina'!F52)","v":13},{"$f":"IF('Prezenční listina'!F52=0,\"\",'Prezenční listina'!B52)","v":"Tesařová"},{"$f":"IF('Prezenční listina'!F52=0,\"\",'Prezenční listina'!C52)","v":"Marie"},{"$f":"IF('Prezenční listina'!F52=0,\"\",'Prezenční listina'!D52)","v":1954},{"$f":"IF('Prezenční listina'!F52=0,\"\",'Prezenční listina'!E52)","v":"Křižanov"},{"$f":"IF('Prezenční listina'!F52=0,\"\",'Prezenční listina'!H52)","v":"H"}]
[14,{"$f":"IF('Prezenční listina'!F13=0,\"\",'Prezenční listina'!F13)","v":14},{"$f":"IF('Prezenční listina'!F13=0,\"\",'Prezenční listina'!B13)","v":"Holý"},{"$f":"IF('Prezenční listina'!F13=0,\"\",'Prezenční listina'!C13)","v":"Josef"},{"$f":"IF('Prezenční listina'!F13=0,\"\",'Prezenční listina'!D13)","v":1941},{"$f":"IF('Prezenční listina'!F13=0,\"\",'Prezenční listina'!E13)","v":"AC Moravská Slávia Brno"},{"$f":"IF('Prezenční listina'!F13=0,\"\",'Prezenční listina'!H13)","v":"E"}]
[15,{"$f":"IF('Prezenční listina'!F57=0,\"\",'Prezenční listina'!F57)","v":17},{"$f":"IF('Prezenční listina'!F57=0,\"\",'Prezenční listina'!B57)","v":"Zejda"},{"$f":"IF('Prezenční listina'!F57=0,\"\",'Prezenční listina'!C57)","v":"Ivo"},{"$f":"IF('Prezenční listina'!F57=0,\"\",'Prezenční listina'!D57)","v":1956},{"$f":"IF('Prezenční listina'!F57=0,\"\",'Prezenční listina'!E57)","v":"AC Moravská Slávia Brno"},{"$f":"IF('Prezenční listina'!F57=0,\"\",'Prezenční listina'!H57)","v":"D"}]
[16,{"$f":"IF('Prezenční listina'!F26=0,\"\",'Prezenční listina'!F26)","v":18},{"$f":"IF('Prezenční listina'!F26=0,\"\",'Prezenční listina'!B26)","v":"Krátká"},{"$f":"IF('Prezenční listina'!F26=0,\"\",'Prezenční listina'!C26)","v":"Anna"},{"$f":"IF('Prezenční listina'!F26=0,\"\",'Prezenční listina'!D26)","v":1969},{"$f":"IF('Prezenční listina'!F26=0,\"\",'Prezenční listina'!E26)","v":"SKP Hvězda Pardubice"},{"$f":"IF('Prezenční listina'!F26=0,\"\",'Prezenční listina'!H26)","v":"H"}]
[17,{"$f":"IF('Prezenční listina'!F27=0,\"\",'Prezenční listina'!F27)","v":19},{"$f":"IF('Prezenční listina'!F27=0,\"\",'Prezenční listina'!B27)","v":"Krátký"},{"$f":"IF('Prezenční listina'!F27=0,\"\",'Prezenční listina'!C27)","v":"Josef"},{"$f":"IF('Prezenční listina'!F27=0,\"\",'Prezenční listina'!D27)","v":1965},{"$f":"IF('Prezenční listina'!F27=0,\"\",'Prezenční listina'!E27)","v":"SKP Hvězda Pardubice"},{"$f":"IF('Prezenční listina'!F27=0,\"\",'Prezenční listina'!H27)","v":"C"}]
[18,{"$f":"IF('Prezenční listina'!F62=0,\"\",'Prezenční listina'!F62)","v":21},{"$f":"IF('Prezenční listina'!F62=0,\"\",'Prezenční listina'!B62)","v":"Sláma"},{"$f":"IF('Prezenční listina'!F62=0,\"\",'Prezenční listina'!C62)","v":"Adolf"},{"$f":"IF('Prezenční listina'!F62=0,\"\",'Prezenční listina'!D62)","v":1970},{"$f":"IF('Prezenční listina'!F62=0,\"\",'Prezenční listina'!E62)","v":"Žďár nad Sázavou"},{"$f":"IF('Prezenční listina'!F62=0,\"\",'Prezenční listina'!H62)","v":"B"}]
[19,{"$f":"IF('Prezenční listina'!F63=0,\"\",'Prezenční listina'!F63)","v":22},{"$f":"IF('Prezenční listina'!F63=0,\"\",'Prezenční listina'!B63)","v":"Provazník"},{"$f":"IF('Prezenční listina'!F63=0,\"\",'Prezenční listina'!C63)","v":"Milan"},{"$f":"IF('Prezenční listina'!F63=0,\"\",'Prezenční listina'!D63)","v":1966},{"$f":"IF('Prezenční listina'!F63=0,\"\",'Prezenční listina'!E63)","v":"Atletika Polička"},{"$f":"IF('Prezenční listina'!F63=0,\"\",'Prezenční listina'!H63)","v":"C"}]
[20,{"$f":"IF('Prezenční listina'!F64=0,\"\",'Prezenční listina'!F64)","v":23},{"$f":"IF('Prezenční listina'!F64=0,\"\",'Prezenční listina'!B64)","v":"Kryštof"},{"$f":"IF('Prezenční listina'!F64=0,\"\",'Prezenční listina'!C64)","v":"Ondřej"},{"$f":"IF('Prezenční listina'!F64=0,\"\",'Prezenční listina'!D64)","v":1976},{"$f":"IF('Prezenční listina'!F64=0,\"\",'Prezenční listina'!E64)","v":"Jiskra Vír"},{"$f":"IF('Prezenční listina'!F64=0,\"\",'Prezenční listina'!H64)","v":"B"}]
[21,{"$f":"IF('Prezenční listina'!F49=0,\"\",'Prezenční listina'!F49)","v":24},{"$f":"IF('Prezenční listina'!F49=0,\"\",'Prezenční listina'!B49)","v":"Šedová"},{"$f":"IF('Prezenční listina'!F49=0,\"\",'Prezenční listina'!C49)","v":"Věra"},{"$f":"IF('Prezenční listina'!F49=0,\"\",'Prezenční listina'!D49)","v":1964},{"$f":"IF('Prezenční listina'!F49=0,\"\",'Prezenční listina'!E49)","v":"Atletic Třebíč"},{"$f":"IF('Prezenční listina'!F49=0,\"\",'Prezenční listina'!H49)","v":"H"}]
[22,{"$f":"IF('Prezenční listina'!F18=0,\"\",'Prezenční listina'!F18)","v":26},{"$f":"IF('Prezenční listina'!F18=0,\"\",'Prezenční listina'!B18)","v":"Kohoutek"},{"$f":"IF('Prezenční listina'!F18=0,\"\",'Prezenční listina'!C18)","v":"Jaromír"},{"$f":"IF('Prezenční listina'!F18=0,\"\",'Prezenční listina'!D18)","v":1955},{"$f":"IF('Prezenční listina'!F18=0,\"\",'Prezenční listina'!E18)","v":"watter and snow ski club Brno"},{"$f":"IF('Prezenční listina'!F18=0,\"\",'Prezenční listina'!H18)","v":"D"}]
[23,{"$f":"IF('Prezenční listina'!F65=0,\"\",'Prezenční listina'!F65)","v":27},{"$f":"IF('Prezenční listina'!F65=0,\"\",'Prezenční listina'!B65)","v":"Kubík"},{"$f":"IF('Prezenční listina'!F65=0,\"\",'Prezenční listina'!C65)","v":"Jaromír"},{"$f":"IF('Prezenční listina'!F65=0,\"\",'Prezenční listina'!D65)","v":1955},{"$f":"IF('Prezenční listina'!F65=0,\"\",'Prezenční listina'!E65)","v":"Blansko"},{"$f":"IF('Prezenční listina'!F65=0,\"\",'Prezenční listina'!H65)","v":"D"}]
[24,{"$f":"IF('Prezenční listina'!F32=0,\"\",'Prezenční listina'!F32)","v":28},{"$f":"IF('Prezenční listina'!F32=0,\"\",'Prezenční listina'!B32)","v":"Mareš"},{"$f":"IF('Prezenční listina'!F32=0,\"\",'Prezenční listina'!C32)","v":"Bohumil"},{"$f":"IF('Prezenční listina'!F32=0,\"\",'Prezenční listina'!D32)","v":1951},{"$f":"IF('Prezenční listina'!F32=0,\"\",'Prezenční listina'!E32)","v":"LEAR Brno"},{"$f":"IF('Prezenční listina'!F32=0,\"\",'Prezenční listina'!H32)","v":"D"}]
[25,{"$f":"IF('Prezenční listina'!F33=0,\"\",'Prezenční listina'!F33)","v":30},{"$f":"IF('Prezenční listina'!F33=0,\"\",'Prezenční listina'!B33)","v":"Martincová"},{"$f":"IF('Prezenční listina'!F33=0,\"\",'Prezenční listina'!C33)","v":"Ivana"},{"$f":"IF('Prezenční listina'!F33=0,\"\",'Prezenční listina'!D33)","v":1963},{"$f":"IF('Prezenční listina'!F33=0,\"\",'Prezenční listina'!E33)","v":"AC Moravská Slávia Brno"},{"$f":"IF('Prezenční listina'!F33=0,\"\",'Prezenční listina'!H33)","v":"H"}]
[26,{"$f":"IF('Prezenční listina'!F19=0,\"\",'Prezenční listina'!F19)","v":31},{"$f":"IF('Prezenční listina'!F19=0,\"\",'Prezenční listina'!B19)","v":"Kohut"},{"$f":"IF('Prezenční listina'!F19=0,\"\",'Prezenční listina'!C19)","v":"Jan"},{"$f":"IF('Prezenční listina'!F19=0,\"\",'Prezenční listina'!D19)","v":1985},{"$f":"IF('Prezenční listina'!F19=0,\"\",'Prezenční listina'!E19)","v":"Elite Sport Team Blansko"},{"$f":"IF('Prezenční listina'!F19=0,\"\",'Prezenční listina'!H19)","v":"A"}]
[27,{"$f":"IF('Prezenční listina'!F66=0,\"\",'Prezenční listina'!F66)","v":33},{"$f":"IF('Prezenční listina'!F66=0,\"\",'Prezenční listina'!B66)","v":"Dvořáček"},{"$f":"IF('Prezenční listina'!F66=0,\"\",'Prezenční listina'!C66)","v":"Jiří"},{"$f":"IF('Prezenční listina'!F66=0,\"\",'Prezenční listina'!D66)","v":1968},{"$f":"IF('Prezenční listina'!F66=0,\"\",'Prezenční listina'!E66)","v":"Elite sport team"},{"$f":"IF('Prezenční listina'!F66=0,\"\",'Prezenční listina'!H66)","v":"B"}]
[28,{"$f":"IF('Prezenční listina'!F10=0,\"\",'Prezenční listina'!F10)","v":34},{"$f":"IF('Prezenční listina'!F10=0,\"\",'Prezenční listina'!B10)","v":"Dýrová Macháčková"},{"$f":"IF('Prezenční listina'!F10=0,\"\",'Prezenční listina'!C10)","v":"Šárka"},{"$f":"IF('Prezenční listina'!F10=0,\"\",'Prezenční listina'!D10)","v":1983},{"$f":"IF('Prezenční listina'!F10=0,\"\",'Prezenční listina'!E10)","v":"AK Olymp Brno"},{"$f":"IF('Prezenční listina'!F10=0,\"\",'Prezenční listina'!H10)","v":"F"}]
[29,{"$f":"IF('Prezenční listina'!F9=0,\"\",'Prezenční listina'!F9)","v":35},{"$f":"IF('Prezenční listina'!F9=0,\"\",'Prezenční listina'!B9)","v":"Dušil"},{"$f":"IF('Prezenční listina'!F9=0,\"\",'Prezenční listina'!C9)","v":"Jaroslav"},{"$f":"IF('Prezenční listina'!F9=0,\"\",'Prezenční listina'!D9)","v":1970},{"$f":"IF('Prezenční listina'!F9=0,\"\",'Prezenční listina'!E9)","v":"Běžecký klub Brno"},{"$f":"IF('Prezenční listina'!F9=0,\"\",'Prezenční listina'!H9)","v":"B"}]
[30,{"$f":"IF('Prezenční listina'!F37=0,\"\",'Prezenční listina'!F37)","v":36},{"$f":"IF('Prezenční listina'!F37=0,\"\",'Prezenční listina'!B37)","v":"Němec"},{"$f":"IF('Prezenční listina'!F37=0,\"\",'Prezenční listina'!C37)","v":"Jaroslav"},{"$f":"IF('Prezenční listina'!F37=0,\"\",'Prezenční listina'!D37)","v":1952},{"$f":"IF('Prezenční listina'!F37=0,\"\",'Prezenční listina'!E37)","v":"Blansko"},{"$f":"IF('Prezenční listina'!F37=0,\"\",'Prezenční listina'!H37)","v":"D"}]
[31,{"$f":"IF('Prezenční listina'!F14=0,\"\",'Prezenční listina'!F14)","v":37},{"$f":"IF('Prezenční listina'!F14=0,\"\",'Prezenční listina'!B14)","v":"Hrdina"},{"$f":"IF('Prezenční listina'!F14=0,\"\",'Prezenční listina'!C14)","v":"Tomáš"},{"$f":"IF('Prezenční listina'!F14=0,\"\",'Prezenční listina'!D14)","v":1979},{"$f":"IF('Prezenční listina'!F14=0,\"\",'Prezenční listina'!E14)","v":"Běžecký klub Brno"},{"$f":"IF('Prezenční listina'!F14=0,\"\",'Prezenční listina'!H14)","v":"A"}]
[32,{"$f":"IF('Prezenční listina'!F41=0,\"\",'Prezenční listina'!F41)","v":38},{"$f":"IF('Prezenční listina'!F41=0,\"\",'Prezenční listina'!B41)","v":"Pešáková"},{"$f":"IF('Prezenční listina'!F41=0,\"\",'Prezenční listina'!C41)","v":"Mirka"},{"$f":"IF('Prezenční listina'!F41=0,\"\",'Prezenční listina'!D41)","v":1985},{"$f":"IF('Prezenční listina'!F41=0,\"\",'Prezenční listina'!E41)","v":"AC Racers Tetčice"},{"$f":"IF('Prezenční listina'!F41=0,\"\",'Prezenční listina'!H41)","v":"F"}]
[33,{"$f":"IF('Prezenční listina'!F67=0,\"\",'Prezenční listina'!F67)","v":40},{"$f":"IF('Prezenční listina'!F67=0,\"\",'Prezenční listina'!B67)","v":"Brázda"},{"$f":"IF('Prezenční listina'!F67=0,\"\",'Prezenční listina'!C67)","v":"Richard"},{"$f":"IF('Prezenční listina'!F67=0,\"\",'Prezenční listina'!D67)","v":1975},{"$f":"IF('Prezenční listina'!F67=0,\"\",'Prezenční listina'!E67)","v":"AC NOTARBRAZDA.CZ"},{"$f":"IF('Prezenční listina'!F67=0,\"\",'Prezenční listina'!H67)","v":"B"}]
[34,{"$f":"IF('Prezenční listina'!F4=0,\"\",'Prezenční listina'!F4)","v":41},{"$f":"IF('Prezenční listina'!F4=0,\"\",'Prezenční listina'!B4)","v":"Barták"},{"$f":"IF('Prezenční listina'!F4=0,\"\",'Prezenční listina'!C4)","v":"Ronald"},{"$f":"IF('Prezenční listina'!F4=0,\"\",'Prezenční listina'!D4)","v":1965},{"$f":"IF('Prezenční listina'!F4=0,\"\",'Prezenční listina'!E4)","v":"Kuřim"},{"$f":"IF('Prezenční listina'!F4=0,\"\",'Prezenční listina'!H4)","v":"C"}]
[{"$f":"IF(C39=\"\",\"\",A38+1)","v":35},{"$f":"IF('Prezenční listina'!F3=0,\"\",'Prezenční listina'!F3)","v":42},{"$f":"IF('Prezenční listina'!F3=0,\"\",'Prezenční listina'!B3)","v":"Alman"},{"$f":"IF('Prezenční listina'!F3=0,\"\",'Prezenční listina'!C3)","v":"Dušan"},{"$f":"IF('Prezenční listina'!F3=0,\"\",'Prezenční listina'!D3)","v":1967},{"$f":"IF('Prezenční listina'!F3=0,\"\",'Prezenční listina'!E3)","v":"Babice nad Svitavou"},{"$f":"IF('Prezenční listina'!F3=0,\"\",'Prezenční listina'!H3)","v":"B"}]
[{"$f":"IF(C40=\"\",\"\",A39+1)","v":36},{"$f":"IF('Prezenční listina'!F68=0,\"\",'Prezenční listina'!F68)","v":44},{"$f":"IF('Prezenční listina'!F68=0,\"\",'Prezenční listina'!B68)","v":"Dubský"},{"$f":"IF('Prezenční listina'!F68=0,\"\",'Prezenční listina'!C68)","v":"Roman"},{"$f":"IF('Prezenční listina'!F68=0,\"\",'Prezenční listina'!D68)","v":1978},{"$f":"IF('Prezenční listina'!F68=0,\"\",'Prezenční listina'!E68)","v":"Přibyslav"},{"$f":"IF('Prezenční listina'!F68=0,\"\",'Prezenční listina'!H68)","v":"A"}]
[37,{"$f":"IF('Prezenční listina'!F35=0,\"\",'Prezenční listina'!F35)","v":45},{"$f":"IF('Prezenční listina'!F35=0,\"\",'Prezenční listina'!B35)","v":"Misař"},{"$f":"IF('Prezenční listina'!F35=0,\"\",'Prezenční listina'!C35)","v":"Ondřej"},{"$f":"IF('Prezenční listina'!F35=0,\"\",'Prezenční listina'!D35)","v":2000},{"$f":"IF('Prezenční listina'!F35=0,\"\",'Prezenční listina'!E35)","v":"Brno"},{"$f":"IF('Prezenční listina'!F35=0,\"\",'Prezenční listina'!H35)","v":"A"}]
[38,{"$f":"IF('Prezenční listina'!F54=0,\"\",'Prezenční listina'!F54)","v":46},{"$f":"IF('Prezenční listina'!F54=0,\"\",'Prezenční listina'!B54)","v":"Vágner"},{"$f":"IF('Prezenční listina'!F54=0,\"\",'Prezenční listina'!C54)","v":"Vojtěch"},{"$f":"IF('Prezenční listina'!F54=0,\"\",'Prezenční listina'!D54)","v":1999},{"$f":"IF('Prezenční listina'!F54=0,\"\",'Prezenční listina'!E54)","v":"Brno"},{"$f":"IF('Prezenční listina'!F54=0,\"\",'Prezenční listina'!H54)","v":"A"}]
[39,{"$f":"IF('Prezenční listina'!F48=0,\"\",'Prezenční listina'!F48)","v":47},{"$f":"IF('Prezenční listina'!F48=0,\"\",'Prezenční listina'!B48)","v":"Šádek"},{"$f":"IF('Prezenční listina'!F48=0,\"\",'Prezenční listina'!C48)","v":"Jiří"},{"$f":"IF('Prezenční listina'!F48=0,\"\",'Prezenční listina'!D48)","v":1959},{"$f":"IF('Prezenční listina'!F48=0,\"\",'Prezenční listina'!E48)","v":"Lomnice nad Popelkou"},{"$f":"IF('Prezenční listina'!F48=0,\"\",'Prezenční listina'!H48)","v":"C"}]
[40,{"$f":"IF('Prezenční listina'!F69=0,\"\",'Prezenční listina'!F69)","v":48},{"$f":"IF('Prezenční listina'!F69=0,\"\",'Prezenční listina'!B69)","v":"Příhoda"},{"$f":"IF('Prezenční listina'!F69=0,\"\",'Prezenční listina'!C69)","v":"Jan"},{"$f":"IF('Prezenční listina'!F69=0,\"\",'Prezenční listina'!D69)","v":1983},{"$f":"IF('Prezenční listina'!F69=0,\"\",'Prezenční listina'!E69)","v":"Ždánice"},{"$f":"IF('Prezenční listina'!F69=0,\"\",'Prezenční listina'!H69)","v":"A"}]
[41,{"$f":"IF('Prezenční listina'!F17=0,\"\",'Prezenční listina'!F17)","v":49},{"$f":"IF('Prezenční listina'!F17=0,\"\",'Prezenční listina'!B17)","v":"Kocur"},{"$f":"IF('Prezenční listina'!F17=0,\"\",'Prezenční listina'!C17)","v":"Lukáš"},{"$f":"IF('Prezenční listina'!F17=0,\"\",'Prezenční listina'!D17)","v":1977},{"$f":"IF('Prezenční listina'!F17=0,\"\",'Prezenční listina'!E17)","v":"VHS Brno"},{"$f":"IF('Prezenční listina'!F17=0,\"\",'Prezenční listina'!H17)","v":"A"}]
[42,{"$f":"IF('Prezenční listina'!F29=0,\"\",'Prezenční listina'!F29)","v":51},{"$f":"IF('Prezenční listina'!F29=0,\"\",'Prezenční listina'!B29)","v":"Kropáček"},{"$f":"IF('Prezenční listina'!F29=0,\"\",'Prezenční listina'!C29)","v":"Jaroslav"},{"$f":"IF('Prezenční listina'!F29=0,\"\",'Prezenční listina'!D29)","v":1970},{"$f":"IF('Prezenční listina'!F29=0,\"\",'Prezenční listina'!E29)","v":"Brno"},{"$f":"IF('Prezenční listina'!F29=0,\"\",'Prezenční listina'!H29)","v":"B"}]
[43,{"$f":"IF('Prezenční listina'!F15=0,\"\",'Prezenční listina'!F15)","v":54},{"$f":"IF('Prezenční listina'!F15=0,\"\",'Prezenční listina'!B15)","v":"Hýbl"},{"$f":"IF('Prezenční listina'!F15=0,\"\",'Prezenční listina'!C15)","v":"Jiří"},{"$f":"IF('Prezenční listina'!F15=0,\"\",'Prezenční listina'!D15)","v":1967},{"$f":"IF('Prezenční listina'!F15=0,\"\",'Prezenční listina'!E15)","v":"Hrušovany u Brna"},{"$f":"IF('Prezenční listina'!F15=0,\"\",'Prezenční listina'!H15)","v":"B"}]
[44,{"$f":"IF('Prezenční listina'!F46=0,\"\",'Prezenční listina'!F46)","v":56},{"$f":"IF('Prezenční listina'!F46=0,\"\",'Prezenční listina'!B46)","v":"Srnec"},{"$f":"IF('Prezenční listina'!F46=0,\"\",'Prezenční listina'!C46)","v":"Lukáš"},{"$f":"IF('Prezenční listina'!F46=0,\"\",'Prezenční listina'!D46)","v":1990},{"$f":"IF('Prezenční listina'!F46=0,\"\",'Prezenční listina'!E46)","v":"Židlochovice"},{"$f":"IF('Prezenční listina'!F46=0,\"\",'Prezenční listina'!H46)","v":"A"}]
[45,{"$f":"IF('Prezenční listina'!F70=0,\"\",'Prezenční listina'!F70)","v":58},{"$f":"IF('Prezenční listina'!F70=0,\"\",'Prezenční listina'!B70)","v":"Šimunek"},{"$f":"IF('Prezenční listina'!F70=0,\"\",'Prezenční listina'!C70)","v":"Martin"},{"$f":"IF('Prezenční listina'!F70=0,\"\",'Prezenční listina'!D70)","v":1966},{"$f":"IF('Prezenční listina'!F70=0,\"\",'Prezenční listina'!E70)","v":"Botanka running, Modřice"},{"$f":"IF('Prezenční listina'!F70=0,\"\",'Prezenční listina'!H70)","v":"C"}]
[46,{"$f":"IF('Prezenční listina'!F71=0,\"\",'Prezenční listina'!F71)","v":59},{"$f":"IF('Prezenční listina'!F71=0,\"\",'Prezenční listina'!B71)","v":"Dvořák"},{"$f":"IF('Prezenční listina'!F71=0,\"\",'Prezenční listina'!C71)","v":"Vojtěch"},{"$f":"IF('Prezenční listina'!F71=0,\"\",'Prezenční listina'!D71)","v":1974},{"$f":"IF('Prezenční listina'!F71=0,\"\",'Prezenční listina'!E71)","v":"Brno"},{"$f":"IF('Prezenční listina'!F71=0,\"\",'Prezenční listina'!H71)","v":"B"}]
[47,{"$f":"IF('Prezenční listina'!F47=0,\"\",'Prezenční listina'!F47)","v":60},{"$f":"IF('Prezenční listina'!F47=0,\"\",'Prezenční listina'!B47)","v":"Suchý"},{"$f":"IF('Prezenční listina'!F47=0,\"\",'Prezenční listina'!C47)","v":"Karel"},{"$f":"IF('Prezenční listina'!F47=0,\"\",'Prezenční listina'!D47)","v":1956},{"$f":"IF('Prezenční listina'!F47=0,\"\",'Prezenční listina'!E47)","v":"Atletic Třebíč"},{"$f":"IF('Prezenční listina'!F47=0,\"\",'Prezenční listina'!H47)","v":"D"}]
[48,{"$f":"IF('Prezenční listina'!F72=0,\"\",'Prezenční listina'!F72)","v":61},{"$f":"IF('Prezenční listina'!F72=0,\"\",'Prezenční listina'!B72)","v":"Nováček"},{"$f":"IF('Prezenční listina'!F72=0,\"\",'Prezenční listina'!C72)","v":"Tomáš"},{"$f":"IF('Prezenční listina'!F72=0,\"\",'Prezenční listina'!D72)","v":1983},{"$f":"IF('Prezenční listina'!F72=0,\"\",'Prezenční listina'!E72)","v":"Atletic Třebíč"},{"$f":"IF('Prezenční listina'!F72=0,\"\",'Prezenční listina'!H72)","v":"A"}]
[49,{"$f":"IF('Prezenční listina'!F36=0,\"\",'Prezenční listina'!F36)","v":62},{"$f":"IF('Prezenční listina'!F36=0,\"\",'Prezenční listina'!B36)","v":"Nekuža"},{"$f":"IF('Prezenční listina'!F36=0,\"\",'Prezenční listina'!C36)","v":"Jiří"},{"$f":"IF('Prezenční listina'!F36=0,\"\",'Prezenční listina'!D36)","v":1951},{"$f":"IF('Prezenční listina'!F36=0,\"\",'Prezenční listina'!E36)","v":"Runners Zbýšov"},{"$f":"IF('Prezenční listina'!F36=0,\"\",'Prezenční listina'!H36)","v":"D"}]
[50,{"$f":"IF('Prezenční listina'!F73=0,\"\",'Prezenční listina'!F73)","v":63},{"$f":"IF('Prezenční listina'!F73=0,\"\",'Prezenční listina'!B73)","v":"Rokosová"},{"$f":"IF('Prezenční listina'!F73=0,\"\",'Prezenční listina'!C73)","v":"Ivana"},{"$f":"IF('Prezenční listina'!F73=0,\"\",'Prezenční listina'!D73)","v":1982},{"$f":"IF('Prezenční listina'!F73=0,\"\",'Prezenční listina'!E73)","v":"Polička"},{"$f":"IF('Prezenční listina'!F73=0,\"\",'Prezenční listina'!H73)","v":"F"}]
[51,{"$f":"IF('Prezenční listina'!F74=0,\"\",'Prezenční listina'!F74)","v":64},{"$f":"IF('Prezenční listina'!F74=0,\"\",'Prezenční listina'!B74)","v":"Ožana"},{"$f":"IF('Prezenční listina'!F74=0,\"\",'Prezenční listina'!C74)","v":"Václav"},{"$f":"IF('Prezenční listina'!F74=0,\"\",'Prezenční listina'!D74)","v":1964},{"$f":"IF('Prezenční listina'!F74=0,\"\",'Prezenční listina'!E74)","v":"Atletic Třebíč"},{"$f":"IF('Prezenční listina'!F74=0,\"\",'Prezenční listina'!H74)","v":"C"}]
[52,{"$f":"IF('Prezenční listina'!F6=0,\"\",'Prezenční listina'!F6)","v":67},{"$f":"IF('Prezenční listina'!F6=0,\"\",'Prezenční listina'!B6)","v":"Brabenec"},{"$f":"IF('Prezenční listina'!F6=0,\"\",'Prezenční listina'!C6)","v":"Miroslav"},{"$f":"IF('Prezenční listina'!F6=0,\"\",'Prezenční listina'!D6)","v":1959},{"$f":"IF('Prezenční listina'!F6=0,\"\",'Prezenční listina'!E6)","v":"Žďár nad Sázavou"},{"$f":"IF('Prezenční listina'!F6=0,\"\",'Prezenční listina'!H6)","v":"C"}]
[53,{"$f":"IF('Prezenční listina'!F7=0,\"\",'Prezenční listina'!F7)","v":69},{"$f":"IF('Prezenční listina'!F7=0,\"\",'Prezenční listina'!B7)","v":"Brabenec"},{"$f":"IF('Prezenční listina'!F7=0,\"\",'Prezenční listina'!C7)","v":"Aleš"},{"$f":"IF('Prezenční listina'!F7=0,\"\",'Prezenční listina'!D7)","v":1987},{"$f":"IF('Prezenční listina'!F7=0,\"\",'Prezenční listina'!E7)","v":"Žďár nad Sázavou"},{"$f":"IF('Prezenční listina'!F7=0,\"\",'Prezenční listina'!H7)","v":"A"}]
[54,{"$f":"IF('Prezenční listina'!F34=0,\"\",'Prezenční listina'!F34)","v":70},{"$f":"IF('Prezenční listina'!F34=0,\"\",'Prezenční listina'!B34)","v":"Mička"},{"$f":"IF('Prezenční listina'!F34=0,\"\",'Prezenční listina'!C34)","v":"Michal"},{"$f":"IF('Prezenční listina'!F34=0,\"\",'Prezenční listina'!D34)","v":1987},{"$f":"IF('Prezenční listina'!F34=0,\"\",'Prezenční listina'!E34)","v":"Žďár nad Sázavou"},{"$f":"IF('Prezenční listina'!F34=0,\"\",'Prezenční listina'!H34)","v":"A"}]
[55,{"$f":"IF('Prezenční listina'!F75=0,\"\",'Prezenční listina'!F75)","v":72},{"$f":"IF('Prezenční listina'!F75=0,\"\",'Prezenční listina'!B75)","v":"Báňa"},{"$f":"IF('Prezenční listina'!F75=0,\"\",'Prezenční listina'!C75)","v":"Karel"},{"$f":"IF('Prezenční listina'!F75=0,\"\",'Prezenční listina'!D75)","v":1975},{"$f":"IF('Prezenční listina'!F75=0,\"\",'Prezenční listina'!E75)","v":"Jabloňov"},{"$f":"IF('Prezenční listina'!F75=0,\"\",'Prezenční listina'!H75)","v":"B"}]
[56,{"$f":"IF('Prezenční listina'!F76=0,\"\",'Prezenční listina'!F76)","v":73},{"$f":"IF('Prezenční listina'!F76=0,\"\",'Prezenční listina'!B76)","v":"Hlavsa"},{"$f":"IF('Prezenční listina'!F76=0,\"\",'Prezenční listina'!C76)","v":"Tomáš"},{"$f":"IF('Prezenční listina'!F76=0,\"\",'Prezenční listina'!D76)","v":1983},{"$f":"IF('Prezenční listina'!F76=0,\"\",'Prezenční listina'!E76)","v":"Adamov"},{"$f":"IF('Prezenční listina'!F76=0,\"\",'Prezenční listina'!H76)","v":"A"}]
[57,{"$f":"IF('Prezenční listina'!F77=0,\"\",'Prezenční listina'!F77)","v":75},{"$f":"IF('Prezenční listina'!F77=0,\"\",'Prezenční listina'!B77)","v":"Kalich"},{"$f":"IF('Prezenční listina'!F77=0,\"\",'Prezenční listina'!C77)","v":"Radim"},{"$f":"IF('Prezenční listina'!F77=0,\"\",'Prezenční listina'!D77)","v":1985},{"$f":"IF('Prezenční listina'!F77=0,\"\",'Prezenční listina'!E77)","v":"Odranec"},{"$f":"IF('Prezenční listina'!F77=0,\"\",'Prezenční listina'!H77)","v":"A"}]
[58,{"$f":"IF('Prezenční listina'!F78=0,\"\",'Prezenční listina'!F78)","v":76},{"$f":"IF('Prezenční listina'!F78=0,\"\",'Prezenční listina'!B78)","v":"Prokop"},{"$f":"IF('Prezenční listina'!F78=0,\"\",'Prezenční listina'!C78)","v":"Ondřej"},{"$f":"IF('Prezenční listina'!F78=0,\"\",'Prezenční listina'!D78)","v":1962},{"$f":"IF('Prezenční listina'!F78=0,\"\",'Prezenční listina'!E78)","v":"Čau, Brno"},{"$f":"IF('Prezenční listina'!F78=0,\"\",'Prezenční listina'!H78)","v":"C"}]
[59,{"$f":"IF('Prezenční listina'!F44=0,\"\",'Prezenční listina'!F44)","v":77},{"$f":"IF('Prezenční listina'!F44=0,\"\",'Prezenční listina'!B44)","v":"Rerych"},{"$f":"IF('Prezenční listina'!F44=0,\"\",'Prezenční listina'!C44)","v":"Jiří"},{"$f":"IF('Prezenční listina'!F44=0,\"\",'Prezenční listina'!D44)","v":1962},{"$f":"IF('Prezenční listina'!F44=0,\"\",'Prezenční listina'!E44)","v":"adidas Boost Team/AC Moravská Slávia Brno"},{"$f":"IF('Prezenční listina'!F44=0,\"\",'Prezenční listina'!H44)","v":"C"}]
[60,{"$f":"IF('Prezenční listina'!F38=0,\"\",'Prezenční listina'!F38)","v":79},{"$f":"IF('Prezenční listina'!F38=0,\"\",'Prezenční listina'!B38)","v":"Nosek"},{"$f":"IF('Prezenční listina'!F38=0,\"\",'Prezenční listina'!C38)","v":"Pavel"},{"$f":"IF('Prezenční listina'!F38=0,\"\",'Prezenční listina'!D38)","v":1965},{"$f":"IF('Prezenční listina'!F38=0,\"\",'Prezenční listina'!E38)","v":"ASK Slavkov o.s."},{"$f":"IF('Prezenční listina'!F38=0,\"\",'Prezenční listina'!H38)","v":"C"}]
[61,{"$f":"IF('Prezenční listina'!F42=0,\"\",'Prezenční listina'!F42)","v":80},{"$f":"IF('Prezenční listina'!F42=0,\"\",'Prezenční listina'!B42)","v":"Petrů"},{"$f":"IF('Prezenční listina'!F42=0,\"\",'Prezenční listina'!C42)","v":"Roman"},{"$f":"IF('Prezenční listina'!F42=0,\"\",'Prezenční listina'!D42)","v":1976},{"$f":"IF('Prezenční listina'!F42=0,\"\",'Prezenční listina'!E42)","v":"Drnovice"},{"$f":"IF('Prezenční listina'!F42=0,\"\",'Prezenční listina'!H42)","v":"B"}]
[62,{"$f":"IF('Prezenční listina'!F50=0,\"\",'Prezenční listina'!F50)","v":82},{"$f":"IF('Prezenční listina'!F50=0,\"\",'Prezenční listina'!B50)","v":"Šorf"},{"$f":"IF('Prezenční listina'!F50=0,\"\",'Prezenční listina'!C50)","v":"Ivo"},{"$f":"IF('Prezenční listina'!F50=0,\"\",'Prezenční listina'!D50)","v":1975},{"$f":"IF('Prezenční listina'!F50=0,\"\",'Prezenční listina'!E50)","v":"ABND Racing Team Bystřice nad Pernštejnem"},{"$f":"IF('Prezenční listina'!F50=0,\"\",'Prezenční listina'!H50)","v":"B"}]
[63,{"$f":"IF('Prezenční listina'!F40=0,\"\",'Prezenční listina'!F40)","v":83},{"$f":"IF('Prezenční listina'!F40=0,\"\",'Prezenční listina'!B40)","v":"Orálek"},{"$f":"IF('Prezenční listina'!F40=0,\"\",'Prezenční listina'!C40)","v":"Daniel"},{"$f":"IF('Prezenční listina'!F40=0,\"\",'Prezenční listina'!D40)","v":1970},{"$f":"IF('Prezenční listina'!F40=0,\"\",'Prezenční listina'!E40)","v":"adidas Boost Team/AC Moravská Slávia Brno"},{"$f":"IF('Prezenční listina'!F40=0,\"\",'Prezenční listina'!H40)","v":"B"}]
[64,{"$f":"IF('Prezenční listina'!F43=0,\"\",'Prezenční listina'!F43)","v":84},{"$f":"IF('Prezenční listina'!F43=0,\"\",'Prezenční listina'!B43)","v":"Podmelová"},{"$f":"IF('Prezenční listina'!F43=0,\"\",'Prezenční listina'!C43)","v":"Vilma"},{"$f":"IF('Prezenční listina'!F43=0,\"\",'Prezenční listina'!D43)","v":1962},{"$f":"IF('Prezenční listina'!F43=0,\"\",'Prezenční listina'!E43)","v":"AC Moravská Slávia Brno"},{"$f":"IF('Prezenční listina'!F43=0,\"\",'Prezenční listina'!H43)","v":"H"}]
[65,{"$f":"IF('Prezenční listina'!F45=0,\"\",'Prezenční listina'!F45)","v":85},{"$f":"IF('Prezenční listina'!F45=0,\"\",'Prezenční listina'!B45)","v":"Řezníček"},{"$f":"IF('Prezenční listina'!F45=0,\"\",'Prezenční listina'!C45)","v":"Roman"},{"$f":"IF('Prezenční listina'!F45=0,\"\",'Prezenční listina'!D45)","v":1977},{"$f":"IF('Prezenční listina'!F45=0,\"\",'Prezenční listina'!E45)","v":"Žďár nad Sázavou"},{"$f":"IF('Prezenční listina'!F45=0,\"\",'Prezenční listina'!H45)","v":"A"}]
[66,{"$f":"IF('Prezenční listina'!F51=0,\"\",'Prezenční listina'!F51)","v":86},{"$f":"IF('Prezenční listina'!F51=0,\"\",'Prezenční listina'!B51)","v":"Šperka"},{"$f":"IF('Prezenční listina'!F51=0,\"\",'Prezenční listina'!C51)","v":"Oldřich"},{"$f":"IF('Prezenční listina'!F51=0,\"\",'Prezenční listina'!D51)","v":1956},{"$f":"IF('Prezenční listina'!F51=0,\"\",'Prezenční listina'!E51)","v":"Jedovnice"},{"$f":"IF('Prezenční listina'!F51=0,\"\",'Prezenční listina'!H51)","v":"D"}]
[67,{"$f":"IF('Prezenční listina'!F79=0,\"\",'Prezenční listina'!F79)","v":87},{"$f":"IF('Prezenční listina'!F79=0,\"\",'Prezenční listina'!B79)","v":"Hančl"},{"$f":"IF('Prezenční listina'!F79=0,\"\",'Prezenční listina'!C79)","v":"Roman"},{"$f":"IF('Prezenční listina'!F79=0,\"\",'Prezenční listina'!D79)","v":1967},{"$f":"IF('Prezenční listina'!F79=0,\"\",'Prezenční listina'!E79)","v":"Tišnov"},{"$f":"IF('Prezenční listina'!F79=0,\"\",'Prezenční listina'!H79)","v":"B"}]
[68,{"$f":"IF('Prezenční listina'!F56=0,\"\",'Prezenční listina'!F56)","v":89},{"$f":"IF('Prezenční listina'!F56=0,\"\",'Prezenční listina'!B56)","v":"Weis"},{"$f":"IF('Prezenční listina'!F56=0,\"\",'Prezenční listina'!C56)","v":"Josef"},{"$f":"IF('Prezenční listina'!F56=0,\"\",'Prezenční listina'!D56)","v":1974},{"$f":"IF('Prezenční listina'!F56=0,\"\",'Prezenční listina'!E56)","v":"Elite Sport Boskovice"},{"$f":"IF('Prezenční listina'!F56=0,\"\",'Prezenční listina'!H56)","v":"B"}]
[69,{"$f":"IF('Prezenční listina'!F11=0,\"\",'Prezenční listina'!F11)","v":90},{"$f":"IF('Prezenční listina'!F11=0,\"\",'Prezenční listina'!B11)","v":"Hakl"},{"$f":"IF('Prezenční listina'!F11=0,\"\",'Prezenční listina'!C11)","v":"Zdeněk"},{"$f":"IF('Prezenční listina'!F11=0,\"\",'Prezenční listina'!D11)","v":1982},{"$f":"IF('Prezenční listina'!F11=0,\"\",'Prezenční listina'!E11)","v":"SK Tri Cyklochlubna"},{"$f":"IF('Prezenční listina'!F11=0,\"\",'Prezenční listina'!H11)","v":"A"}]
[{"$f":"IF(C74=\"\",\"\",A73+1)","v":70},{"$f":"IF('Prezenční listina'!F12=0,\"\",'Prezenční listina'!F12)","v":91},{"$f":"IF('Prezenční listina'!F12=0,\"\",'Prezenční listina'!B12)","v":"Hakl"},{"$f":"IF('Prezenční listina'!F12=0,\"\",'Prezenční listina'!C12)","v":"Martin"},{"$f":"IF('Prezenční listina'!F12=0,\"\",'Prezenční listina'!D12)","v":1987},{"$f":"IF('Prezenční listina'!F12=0,\"\",'Prezenční listina'!E12)","v":"Running With Those That Can't"},{"$f":"IF('Prezenční listina'!F12=0,\"\",'Prezenční listina'!H12)","v":"A"}]
[71,{"$f":"IF('Prezenční listina'!F39=0,\"\",'Prezenční listina'!F39)","v":92},{"$f":"IF('Prezenční listina'!F39=0,\"\",'Prezenční listina'!B39)","v":"Novotný"},{"$f":"IF('Prezenční listina'!F39=0,\"\",'Prezenční listina'!C39)","v":"Petr"},{"$f":"IF('Prezenční listina'!F39=0,\"\",'Prezenční listina'!D39)","v":1965},{"$f":"IF('Prezenční listina'!F39=0,\"\",'Prezenční listina'!E39)","v":"Kuřim"},{"$f":"IF('Prezenční listina'!F39=0,\"\",'Prezenční listina'!H39)","v":"C"}]
[72,{"$f":"IF('Prezenční listina'!F21=0,\"\",'Prezenční listina'!F21)","v":93},{"$f":"IF('Prezenční listina'!F21=0,\"\",'Prezenční listina'!B21)","v":"Konečný"},{"$f":"IF('Prezenční listina'!F21=0,\"\",'Prezenční listina'!C21)","v":"Libor"},{"$f":"IF('Prezenční listina'!F21=0,\"\",'Prezenční listina'!D21)","v":1971},{"$f":"IF('Prezenční listina'!F21=0,\"\",'Prezenční listina'!E21)","v":"Kuřim"},{"$f":"IF('Prezenční listina'!F21=0,\"\",'Prezenční listina'!H21)","v":"B"}]
[73,{"$f":"IF('Prezenční listina'!F80=0,\"\",'Prezenční listina'!F80)","v":94},{"$f":"IF('Prezenční listina'!F80=0,\"\",'Prezenční listina'!B80)","v":"Benc"},{"$f":"IF('Prezenční listina'!F80=0,\"\",'Prezenční listina'!C80)","v":"Karel"},{"$f":"IF('Prezenční listina'!F80=0,\"\",'Prezenční listina'!D80)","v":1975},{"$f":"IF('Prezenční listina'!F80=0,\"\",'Prezenční listina'!E80)","v":"Pivonice"},{"$f":"IF('Prezenční listina'!F80=0,\"\",'Prezenční listina'!H80)","v":"B"}]
[74,{"$f":"IF('Prezenční listina'!F81=0,\"\",'Prezenční listina'!F81)","v":95},{"$f":"IF('Prezenční listina'!F81=0,\"\",'Prezenční listina'!B81)","v":"Zourek"},{"$f":"IF('Prezenční listina'!F81=0,\"\",'Prezenční listina'!C81)","v":"Karel"},{"$f":"IF('Prezenční listina'!F81=0,\"\",'Prezenční listina'!D81)","v":1959},{"$f":"IF('Prezenční listina'!F81=0,\"\",'Prezenční listina'!E81)","v":"Bedřichovice"},{"$f":"IF('Prezenční listina'!F81=0,\"\",'Prezenční listina'!H81)","v":"C"}]
[75,{"$f":"IF('Prezenční listina'!F22=0,\"\",'Prezenční listina'!F22)","v":96},{"$f":"IF('Prezenční listina'!F22=0,\"\",'Prezenční listina'!B22)","v":"Konečný"},{"$f":"IF('Prezenční listina'!F22=0,\"\",'Prezenční listina'!C22)","v":"Jaroslav"},{"$f":"IF('Prezenční listina'!F22=0,\"\",'Prezenční listina'!D22)","v":1969},{"$f":"IF('Prezenční listina'!F22=0,\"\",'Prezenční listina'!E22)","v":"Essens Popůvky"},{"$f":"IF('Prezenční listina'!F22=0,\"\",'Prezenční listina'!H22)","v":"B"}]
[76,{"$f":"IF('Prezenční listina'!F25=0,\"\",'Prezenční listina'!F25)","v":97},{"$f":"IF('Prezenční listina'!F25=0,\"\",'Prezenční listina'!B25)","v":"Koutský"},{"$f":"IF('Prezenční listina'!F25=0,\"\",'Prezenční listina'!C25)","v":"Tomáš"},{"$f":"IF('Prezenční listina'!F25=0,\"\",'Prezenční listina'!D25)","v":1987},{"$f":"IF('Prezenční listina'!F25=0,\"\",'Prezenční listina'!E25)","v":"Ledová stěna Vír"},{"$f":"IF('Prezenční listina'!F25=0,\"\",'Prezenční listina'!H25)","v":"A"}]
[77,{"$f":"IF('Prezenční listina'!F53=0,\"\",'Prezenční listina'!F53)","v":98},{"$f":"IF('Prezenční listina'!F53=0,\"\",'Prezenční listina'!B53)","v":"Tonarová"},{"$f":"IF('Prezenční listina'!F53=0,\"\",'Prezenční listina'!C53)","v":"Miroslava"},{"$f":"IF('Prezenční listina'!F53=0,\"\",'Prezenční listina'!D53)","v":1976},{"$f":"IF('Prezenční listina'!F53=0,\"\",'Prezenční listina'!E53)","v":"Bory"},{"$f":"IF('Prezenční listina'!F53=0,\"\",'Prezenční listina'!H53)","v":"G"}]
[78,{"$f":"IF('Prezenční listina'!F82=0,\"\",'Prezenční listina'!F82)","v":99},{"$f":"IF('Prezenční listina'!F82=0,\"\",'Prezenční listina'!B82)","v":"Daněk"},{"$f":"IF('Prezenční listina'!F82=0,\"\",'Prezenční listina'!C82)","v":"Milan"},{"$f":"IF('Prezenční listina'!F82=0,\"\",'Prezenční listina'!D82)","v":1962},{"$f":"IF('Prezenční listina'!F82=0,\"\",'Prezenční listina'!E82)","v":"Horizont kola Novák Blansko"},{"$f":"IF('Prezenční listina'!F82=0,\"\",'Prezenční listina'!H82)","v":"C"}]
[79,{"$f":"IF('Prezenční listina'!F83=0,\"\",'Prezenční listina'!F83)","v":100},{"$f":"IF('Prezenční listina'!F83=0,\"\",'Prezenční listina'!B83)","v":"Šacl"},{"$f":"IF('Prezenční listina'!F83=0,\"\",'Prezenční listina'!C83)","v":"Pavel"},{"$f":"IF('Prezenční listina'!F83=0,\"\",'Prezenční listina'!D83)","v":1981},{"$f":"IF('Prezenční listina'!F83=0,\"\",'Prezenční listina'!E83)","v":"Dolní Rožínka"},{"$f":"IF('Prezenční listina'!F83=0,\"\",'Prezenční listina'!H83)","v":"A"}]
[80,{"$f":"IF('Prezenční listina'!F84=0,\"\",'Prezenční listina'!F84)","v":101},{"$f":"IF('Prezenční listina'!F84=0,\"\",'Prezenční listina'!B84)","v":"Jeneš"},{"$f":"IF('Prezenční listina'!F84=0,\"\",'Prezenční listina'!C84)","v":"Kamil"},{"$f":"IF('Prezenční listina'!F84=0,\"\",'Prezenční listina'!D84)","v":1984},{"$f":"IF('Prezenční listina'!F84=0,\"\",'Prezenční listina'!E84)","v":"3KJRUN"},{"$f":"IF('Prezenční listina'!F84=0,\"\",'Prezenční listina'!H84)","v":"A"}]
["",{"$f":"IF('Prezenční listina'!F31=0,\"\",'Prezenční listina'!F31)","v":""},{"$f":"IF('Prezenční listina'!F31=0,\"\",'Prezenční listina'!B31)","v":""},{"$f":"IF('Prezenční listina'!F31=0,\"\",'Prezenční listina'!C31)","v":""},{"$f":"IF('Prezenční listina'!F31=0,\"\",'Prezenční listina'!D31)","v":""},{"$f":"IF('Prezenční listina'!F31=0,\"\",'Prezenční listina'!E31)","v":""},{"$f":"IF('Prezenční listina'!F31=0,\"\",'Prezenční listina'!H31)","v":""}]
["",{"$f":"IF('Prezenční listina'!F85=0,\"\",'Prezenční listina'!F85)","v":""},{"$f":"IF('Prezenční listina'!F85=0,\"\",'Prezenční listina'!B85)","v":""},{"$f":"IF('Prezenční listina'!F85=0,\"\",'Prezenční listina'!C85)","v":""},{"$f":"IF('Prezenční listina'!F85=0,\"\",'Prezenční listina'!D85)","v":""},{"$f":"IF('Prezenční listina'!F85=0,\"\",'Prezenční listina'!E85)","v":""},{"$f":"IF('Prezenční listina'!F85=0,\"\",'Prezenční listina'!H85)","v":""}]
["",{"$f":"IF('Prezenční listina'!F86=0,\"\",'Prezenční listina'!F86)","v":""},{"$f":"IF('Prezenční listina'!F86=0,\"\",'Prezenční listina'!B86)","v":""},{"$f":"IF('Prezenční listina'!F86=0,\"\",'Prezenční listina'!C86)","v":""},{"$f":"IF('Prezenční listina'!F86=0,\"\",'Prezenční listina'!D86)","v":""},{"$f":"IF('Prezenční listina'!F86=0,\"\",'Prezenční listina'!E86)","v":""},{"$f":"IF('Prezenční listina'!F86=0,\"\",'Prezenční listina'!H86)","v":""}]
["",{"$f":"IF('Prezenční listina'!F87=0,\"\",'Prezenční listina'!F87)","v":""},{"$f":"IF('Prezenční listina'!F87=0,\"\",'Prezenční listina'!B87)","v":""},{"$f":"IF('Prezenční listina'!F87=0,\"\",'Prezenční listina'!C87)","v":""},{"$f":"IF('Prezenční listina'!F87=0,\"\",'Prezenční listina'!D87)","v":""},{"$f":"IF('Prezenční listina'!F87=0,\"\",'Prezenční listina'!E87)","v":""},{"$f":"IF('Prezenční listina'!F87=0,\"\",'Prezenční listina'!H87)","v":""}]
["",{"$f":"IF('Prezenční listina'!F88=0,\"\",'Prezenční listina'!F88)","v":""},{"$f":"IF('Prezenční listina'!F88=0,\"\",'Prezenční listina'!B88)","v":""},{"$f":"IF('Prezenční listina'!F88=0,\"\",'Prezenční listina'!C88)","v":""},{"$f":"IF('Prezenční listina'!F88=0,\"\",'Prezenční listina'!D88)","v":""},{"$f":"IF('Prezenční listina'!F88=0,\"\",'Prezenční listina'!E88)","v":""},{"$f":"IF('Prezenční listina'!F88=0,\"\",'Prezenční listina'!H88)","v":""}]
["",{"$f":"IF('Prezenční listina'!F89=0,\"\",'Prezenční listina'!F89)","v":""},{"$f":"IF('Prezenční listina'!F89=0,\"\",'Prezenční listina'!B89)","v":""},{"$f":"IF('Prezenční listina'!F89=0,\"\",'Prezenční listina'!C89)","v":""},{"$f":"IF('Prezenční listina'!F89=0,\"\",'Prezenční listina'!D89)","v":""},{"$f":"IF('Prezenční listina'!F89=0,\"\",'Prezenční listina'!E89)","v":""},{"$f":"IF('Prezenční listina'!F89=0,\"\",'Prezenční listina'!H89)","v":""}]
[{"$f":"IF(C91=\"\",\"\",A90+1)","v":""},{"$f":"IF('Prezenční listina'!F90=0,\"\",'Prezenční listina'!F90)","v":""},{"$f":"IF('Prezenční listina'!F90=0,\"\",'Prezenční listina'!B90)","v":""},{"$f":"IF('Prezenční listina'!F90=0,\"\",'Prezenční listina'!C90)","v":""},{"$f":"IF('Prezenční listina'!F90=0,\"\",'Prezenční listina'!D90)","v":""},{"$f":"IF('Prezenční listina'!F90=0,\"\",'Prezenční listina'!E90)","v":""},{"$f":"IF('Prezenční listina'!F90=0,\"\",'Prezenční listina'!H90)","v":""}]
["",{"$f":"IF('Prezenční listina'!F91=0,\"\",'Prezenční listina'!F91)","v":""},{"$f":"IF('Prezenční listina'!F91=0,\"\",'Prezenční listina'!B91)","v":""},{"$f":"IF('Prezenční listina'!F91=0,\"\",'Prezenční listina'!C91)","v":""},{"$f":"IF('Prezenční listina'!F91=0,\"\",'Prezenční listina'!D91)","v":""},{"$f":"IF('Prezenční listina'!F91=0,\"\",'Prezenční listina'!E91)","v":""},{"$f":"IF('Prezenční listina'!F91=0,\"\",'Prezenční listina'!H91)","v":""}]
["",{"$f":"IF('Prezenční listina'!F92=0,\"\",'Prezenční listina'!F92)","v":""},{"$f":"IF('Prezenční listina'!F92=0,\"\",'Prezenční listina'!B92)","v":""},{"$f":"IF('Prezenční listina'!F92=0,\"\",'Prezenční listina'!C92)","v":""},{"$f":"IF('Prezenční listina'!F92=0,\"\",'Prezenční listina'!D92)","v":""},{"$f":"IF('Prezenční listina'!F92=0,\"\",'Prezenční listina'!E92)","v":""},{"$f":"IF('Prezenční listina'!F92=0,\"\",'Prezenční listina'!H92)","v":""}]
["",{"$f":"IF('Prezenční listina'!F93=0,\"\",'Prezenční listina'!F93)","v":""},{"$f":"IF('Prezenční listina'!F93=0,\"\",'Prezenční listina'!B93)","v":""},{"$f":"IF('Prezenční listina'!F93=0,\"\",'Prezenční listina'!C93)","v":""},{"$f":"IF('Prezenční listina'!F93=0,\"\",'Prezenční listina'!D93)","v":""},{"$f":"IF('Prezenční listina'!F93=0,\"\",'Prezenční listina'!E93)","v":""},{"$f":"IF('Prezenční listina'!F93=0,\"\",'Prezenční listina'!H93)","v":""}]
["",{"$f":"IF('Prezenční listina'!F94=0,\"\",'Prezenční listina'!F94)","v":""},{"$f":"IF('Prezenční listina'!F94=0,\"\",'Prezenční listina'!B94)","v":""},{"$f":"IF('Prezenční listina'!F94=0,\"\",'Prezenční listina'!C94)","v":""},{"$f":"IF('Prezenční listina'!F94=0,\"\",'Prezenční listina'!D94)","v":""},{"$f":"IF('Prezenční listina'!F94=0,\"\",'Prezenční listina'!E94)","v":""},{"$f":"IF('Prezenční listina'!F94=0,\"\",'Prezenční listina'!H94)","v":""}]
["",{"$f":"IF('Prezenční listina'!F95=0,\"\",'Prezenční listina'!F95)","v":""},{"$f":"IF('Prezenční listina'!F95=0,\"\",'Prezenční listina'!B95)","v":""},{"$f":"IF('Prezenční listina'!F95=0,\"\",'Prezenční listina'!C95)","v":""},{"$f":"IF('Prezenční listina'!F95=0,\"\",'Prezenční listina'!D95)","v":""},{"$f":"IF('Prezenční listina'!F95=0,\"\",'Prezenční listina'!E95)","v":""},{"$f":"IF('Prezenční listina'!F95=0,\"\",'Prezenční listina'!H95)","v":""}]
["",{"$f":"IF('Prezenční listina'!F96=0,\"\",'Prezenční listina'!F96)","v":""},{"$f":"IF('Prezenční listina'!F96=0,\"\",'Prezenční listina'!B96)","v":""},{"$f":"IF('Prezenční listina'!F96=0,\"\",'Prezenční listina'!C96)","v":""},{"$f":"IF('Prezenční listina'!F96=0,\"\",'Prezenční listina'!D96)","v":""},{"$f":"IF('Prezenční listina'!F96=0,\"\",'Prezenční listina'!E96)","v":""},{"$f":"IF('Prezenční listina'!F96=0,\"\",'Prezenční listina'!H96)","v":""}]
["",{"$f":"IF('Prezenční listina'!F97=0,\"\",'Prezenční listina'!F97)","v":""},{"$f":"IF('Prezenční listina'!F97=0,\"\",'Prezenční listina'!B97)","v":""},{"$f":"IF('Prezenční listina'!F97=0,\"\",'Prezenční listina'!C97)","v":""},{"$f":"IF('Prezenční listina'!F97=0,\"\",'Prezenční listina'!D97)","v":""},{"$f":"IF('Prezenční listina'!F97=0,\"\",'Prezenční listina'!E97)","v":""},{"$f":"IF('Prezenční listina'!F97=0,\"\",'Prezenční listina'!H97)","v":""}]
["",{"$f":"IF('Prezenční listina'!F98=0,\"\",'Prezenční listina'!F98)","v":""},{"$f":"IF('Prezenční listina'!F98=0,\"\",'Prezenční listina'!B98)","v":""},{"$f":"IF('Prezenční listina'!F98=0,\"\",'Prezenční listina'!C98)","v":""},{"$f":"IF('Prezenční listina'!F98=0,\"\",'Prezenční listina'!D98)","v":""},{"$f":"IF('Prezenční listina'!F98=0,\"\",'Prezenční listina'!E98)","v":""},{"$f":"IF('Prezenční listina'!F98=0,\"\",'Prezenční listina'!H98)","v":""}]
["",{"$f":"IF('Prezenční listina'!F99=0,\"\",'Prezenční listina'!F99)","v":""},{"$f":"IF('Prezenční listina'!F99=0,\"\",'Prezenční listina'!B99)","v":""},{"$f":"IF('Prezenční listina'!F99=0,\"\",'Prezenční listina'!C99)","v":""},{"$f":"IF('Prezenční listina'!F99=0,\"\",'Prezenční listina'!D99)","v":""},{"$f":"IF('Prezenční listina'!F99=0,\"\",'Prezenční listina'!E99)","v":""},{"$f":"IF('Prezenční listina'!F99=0,\"\",'Prezenční listina'!H99)","v":""}]
["",{"$f":"IF('Prezenční listina'!F30=0,\"\",'Prezenční listina'!F30)","v":""},{"$f":"IF('Prezenční listina'!F30=0,\"\",'Prezenční listina'!B30)","v":""},{"$f":"IF('Prezenční listina'!F30=0,\"\",'Prezenční listina'!C30)","v":""},{"$f":"IF('Prezenční listina'!F30=0,\"\",'Prezenční listina'!D30)","v":""},{"$f":"IF('Prezenční listina'!F30=0,\"\",'Prezenční listina'!E30)","v":""},{"$f":"IF('Prezenční listina'!F30=0,\"\",'Prezenční listina'!H30)","v":""}]
["",{"$f":"IF('Prezenční listina'!F100=0,\"\",'Prezenční listina'!F100)","v":""},{"$f":"IF('Prezenční listina'!F100=0,\"\",'Prezenční listina'!B100)","v":""},{"$f":"IF('Prezenční listina'!F100=0,\"\",'Prezenční listina'!C100)","v":""},{"$f":"IF('Prezenční listina'!F100=0,\"\",'Prezenční listina'!D100)","v":""},{"$f":"IF('Prezenční listina'!F100=0,\"\",'Prezenční listina'!E100)","v":""},{"$f":"IF('Prezenční listina'!F100=0,\"\",'Prezenční listina'!H100)","v":""}]
["",{"$f":"IF('Prezenční listina'!F101=0,\"\",'Prezenční listina'!F101)","v":""},{"$f":"IF('Prezenční listina'!F101=0,\"\",'Prezenční listina'!B101)","v":""},{"$f":"IF('Prezenční listina'!F101=0,\"\",'Prezenční listina'!C101)","v":""},{"$f":"IF('Prezenční listina'!F101=0,\"\",'Prezenční listina'!D101)","v":""},{"$f":"IF('Prezenční listina'!F101=0,\"\",'Prezenční listina'!E101)","v":""},{"$f":"IF('Prezenční listina'!F101=0,\"\",'Prezenční listina'!H101)","v":""}]
["",{"$f":"IF('Prezenční listina'!F102=0,\"\",'Prezenční listina'!F102)","v":""},{"$f":"IF('Prezenční listina'!F102=0,\"\",'Prezenční listina'!B102)","v":""},{"$f":"IF('Prezenční listina'!F102=0,\"\",'Prezenční listina'!C102)","v":""},{"$f":"IF('Prezenční listina'!F102=0,\"\",'Prezenční listina'!D102)","v":""},{"$f":"IF('Prezenční listina'!F102=0,\"\",'Prezenční listina'!E102)","v":""},{"$f":"IF('Prezenční listina'!F102=0,\"\",'Prezenční listina'!H102)","v":""}]
["",{"$f":"IF('Prezenční listina'!F103=0,\"\",'Prezenční listina'!F103)","v":""},{"$f":"IF('Prezenční listina'!F103=0,\"\",'Prezenční listina'!B103)","v":""},{"$f":"IF('Prezenční listina'!F103=0,\"\",'Prezenční listina'!C103)","v":""},{"$f":"IF('Prezenční listina'!F103=0,\"\",'Prezenční listina'!D103)","v":""},{"$f":"IF('Prezenční listina'!F103=0,\"\",'Prezenční listina'!E103)","v":""},{"$f":"IF('Prezenční listina'!F103=0,\"\",'Prezenční listina'!H103)","v":""}]
["",{"$f":"IF('Prezenční listina'!F104=0,\"\",'Prezenční listina'!F104)","v":""},{"$f":"IF('Prezenční listina'!F104=0,\"\",'Prezenční listina'!B104)","v":""},{"$f":"IF('Prezenční listina'!F104=0,\"\",'Prezenční listina'!C104)","v":""},{"$f":"IF('Prezenční listina'!F104=0,\"\",'Prezenční listina'!D104)","v":""},{"$f":"IF('Prezenční listina'!F104=0,\"\",'Prezenční listina'!E104)","v":""},{"$f":"IF('Prezenční listina'!F104=0,\"\",'Prezenční listina'!H104)","v":""}]
["",{"$f":"IF('Prezenční listina'!F105=0,\"\",'Prezenční listina'!F105)","v":""},{"$f":"IF('Prezenční listina'!F105=0,\"\",'Prezenční listina'!B105)","v":""},{"$f":"IF('Prezenční listina'!F105=0,\"\",'Prezenční listina'!C105)","v":""},{"$f":"IF('Prezenční listina'!F105=0,\"\",'Prezenční listina'!D105)","v":""},{"$f":"IF('Prezenční listina'!F105=0,\"\",'Prezenční listina'!E105)","v":""},{"$f":"IF('Prezenční listina'!F105=0,\"\",'Prezenční listina'!H105)","v":""}]
["",{"$f":"IF('Prezenční listina'!F106=0,\"\",'Prezenční listina'!F106)","v":""},{"$f":"IF('Prezenční listina'!F106=0,\"\",'Prezenční listina'!B106)","v":""},{"$f":"IF('Prezenční listina'!F106=0,\"\",'Prezenční listina'!C106)","v":""},{"$f":"IF('Prezenční listina'!F106=0,\"\",'Prezenční listina'!D106)","v":""},{"$f":"IF('Prezenční listina'!F106=0,\"\",'Prezenční listina'!E106)","v":""},{"$f":"IF('Prezenční listina'!F106=0,\"\",'Prezenční listina'!H106)","v":""}]
["",{"$f":"IF('Prezenční listina'!F107=0,\"\",'Prezenční listina'!F107)","v":""},{"$f":"IF('Prezenční listina'!F107=0,\"\",'Prezenční listina'!B107)","v":""},{"$f":"IF('Prezenční listina'!F107=0,\"\",'Prezenční listina'!C107)","v":""},{"$f":"IF('Prezenční listina'!F107=0,\"\",'Prezenční listina'!D107)","v":""},{"$f":"IF('Prezenční listina'!F107=0,\"\",'Prezenční listina'!E107)","v":""},{"$f":"IF('Prezenční listina'!F107=0,\"\",'Prezenční listina'!H107)","v":""}]
["",{"$f":"IF('Prezenční listina'!F108=0,\"\",'Prezenční listina'!F108)","v":""},{"$f":"IF('Prezenční listina'!F108=0,\"\",'Prezenční listina'!B108)","v":""},{"$f":"IF('Prezenční listina'!F108=0,\"\",'Prezenční listina'!C108)","v":""},{"$f":"IF('Prezenční listina'!F108=0,\"\",'Prezenční listina'!D108)","v":""},{"$f":"IF('Prezenční listina'!F108=0,\"\",'Prezenční listina'!E108)","v":""},{"$f":"IF('Prezenční listina'!F108=0,\"\",'Prezenční listina'!H108)","v":""}]
["",{"$f":"IF('Prezenční listina'!F109=0,\"\",'Prezenční listina'!F109)","v":""},{"$f":"IF('Prezenční listina'!F109=0,\"\",'Prezenční listina'!B109)","v":""},{"$f":"IF('Prezenční listina'!F109=0,\"\",'Prezenční listina'!C109)","v":""},{"$f":"IF('Prezenční listina'!F109=0,\"\",'Prezenční listina'!D109)","v":""},{"$f":"IF('Prezenční listina'!F109=0,\"\",'Prezenční listina'!E109)","v":""},{"$f":"IF('Prezenční listina'!F109=0,\"\",'Prezenční listina'!H109)","v":""}]
["",{"$f":"IF('Prezenční listina'!F110=0,\"\",'Prezenční listina'!F110)","v":""},{"$f":"IF('Prezenční listina'!F110=0,\"\",'Prezenční listina'!B110)","v":""},{"$f":"IF('Prezenční listina'!F110=0,\"\",'Prezenční listina'!C110)","v":""},{"$f":"IF('Prezenční listina'!F110=0,\"\",'Prezenční listina'!D110)","v":""},{"$f":"IF('Prezenční listina'!F110=0,\"\",'Prezenční listina'!E110)","v":""},{"$f":"IF('Prezenční listina'!F110=0,\"\",'Prezenční listina'!H110)","v":""}]
["",{"$f":"IF('Prezenční listina'!F111=0,\"\",'Prezenční listina'!F111)","v":""},{"$f":"IF('Prezenční listina'!F111=0,\"\",'Prezenční listina'!B111)","v":""},{"$f":"IF('Prezenční listina'!F111=0,\"\",'Prezenční listina'!C111)","v":""},{"$f":"IF('Prezenční listina'!F111=0,\"\",'Prezenční listina'!D111)","v":""},{"$f":"IF('Prezenční listina'!F111=0,\"\",'Prezenční listina'!E111)","v":""},{"$f":"IF('Prezenční listina'!F111=0,\"\",'Prezenční listina'!H111)","v":""}]
["",{"$f":"IF('Prezenční listina'!F112=0,\"\",'Prezenční listina'!F112)","v":""},{"$f":"IF('Prezenční listina'!F112=0,\"\",'Prezenční listina'!B112)","v":""},{"$f":"IF('Prezenční listina'!F112=0,\"\",'Prezenční listina'!C112)","v":""},{"$f":"IF('Prezenční listina'!F112=0,\"\",'Prezenční listina'!D112)","v":""},{"$f":"IF('Prezenční listina'!F112=0,\"\",'Prezenční listina'!E112)","v":""},{"$f":"IF('Prezenční listina'!F112=0,\"\",'Prezenční listina'!H112)","v":""}]
["",{"$f":"IF('Prezenční listina'!F113=0,\"\",'Prezenční listina'!F113)","v":""},{"$f":"IF('Prezenční listina'!F113=0,\"\",'Prezenční listina'!B113)","v":""},{"$f":"IF('Prezenční listina'!F113=0,\"\",'Prezenční listina'!C113)","v":""},{"$f":"IF('Prezenční listina'!F113=0,\"\",'Prezenční listina'!D113)","v":""},{"$f":"IF('Prezenční listina'!F113=0,\"\",'Prezenční listina'!E113)","v":""},{"$f":"IF('Prezenční listina'!F113=0,\"\",'Prezenční listina'!H113)","v":""}]
["",{"$f":"IF('Prezenční listina'!F114=0,\"\",'Prezenční listina'!F114)","v":""},{"$f":"IF('Prezenční listina'!F114=0,\"\",'Prezenční listina'!B114)","v":""},{"$f":"IF('Prezenční listina'!F114=0,\"\",'Prezenční listina'!C114)","v":""},{"$f":"IF('Prezenční listina'!F114=0,\"\",'Prezenční listina'!D114)","v":""},{"$f":"IF('Prezenční listina'!F114=0,\"\",'Prezenční listina'!E114)","v":""},{"$f":"IF('Prezenční listina'!F114=0,\"\",'Prezenční listina'!H114)","v":""}]
["",{"$f":"IF('Prezenční listina'!F115=0,\"\",'Prezenční listina'!F115)","v":""},{"$f":"IF('Prezenční listina'!F115=0,\"\",'Prezenční listina'!B115)","v":""},{"$f":"IF('Prezenční listina'!F115=0,\"\",'Prezenční listina'!C115)","v":""},{"$f":"IF('Prezenční listina'!F115=0,\"\",'Prezenční listina'!D115)","v":""},{"$f":"IF('Prezenční listina'!F115=0,\"\",'Prezenční listina'!E115)","v":""},{"$f":"IF('Prezenční listina'!F115=0,\"\",'Prezenční listina'!H115)","v":""}]
["",{"$f":"IF('Prezenční listina'!F116=0,\"\",'Prezenční listina'!F116)","v":""},{"$f":"IF('Prezenční listina'!F116=0,\"\",'Prezenční listina'!B116)","v":""},{"$f":"IF('Prezenční listina'!F116=0,\"\",'Prezenční listina'!C116)","v":""},{"$f":"IF('Prezenční listina'!F116=0,\"\",'Prezenční listina'!D116)","v":""},{"$f":"IF('Prezenční listina'!F116=0,\"\",'Prezenční listina'!E116)","v":""},{"$f":"IF('Prezenční listina'!F116=0,\"\",'Prezenční listina'!H116)","v":""}]
["",{"$f":"IF('Prezenční listina'!F117=0,\"\",'Prezenční listina'!F117)","v":""},{"$f":"IF('Prezenční listina'!F117=0,\"\",'Prezenční listina'!B117)","v":""},{"$f":"IF('Prezenční listina'!F117=0,\"\",'Prezenční listina'!C117)","v":""},{"$f":"IF('Prezenční listina'!F117=0,\"\",'Prezenční listina'!D117)","v":""},{"$f":"IF('Prezenční listina'!F117=0,\"\",'Prezenční listina'!E117)","v":""},{"$f":"IF('Prezenční listina'!F117=0,\"\",'Prezenční listina'!H117)","v":""}]
["",{"$f":"IF('Prezenční listina'!F118=0,\"\",'Prezenční listina'!F118)","v":""},{"$f":"IF('Prezenční listina'!F118=0,\"\",'Prezenční listina'!B118)","v":""},{"$f":"IF('Prezenční listina'!F118=0,\"\",'Prezenční listina'!C118)","v":""},{"$f":"IF('Prezenční listina'!F118=0,\"\",'Prezenční listina'!D118)","v":""},{"$f":"IF('Prezenční listina'!F118=0,\"\",'Prezenční listina'!E118)","v":""},{"$f":"IF('Prezenční listina'!F118=0,\"\",'Prezenční listina'!H118)","v":""}]
["",{"$f":"IF('Prezenční listina'!F119=0,\"\",'Prezenční listina'!F119)","v":""},{"$f":"IF('Prezenční listina'!F119=0,\"\",'Prezenční listina'!B119)","v":""},{"$f":"IF('Prezenční listina'!F119=0,\"\",'Prezenční listina'!C119)","v":""},{"$f":"IF('Prezenční listina'!F119=0,\"\",'Prezenční listina'!D119)","v":""},{"$f":"IF('Prezenční listina'!F119=0,\"\",'Prezenční listina'!E119)","v":""},{"$f":"IF('Prezenční listina'!F119=0,\"\",'Prezenční listina'!H119)","v":""}]
["",{"$f":"IF('Prezenční listina'!F120=0,\"\",'Prezenční listina'!F120)","v":""},{"$f":"IF('Prezenční listina'!F120=0,\"\",'Prezenční listina'!B120)","v":""},{"$f":"IF('Prezenční listina'!F120=0,\"\",'Prezenční listina'!C120)","v":""},{"$f":"IF('Prezenční listina'!F120=0,\"\",'Prezenční listina'!D120)","v":""},{"$f":"IF('Prezenční listina'!F120=0,\"\",'Prezenční listina'!E120)","v":""},{"$f":"IF('Prezenční listina'!F120=0,\"\",'Prezenční listina'!H120)","v":""}]
["",{"$f":"IF('Prezenční listina'!F121=0,\"\",'Prezenční listina'!F121)","v":""},{"$f":"IF('Prezenční listina'!F121=0,\"\",'Prezenční listina'!B121)","v":""},{"$f":"IF('Prezenční listina'!F121=0,\"\",'Prezenční listina'!C121)","v":""},{"$f":"IF('Prezenční listina'!F121=0,\"\",'Prezenční listina'!D121)","v":""},{"$f":"IF('Prezenční listina'!F121=0,\"\",'Prezenční listina'!E121)","v":""},{"$f":"IF('Prezenční listina'!F121=0,\"\",'Prezenční listina'!H121)","v":""}]
["",{"$f":"IF('Prezenční listina'!F122=0,\"\",'Prezenční listina'!F122)","v":""},{"$f":"IF('Prezenční listina'!F122=0,\"\",'Prezenční listina'!B122)","v":""},{"$f":"IF('Prezenční listina'!F122=0,\"\",'Prezenční listina'!C122)","v":""},{"$f":"IF('Prezenční listina'!F122=0,\"\",'Prezenční listina'!D122)","v":""},{"$f":"IF('Prezenční listina'!F122=0,\"\",'Prezenční listina'!E122)","v":""},{"$f":"IF('Prezenční listina'!F122=0,\"\",'Prezenční listina'!H122)","v":""}]
["",{"$f":"IF('Prezenční listina'!F123=0,\"\",'Prezenční listina'!F123)","v":""},{"$f":"IF('Prezenční listina'!F123=0,\"\",'Prezenční listina'!B123)","v":""},{"$f":"IF('Prezenční listina'!F123=0,\"\",'Prezenční listina'!C123)","v":""},{"$f":"IF('Prezenční listina'!F123=0,\"\",'Prezenční listina'!D123)","v":""},{"$f":"IF('Prezenční listina'!F123=0,\"\",'Prezenční listina'!E123)","v":""},{"$f":"IF('Prezenční listina'!F123=0,\"\",'Prezenční listina'!H123)","v":""}]
["",{"$f":"IF('Prezenční listina'!F124=0,\"\",'Prezenční listina'!F124)","v":""},{"$f":"IF('Prezenční listina'!F124=0,\"\",'Prezenční listina'!B124)","v":""},{"$f":"IF('Prezenční listina'!F124=0,\"\",'Prezenční listina'!C124)","v":""},{"$f":"IF('Prezenční listina'!F124=0,\"\",'Prezenční listina'!D124)","v":""},{"$f":"IF('Prezenční listina'!F124=0,\"\",'Prezenční listina'!E124)","v":""},{"$f":"IF('Prezenční listina'!F124=0,\"\",'Prezenční listina'!H124)","v":""}]
["",{"$f":"IF('Prezenční listina'!F125=0,\"\",'Prezenční listina'!F125)","v":""},{"$f":"IF('Prezenční listina'!F125=0,\"\",'Prezenční listina'!B125)","v":""},{"$f":"IF('Prezenční listina'!F125=0,\"\",'Prezenční listina'!C125)","v":""},{"$f":"IF('Prezenční listina'!F125=0,\"\",'Prezenční listina'!D125)","v":""},{"$f":"IF('Prezenční listina'!F125=0,\"\",'Prezenční listina'!E125)","v":""},{"$f":"IF('Prezenční listina'!F125=0,\"\",'Prezenční listina'!H125)","v":""}]
["",{"$f":"IF('Prezenční listina'!F126=0,\"\",'Prezenční listina'!F126)","v":""},{"$f":"IF('Prezenční listina'!F126=0,\"\",'Prezenční listina'!B126)","v":""},{"$f":"IF('Prezenční listina'!F126=0,\"\",'Prezenční listina'!C126)","v":""},{"$f":"IF('Prezenční listina'!F126=0,\"\",'Prezenční listina'!D126)","v":""},{"$f":"IF('Prezenční listina'!F126=0,\"\",'Prezenční listina'!E126)","v":""},{"$f":"IF('Prezenční listina'!F126=0,\"\",'Prezenční listina'!H126)","v":""}]
["",{"$f":"IF('Prezenční listina'!F127=0,\"\",'Prezenční listina'!F127)","v":""},{"$f":"IF('Prezenční listina'!F127=0,\"\",'Prezenční listina'!B127)","v":""},{"$f":"IF('Prezenční listina'!F127=0,\"\",'Prezenční listina'!C127)","v":""},{"$f":"IF('Prezenční listina'!F127=0,\"\",'Prezenční listina'!D127)","v":""},{"$f":"IF('Prezenční listina'!F127=0,\"\",'Prezenční listina'!E127)","v":""},{"$f":"IF('Prezenční listina'!F127=0,\"\",'Prezenční listina'!H127)","v":""}]
["",{"$f":"IF('Prezenční listina'!F128=0,\"\",'Prezenční listina'!F128)","v":""},{"$f":"IF('Prezenční listina'!F128=0,\"\",'Prezenční listina'!B128)","v":""},{"$f":"IF('Prezenční listina'!F128=0,\"\",'Prezenční listina'!C128)","v":""},{"$f":"IF('Prezenční listina'!F128=0,\"\",'Prezenční listina'!D128)","v":""},{"$f":"IF('Prezenční listina'!F128=0,\"\",'Prezenční listina'!E128)","v":""},{"$f":"IF('Prezenční listina'!F128=0,\"\",'Prezenční listina'!H128)","v":""}]
["",{"$f":"IF('Prezenční listina'!F129=0,\"\",'Prezenční listina'!F129)","v":""},{"$f":"IF('Prezenční listina'!F129=0,\"\",'Prezenční listina'!B129)","v":""},{"$f":"IF('Prezenční listina'!F129=0,\"\",'Prezenční listina'!C129)","v":""},{"$f":"IF('Prezenční listina'!F129=0,\"\",'Prezenční listina'!D129)","v":""},{"$f":"IF('Prezenční listina'!F129=0,\"\",'Prezenční listina'!E129)","v":""},{"$f":"IF('Prezenční listina'!F129=0,\"\",'Prezenční listina'!H129)","v":""}]
["",{"$f":"IF('Prezenční listina'!F130=0,\"\",'Prezenční listina'!F130)","v":""},{"$f":"IF('Prezenční listina'!F130=0,\"\",'Prezenční listina'!B130)","v":""},{"$f":"IF('Prezenční listina'!F130=0,\"\",'Prezenční listina'!C130)","v":""},{"$f":"IF('Prezenční listina'!F130=0,\"\",'Prezenční listina'!D130)","v":""},{"$f":"IF('Prezenční listina'!F130=0,\"\",'Prezenční listina'!E130)","v":""},{"$f":"IF('Prezenční listina'!F130=0,\"\",'Prezenční listina'!H130)","v":""}]
["",{"$f":"IF('Prezenční listina'!F131=0,\"\",'Prezenční listina'!F131)","v":""},{"$f":"IF('Prezenční listina'!F131=0,\"\",'Prezenční listina'!B131)","v":""},{"$f":"IF('Prezenční listina'!F131=0,\"\",'Prezenční listina'!C131)","v":""},{"$f":"IF('Prezenční listina'!F131=0,\"\",'Prezenční listina'!D131)","v":""},{"$f":"IF('Prezenční listina'!F131=0,\"\",'Prezenční listina'!E131)","v":""},{"$f":"IF('Prezenční listina'!F131=0,\"\",'Prezenční listina'!H131)","v":""}]
["",{"$f":"IF('Prezenční listina'!F132=0,\"\",'Prezenční listina'!F132)","v":""},{"$f":"IF('Prezenční listina'!F132=0,\"\",'Prezenční listina'!B132)","v":""},{"$f":"IF('Prezenční listina'!F132=0,\"\",'Prezenční listina'!C132)","v":""},{"$f":"IF('Prezenční listina'!F132=0,\"\",'Prezenční listina'!D132)","v":""},{"$f":"IF('Prezenční listina'!F132=0,\"\",'Prezenční listina'!E132)","v":""},{"$f":"IF('Prezenční listina'!F132=0,\"\",'Prezenční listina'!H132)","v":""}]
["",{"$f":"IF('Prezenční listina'!F133=0,\"\",'Prezenční listina'!F133)","v":""},{"$f":"IF('Prezenční listina'!F133=0,\"\",'Prezenční listina'!B133)","v":""},{"$f":"IF('Prezenční listina'!F133=0,\"\",'Prezenční listina'!C133)","v":""},{"$f":"IF('Prezenční listina'!F133=0,\"\",'Prezenční listina'!D133)","v":""},{"$f":"IF('Prezenční listina'!F133=0,\"\",'Prezenční listina'!E133)","v":""},{"$f":"IF('Prezenční listina'!F133=0,\"\",'Prezenční listina'!H133)","v":""}]
["",{"$f":"IF('Prezenční listina'!F134=0,\"\",'Prezenční listina'!F134)","v":""},{"$f":"IF('Prezenční listina'!F134=0,\"\",'Prezenční listina'!B134)","v":""},{"$f":"IF('Prezenční listina'!F134=0,\"\",'Prezenční listina'!C134)","v":""},{"$f":"IF('Prezenční listina'!F134=0,\"\",'Prezenční listina'!D134)","v":""},{"$f":"IF('Prezenční listina'!F134=0,\"\",'Prezenční listina'!E134)","v":""},{"$f":"IF('Prezenční listina'!F134=0,\"\",'Prezenční listina'!H134)","v":""}]
["",{"$f":"IF('Prezenční listina'!F135=0,\"\",'Prezenční listina'!F135)","v":""},{"$f":"IF('Prezenční listina'!F135=0,\"\",'Prezenční listina'!B135)","v":""},{"$f":"IF('Prezenční listina'!F135=0,\"\",'Prezenční listina'!C135)","v":""},{"$f":"IF('Prezenční listina'!F135=0,\"\",'Prezenční listina'!D135)","v":""},{"$f":"IF('Prezenční listina'!F135=0,\"\",'Prezenční listina'!E135)","v":""},{"$f":"IF('Prezenční listina'!F135=0,\"\",'Prezenční listina'!H135)","v":""}]
["",{"$f":"IF('Prezenční listina'!F136=0,\"\",'Prezenční listina'!F136)","v":""},{"$f":"IF('Prezenční listina'!F136=0,\"\",'Prezenční listina'!B136)","v":""},{"$f":"IF('Prezenční listina'!F136=0,\"\",'Prezenční listina'!C136)","v":""},{"$f":"IF('Prezenční listina'!F136=0,\"\",'Prezenční listina'!D136)","v":""},{"$f":"IF('Prezenční listina'!F136=0,\"\",'Prezenční listina'!E136)","v":""},{"$f":"IF('Prezenční listina'!F136=0,\"\",'Prezenční listina'!H136)","v":""}]
["",{"$f":"IF('Prezenční listina'!F137=0,\"\",'Prezenční listina'!F137)","v":""},{"$f":"IF('Prezenční listina'!F137=0,\"\",'Prezenční listina'!B137)","v":""},{"$f":"IF('Prezenční listina'!F137=0,\"\",'Prezenční listina'!C137)","v":""},{"$f":"IF('Prezenční listina'!F137=0,\"\",'Prezenční listina'!D137)","v":""},{"$f":"IF('Prezenční listina'!F137=0,\"\",'Prezenční listina'!E137)","v":""},{"$f":"IF('Prezenční listina'!F137=0,\"\",'Prezenční listina'!H137)","v":""}]
["",{"$f":"IF('Prezenční listina'!F138=0,\"\",'Prezenční listina'!F138)","v":""},{"$f":"IF('Prezenční listina'!F138=0,\"\",'Prezenční listina'!B138)","v":""},{"$f":"IF('Prezenční listina'!F138=0,\"\",'Prezenční listina'!C138)","v":""},{"$f":"IF('Prezenční listina'!F138=0,\"\",'Prezenční listina'!D138)","v":""},{"$f":"IF('Prezenční listina'!F138=0,\"\",'Prezenční listina'!E138)","v":""},{"$f":"IF('Prezenční listina'!F138=0,\"\",'Prezenční listina'!H138)","v":""}]
["",{"$f":"IF('Prezenční listina'!F139=0,\"\",'Prezenční listina'!F139)","v":""},{"$f":"IF('Prezenční listina'!F139=0,\"\",'Prezenční listina'!B139)","v":""},{"$f":"IF('Prezenční listina'!F139=0,\"\",'Prezenční listina'!C139)","v":""},{"$f":"IF('Prezenční listina'!F139=0,\"\",'Prezenční listina'!D139)","v":""},{"$f":"IF('Prezenční listina'!F139=0,\"\",'Prezenční listina'!E139)","v":""},{"$f":"IF('Prezenční listina'!F139=0,\"\",'Prezenční listina'!H139)","v":""}]

{"sheet":"Výsledková listina","index":2,"n_rows":104,"n_cols":11,"rows_kept":104,"cut":false,"hidden":false,"merged":[[0,0,0,8],[2,0,2,8],[1,0,1,8],[1,10,12,14]]}
[{"$f":"\"Výsledková listina - Malý svratecký maraton \"&'Prezenční listina'!O2","v":"Výsledková listina - Malý svratecký maraton 2016"}]
["2016-08-20",null,null,null,null,null,null,null,null,null,"\nPoté, co jsou dopsány časy VŠECH běžců, stisknout tlačítko 1.řazení \n\n\nVe sloupci B (Pořadí v kategorii) vytvořit posloupnou číselnou řadu pro každou kategorii a poté stisknout tlačítko 2.řazení\n\n\n                      !!! POZOR!!!\n\n               Použití tlačítek je nevratný krok!"]
[{"$f":"'Prezenční listina'!O2-1953&\". ročník\"","v":"63. ročník"}]
["Celkové pořadí","Pořadí v kategorii","Kategorie","Startovní číslo","Příjmení","Jméno","Narození","Oddíl / Bydliště","Čas"]
[1,1,{"$f":"'Startovní listina'!G30","v":"A"},{"$f":"'Startovní listina'!B30","v":31},{"$f":"'Startovní listina'!C30","v":"Kohut"},{"$f":"'Startovní listina'!D30","v":"Jan"},{"$f":"'Startovní listina'!E30","v":1985},{"$f":"'Startovní listina'!F30","v":"Elite Sport Team Blansko"},"01:57:10"]
[{"$f":"IF('Výsledková listina'!D5<>\"\",A5+1,\"\")","v":2},1,{"$f":"'Startovní listina'!G67","v":"B"},{"$f":"'Startovní listina'!B67","v":83},{"$f":"'Startovní listina'!C67","v":"Orálek"},{"$f":"'Startovní listina'!D67","v":"Daniel"},{"$f":"'Startovní listina'!E67","v":1970},{"$f":"'Startovní listina'!F67","v":"adidas Boost Team/AC Moravská Slávia Brno"},"01:58:15"]
[{"$f":"IF('Výsledková listina'!D6<>\"\",A6+1,\"\")","v":3},2,{"$f":"'Startovní listina'!G35","v":"A"},{"$f":"'Startovní listina'!B35","v":37},{"$f":"'Startovní listina'!C35","v":"Hrdina"},{"$f":"'Startovní listina'!D35","v":"Tomáš"},{"$f":"'Startovní listina'!E35","v":1979},{"$f":"'Startovní listina'!F35","v":"Běžecký klub Brno"},"02:12:33"]
[{"$f":"IF('Výsledková listina'!D7<>\"\",A7+1,\"\")","v":4},1,{"$f":"'Startovní listina'!G63","v":"C"},{"$f":"'Startovní listina'!B63","v":77},{"$f":"'Startovní listina'!C63","v":"Rerych"},{"$f":"'Startovní listina'!D63","v":"Jiří"},{"$f":"'Startovní listina'!E63","v":1962},{"$f":"'Startovní listina'!F63","v":"adidas Boost Team/AC Moravská Slávia Brno"},"02:15:54"]
[{"$f":"IF('Výsledková listina'!D8<>\"\",A8+1,\"\")","v":5},2,{"$f":"'Startovní listina'!G31","v":"B"},{"$f":"'Startovní listina'!B31","v":33},{"$f":"'Startovní listina'!C31","v":"Dvořáček"},{"$f":"'Startovní listina'!D31","v":"Jiří"},{"$f":"'Startovní listina'!E31","v":1968},{"$f":"'Startovní listina'!F31","v":"Elite sport team"},"02:16:31"]
[{"$f":"IF('Výsledková listina'!D9<>\"\",A9+1,\"\")","v":6},2,{"$f":"'Startovní listina'!G55","v":"C"},{"$f":"'Startovní listina'!B55","v":64},{"$f":"'Startovní listina'!C55","v":"Ožana"},{"$f":"'Startovní listina'!D55","v":"Václav"},{"$f":"'Startovní listina'!E55","v":1964},{"$f":"'Startovní listina'!F55","v":"Atletic Třebíč"},"02:17:14"]
[{"$f":"IF('Výsledková listina'!D10<>\"\",A10+1,\"\")","v":7},3,{"$f":"'Startovní listina'!G47","v":"B"},{"$f":"'Startovní listina'!B47","v":54},{"$f":"'Startovní listina'!C47","v":"Hýbl"},{"$f":"'Startovní listina'!D47","v":"Jiří"},{"$f":"'Startovní listina'!E47","v":1967},{"$f":"'Startovní listina'!F47","v":"Hrušovany u Brna"},"02:19:49"]
[{"$f":"IF('Výsledková listina'!D11<>\"\",A11+1,\"\")","v":8},3,{"$f":"'Startovní listina'!G16","v":"A"},{"$f":"'Startovní listina'!B16","v":12},{"$f":"'Startovní listina'!C16","v":"Koudelka"},{"$f":"'Startovní listina'!D16","v":"Lukáš"},{"$f":"'Startovní listina'!E16","v":1983},{"$f":"'Startovní listina'!F16","v":"AK Drnovice"},"02:20:12"]
[{"$f":"IF('Výsledková listina'!D12<>\"\",A12+1,\"\")","v":9},1,{"$f":"'Startovní listina'!G32","v":"F"},{"$f":"'Startovní listina'!B32","v":34},{"$f":"'Startovní listina'!C32","v":"Dýrová Macháčková"},{"$f":"'Startovní listina'!D32","v":"Šárka"},{"$f":"'Startovní listina'!E32","v":1983},{"$f":"'Startovní listina'!F32","v":"AK Olymp Brno"},"02:21:36"]
[{"$f":"IF('Výsledková listina'!D13<>\"\",A13+1,\"\")","v":10},3,{"$f":"'Startovní listina'!G12","v":"C"},{"$f":"'Startovní listina'!B12","v":8},{"$f":"'Startovní listina'!C12","v":"Chramosta"},{"$f":"'Startovní listina'!D12","v":"Jaroslav"},{"$f":"'Startovní listina'!E12","v":1966},{"$f":"'Startovní listina'!F12","v":"JABOJA Team Děčín"},"02:22:13"]
[{"$f":"IF('Výsledková listina'!D14<>\"\",A14+1,\"\")","v":11},4,{"$f":"'Startovní listina'!G52","v":"A"},{"$f":"'Startovní listina'!B52","v":61},{"$f":"'Startovní listina'!C52","v":"Nováček"},{"$f":"'Startovní listina'!D52","v":"Tomáš"},{"$f":"'Startovní listina'!E52","v":1983},{"$f":"'Startovní listina'!F52","v":"Atletic Třebíč"},"02:24:10"]
[{"$f":"IF('Výsledková listina'!D15<>\"\",A15+1,\"\")","v":12},2,{"$f":"'Startovní listina'!G36","v":"F"},{"$f":"'Startovní listina'!B36","v":38},{"$f":"'Startovní listina'!C36","v":"Pešáková"},{"$f":"'Startovní listina'!D36","v":"Mirka"},{"$f":"'Startovní listina'!E36","v":1985},{"$f":"'Startovní listina'!F36","v":"AC Racers Tetčice"},"02:24:57"]
[{"$f":"IF('Výsledková listina'!D16<>\"\",A16+1,\"\")","v":13},4,{"$f":"'Startovní listina'!G76","v":"B"},{"$f":"'Startovní listina'!B76","v":93},{"$f":"'Startovní listina'!C76","v":"Konečný"},{"$f":"'Startovní listina'!D76","v":"Libor"},{"$f":"'Startovní listina'!E76","v":1971},{"$f":"'Startovní listina'!F76","v":"Kuřim"},"02:25:58"]
[{"$f":"IF('Výsledková listina'!D17<>\"\",A17+1,\"\")","v":14},5,{"$f":"'Startovní listina'!G61","v":"A"},{"$f":"'Startovní listina'!B61","v":75},{"$f":"'Startovní listina'!C61","v":"Kalich"},{"$f":"'Startovní listina'!D61","v":"Radim"},{"$f":"'Startovní listina'!E61","v":1985},{"$f":"'Startovní listina'!F61","v":"Odranec"},"02:26:45"]
[{"$f":"IF('Výsledková listina'!D18<>\"\",A18+1,\"\")","v":15},5,{"$f":"'Startovní listina'!G39","v":"B"},{"$f":"'Startovní listina'!B39","v":42},{"$f":"'Startovní listina'!C39","v":"Alman"},{"$f":"'Startovní listina'!D39","v":"Dušan"},{"$f":"'Startovní listina'!E39","v":1967},{"$f":"'Startovní listina'!F39","v":"Babice nad Svitavou"},"02:27:15"]
[{"$f":"IF('Výsledková listina'!D19<>\"\",A19+1,\"\")","v":16},4,{"$f":"'Startovní listina'!G49","v":"C"},{"$f":"'Startovní listina'!B49","v":58},{"$f":"'Startovní listina'!C49","v":"Šimunek"},{"$f":"'Startovní listina'!D49","v":"Martin"},{"$f":"'Startovní listina'!E49","v":1966},{"$f":"'Startovní listina'!F49","v":"Botanka running, Modřice"},"02:28:29"]
[{"$f":"IF('Výsledková listina'!D20<>\"\",A20+1,\"\")","v":17},5,{"$f":"'Startovní listina'!G64","v":"C"},{"$f":"'Startovní listina'!B64","v":79},{"$f":"'Startovní listina'!C64","v":"Nosek"},{"$f":"'Startovní listina'!D64","v":"Pavel"},{"$f":"'Startovní listina'!E64","v":1965},{"$f":"'Startovní listina'!F64","v":"ASK Slavkov o.s."},"02:30:17"]
[{"$f":"IF('Výsledková listina'!D21<>\"\",A21+1,\"\")","v":18},6,{"$f":"'Startovní listina'!G66","v":"B"},{"$f":"'Startovní listina'!B66","v":82},{"$f":"'Startovní listina'!C66","v":"Šorf"},{"$f":"'Startovní listina'!D66","v":"Ivo"},{"$f":"'Startovní listina'!E66","v":1975},{"$f":"'Startovní listina'!F66","v":"ABND Racing Team Bystřice nad Pernštejnem"},"02:30:29"]
[{"$f":"IF('Výsledková listina'!D22<>\"\",A22+1,\"\")","v":19},7,{"$f":"'Startovní listina'!G46","v":"B"},{"$f":"'Startovní listina'!B46","v":51},{"$f":"'Startovní listina'!C46","v":"Kropáček"},{"$f":"'Startovní listina'!D46","v":"Jaroslav"},{"$f":"'Startovní listina'!E46","v":1970},{"$f":"'Startovní listina'!F46","v":"Brno"},"02:30:50"]
[{"$f":"IF('Výsledková listina'!D23<>\"\",A23+1,\"\")","v":20},6,{"$f":"'Startovní listina'!G69","v":"A"},{"$f":"'Startovní listina'!B69","v":85},{"$f":"'Startovní listina'!C69","v":"Řezníček"},{"$f":"'Startovní listina'!D69","v":"Roman"},{"$f":"'Startovní listina'!E69","v":1977},{"$f":"'Startovní listina'!F69","v":"Žďár nad Sázavou"},"02:32:08"]
[{"$f":"IF('Výsledková listina'!D24<>\"\",A24+1,\"\")","v":21},8,{"$f":"'Startovní listina'!G15","v":"B"},{"$f":"'Startovní listina'!B15","v":11},{"$f":"'Startovní listina'!C15","v":"Kopečný"},{"$f":"'Startovní listina'!D15","v":"Dušan"},{"$f":"'Startovní listina'!E15","v":1973},{"$f":"'Startovní listina'!F15","v":"AK Drnovice"},"02:32:28"]
[{"$f":"IF('Výsledková listina'!D25<>\"\",A25+1,\"\")","v":22},7,{"$f":"'Startovní listina'!G44","v":"A"},{"$f":"'Startovní listina'!B44","v":48},{"$f":"'Startovní listina'!C44","v":"Příhoda"},{"$f":"'Startovní listina'!D44","v":"Jan"},{"$f":"'Startovní listina'!E44","v":1983},{"$f":"'Startovní listina'!F44","v":"Ždánice"},"02:32:48"]
[{"$f":"IF('Výsledková listina'!D26<>\"\",A26+1,\"\")","v":23},9,{"$f":"'Startovní listina'!G33","v":"B"},{"$f":"'Startovní listina'!B33","v":35},{"$f":"'Startovní listina'!C33","v":"Dušil"},{"$f":"'Startovní listina'!D33","v":"Jaroslav"},{"$f":"'Startovní listina'!E33","v":1970},{"$f":"'Startovní listina'!F33","v":"Běžecký klub Brno"},"02:36:14"]
[{"$f":"IF('Výsledková listina'!D27<>\"\",A27+1,\"\")","v":24},8,{"$f":"'Startovní listina'!G84","v":"A"},{"$f":"'Startovní listina'!B84","v":101},{"$f":"'Startovní listina'!C84","v":"Jeneš"},{"$f":"'Startovní listina'!D84","v":"Kamil"},{"$f":"'Startovní listina'!E84","v":1984},{"$f":"'Startovní listina'!F84","v":"3KJRUN"},"02:36:24"]
[{"$f":"IF('Výsledková listina'!D28<>\"\",A28+1,\"\")","v":25},1,{"$f":"'Startovní listina'!G20","v":"H"},{"$f":"'Startovní listina'!B20","v":18},{"$f":"'Startovní listina'!C20","v":"Krátká"},{"$f":"'Startovní listina'!D20","v":"Anna"},{"$f":"'Startovní listina'!E20","v":1969},{"$f":"'Startovní listina'!F20","v":"SKP Hvězda Pardubice"},"02:37:14"]
[{"$f":"IF('Výsledková listina'!D29<>\"\",A29+1,\"\")","v":26},9,{"$f":"'Startovní listina'!G45","v":"A"},{"$f":"'Startovní listina'!B45","v":49},{"$f":"'Startovní listina'!C45","v":"Kocur"},{"$f":"'Startovní listina'!D45","v":"Lukáš"},{"$f":"'Startovní listina'!E45","v":1977},{"$f":"'Startovní listina'!F45","v":"VHS Brno"},"02:37:49"]
[{"$f":"IF('Výsledková listina'!D30<>\"\",A30+1,\"\")","v":27},10,{"$f":"'Startovní listina'!G72","v":"B"},{"$f":"'Startovní listina'!B72","v":89},{"$f":"'Startovní listina'!C72","v":"Weis"},{"$f":"'Startovní listina'!D72","v":"Josef"},{"$f":"'Startovní listina'!E72","v":1974},{"$f":"'Startovní listina'!F72","v":"Elite Sport Boskovice"},"02:38:31"]
[{"$f":"IF('Výsledková listina'!D31<>\"\",A31+1,\"\")","v":28},11,{"$f":"'Startovní listina'!G37","v":"B"},{"$f":"'Startovní listina'!B37","v":40},{"$f":"'Startovní listina'!C37","v":"Brázda"},{"$f":"'Startovní listina'!D37","v":"Richard"},{"$f":"'Startovní listina'!E37","v":1975},{"$f":"'Startovní listina'!F37","v":"AC NOTARBRAZDA.CZ"},"02:38:56"]
[{"$f":"IF('Výsledková listina'!D32<>\"\",A32+1,\"\")","v":29},10,{"$f":"'Startovní listina'!G57","v":"A"},{"$f":"'Startovní listina'!B57","v":69},{"$f":"'Startovní listina'!C57","v":"Brabenec"},{"$f":"'Startovní listina'!D57","v":"Aleš"},{"$f":"'Startovní listina'!E57","v":1987},{"$f":"'Startovní listina'!F57","v":"Žďár nad Sázavou"},"02:39:27"]
[{"$f":"IF('Výsledková listina'!D33<>\"\",A33+1,\"\")","v":30},11,{"$f":"'Startovní listina'!G5","v":"A"},{"$f":"'Startovní listina'!B5","v":1},{"$f":"'Startovní listina'!C5","v":"Kratochvíl"},{"$f":"'Startovní listina'!D5","v":"Jaroslav"},{"$f":"'Startovní listina'!E5","v":1977},{"$f":"'Startovní listina'!F5","v":"SDH Hluboké"},"02:39:33"]
[{"$f":"IF('Výsledková listina'!D34<>\"\",A34+1,\"\")","v":31},6,{"$f":"'Startovní listina'!G38","v":"C"},{"$f":"'Startovní listina'!B38","v":41},{"$f":"'Startovní listina'!C38","v":"Barták"},{"$f":"'Startovní listina'!D38","v":"Ronald"},{"$f":"'Startovní listina'!E38","v":1965},{"$f":"'Startovní listina'!F38","v":"Kuřim"},"02:41:02"]
[{"$f":"IF('Výsledková listina'!D35<>\"\",A35+1,\"\")","v":32},7,{"$f":"'Startovní listina'!G62","v":"C"},{"$f":"'Startovní listina'!B62","v":76},{"$f":"'Startovní listina'!C62","v":"Prokop"},{"$f":"'Startovní listina'!D62","v":"Ondřej"},{"$f":"'Startovní listina'!E62","v":1962},{"$f":"'Startovní listina'!F62","v":"Čau, Brno"},"02:42:58"]
[{"$f":"IF('Výsledková listina'!D36<>\"\",A36+1,\"\")","v":33},1,{"$f":"'Startovní listina'!G28","v":"D"},{"$f":"'Startovní listina'!B28","v":28},{"$f":"'Startovní listina'!C28","v":"Mareš"},{"$f":"'Startovní listina'!D28","v":"Bohumil"},{"$f":"'Startovní listina'!E28","v":1951},{"$f":"'Startovní listina'!F28","v":"LEAR Brno"},"02:43:52"]
[{"$f":"IF('Výsledková listina'!D37<>\"\",A37+1,\"\")","v":34},12,{"$f":"'Startovní listina'!G58","v":"A"},{"$f":"'Startovní listina'!B58","v":70},{"$f":"'Startovní listina'!C58","v":"Mička"},{"$f":"'Startovní listina'!D58","v":"Michal"},{"$f":"'Startovní listina'!E58","v":1987},{"$f":"'Startovní listina'!F58","v":"Žďár nad Sázavou"},"02:44:11"]
[{"$f":"IF('Výsledková listina'!D38<>\"\",A38+1,\"\")","v":35},13,{"$f":"'Startovní listina'!G40","v":"A"},{"$f":"'Startovní listina'!B40","v":44},{"$f":"'Startovní listina'!C40","v":"Dubský"},{"$f":"'Startovní listina'!D40","v":"Roman"},{"$f":"'Startovní listina'!E40","v":1978},{"$f":"'Startovní listina'!F40","v":"Přibyslav"},"02:45:49"]
[{"$f":"IF('Výsledková listina'!D39<>\"\",A39+1,\"\")","v":36},8,{"$f":"'Startovní listina'!G14","v":"C"},{"$f":"'Startovní listina'!B14","v":10},{"$f":"'Startovní listina'!C14","v":"Bolek"},{"$f":"'Startovní listina'!D14","v":"Rostislav"},{"$f":"'Startovní listina'!E14","v":1965},{"$f":"'Startovní listina'!F14","v":"Insportline Ostrava"},"02:49:02"]
[{"$f":"IF('Výsledková listina'!D40<>\"\",A40+1,\"\")","v":37},12,{"$f":"'Startovní listina'!G71","v":"B"},{"$f":"'Startovní listina'!B71","v":87},{"$f":"'Startovní listina'!C71","v":"Hančl"},{"$f":"'Startovní listina'!D71","v":"Roman"},{"$f":"'Startovní listina'!E71","v":1967},{"$f":"'Startovní listina'!F71","v":"Tišnov"},"02:50:28"]
[{"$f":"IF('Výsledková listina'!D41<>\"\",A41+1,\"\")","v":38},2,{"$f":"'Startovní listina'!G27","v":"D"},{"$f":"'Startovní listina'!B27","v":27},{"$f":"'Startovní listina'!C27","v":"Kubík"},{"$f":"'Startovní listina'!D27","v":"Jaromír"},{"$f":"'Startovní listina'!E27","v":1955},{"$f":"'Startovní listina'!F27","v":"Blansko"},"02:51:36"]
[{"$f":"IF('Výsledková listina'!D42<>\"\",A42+1,\"\")","v":39},9,{"$f":"'Startovní listina'!G7","v":"C"},{"$f":"'Startovní listina'!B7","v":3},{"$f":"'Startovní listina'!C7","v":"Češner"},{"$f":"'Startovní listina'!D7","v":"Vladimír"},{"$f":"'Startovní listina'!E7","v":1958},{"$f":"'Startovní listina'!F7","v":"Odolená Voda"},"02:52:34"]
[{"$f":"IF('Výsledková listina'!D43<>\"\",A43+1,\"\")","v":40},13,{"$f":"'Startovní listina'!G59","v":"B"},{"$f":"'Startovní listina'!B59","v":72},{"$f":"'Startovní listina'!C59","v":"Báňa"},{"$f":"'Startovní listina'!D59","v":"Karel"},{"$f":"'Startovní listina'!E59","v":1975},{"$f":"'Startovní listina'!F59","v":"Jabloňov"},"02:52:52"]
[{"$f":"IF('Výsledková listina'!D44<>\"\",A44+1,\"\")","v":41},1,{"$f":"'Startovní listina'!G8","v":"G"},{"$f":"'Startovní listina'!B8","v":4},{"$f":"'Startovní listina'!C8","v":"Komárková"},{"$f":"'Startovní listina'!D8","v":"Zdeňka"},{"$f":"'Startovní listina'!E8","v":1974},{"$f":"'Startovní listina'!F8","v":"SDH Bolešín"},"02:54:21"]
[{"$f":"IF('Výsledková listina'!D45<>\"\",A45+1,\"\")","v":42},3,{"$f":"'Startovní listina'!G13","v":"D"},{"$f":"'Startovní listina'!B13","v":9},{"$f":"'Startovní listina'!C13","v":"Vytisk"},{"$f":"'Startovní listina'!D13","v":"Alfons"},{"$f":"'Startovní listina'!E13","v":1949},{"$f":"'Startovní listina'!F13","v":"MKS Ostrava"},"02:57:04"]
[{"$f":"IF('Výsledková listina'!D46<>\"\",A46+1,\"\")","v":43},10,{"$f":"'Startovní listina'!G23","v":"C"},{"$f":"'Startovní listina'!B23","v":22},{"$f":"'Startovní listina'!C23","v":"Provazník"},{"$f":"'Startovní listina'!D23","v":"Milan"},{"$f":"'Startovní listina'!E23","v":1966},{"$f":"'Startovní listina'!F23","v":"Atletika Polička"},"02:57:40"]
[{"$f":"IF('Výsledková listina'!D47<>\"\",A47+1,\"\")","v":44},14,{"$f":"'Startovní listina'!G60","v":"A"},{"$f":"'Startovní listina'!B60","v":73},{"$f":"'Startovní listina'!C60","v":"Hlavsa"},{"$f":"'Startovní listina'!D60","v":"Tomáš"},{"$f":"'Startovní listina'!E60","v":1983},{"$f":"'Startovní listina'!F60","v":"Adamov"},"02:59:28"]
[{"$f":"IF('Výsledková listina'!D48<>\"\",A48+1,\"\")","v":45},4,{"$f":"'Startovní listina'!G70","v":"D"},{"$f":"'Startovní listina'!B70","v":86},{"$f":"'Startovní listina'!C70","v":"Šperka"},{"$f":"'Startovní listina'!D70","v":"Oldřich"},{"$f":"'Startovní listina'!E70","v":1956},{"$f":"'Startovní listina'!F70","v":"Jedovnice"},"03:00:09"]
[{"$f":"IF('Výsledková listina'!D49<>\"\",A49+1,\"\")","v":46},3,{"$f":"'Startovní listina'!G9","v":"F"},{"$f":"'Startovní listina'!B9","v":5},{"$f":"'Startovní listina'!C9","v":"Železná"},{"$f":"'Startovní listina'!D9","v":"Lada"},{"$f":"'Startovní listina'!E9","v":1989},{"$f":"'Startovní listina'!F9","v":"Brno"},"03:03:05"]
[{"$f":"IF('Výsledková listina'!D50<>\"\",A50+1,\"\")","v":47},14,{"$f":"'Startovní listina'!G65","v":"B"},{"$f":"'Startovní listina'!B65","v":80},{"$f":"'Startovní listina'!C65","v":"Petrů"},{"$f":"'Startovní listina'!D65","v":"Roman"},{"$f":"'Startovní listina'!E65","v":1976},{"$f":"'Startovní listina'!F65","v":"Drnovice"},"03:03:45"]
[{"$f":"IF('Výsledková listina'!D51<>\"\",A51+1,\"\")","v":48},15,{"$f":"'Startovní listina'!G6","v":"A"},{"$f":"'Startovní listina'!B6","v":2},{"$f":"'Startovní listina'!C6","v":"Barvíř"},{"$f":"'Startovní listina'!D6","v":"Jiří"},{"$f":"'Startovní listina'!E6","v":1982},{"$f":"'Startovní listina'!F6","v":"R.I.P. Brno"},"03:08:07"]
[{"$f":"IF('Výsledková listina'!D52<>\"\",A52+1,\"\")","v":49},16,{"$f":"'Startovní listina'!G42","v":"A"},{"$f":"'Startovní listina'!B42","v":46},{"$f":"'Startovní listina'!C42","v":"Vágner"},{"$f":"'Startovní listina'!D42","v":"Vojtěch"},{"$f":"'Startovní listina'!E42","v":1999},{"$f":"'Startovní listina'!F42","v":"Brno"},"03:09:29"]
[{"$f":"IF('Výsledková listina'!D53<>\"\",A53+1,\"\")","v":50},11,{"$f":"'Startovní listina'!G56","v":"C"},{"$f":"'Startovní listina'!B56","v":67},{"$f":"'Startovní listina'!C56","v":"Brabenec"},{"$f":"'Startovní listina'!D56","v":"Miroslav"},{"$f":"'Startovní listina'!E56","v":1959},{"$f":"'Startovní listina'!F56","v":"Žďár nad Sázavou"},"03:11:09"]
[{"$f":"IF('Výsledková listina'!D54<>\"\",A54+1,\"\")","v":51},17,{"$f":"'Startovní listina'!G74","v":"A"},{"$f":"'Startovní listina'!B74","v":91},{"$f":"'Startovní listina'!C74","v":"Hakl"},{"$f":"'Startovní listina'!D74","v":"Martin"},{"$f":"'Startovní listina'!E74","v":1987},{"$f":"'Startovní listina'!F74","v":"Running With Those That Can't"},"03:13:50"]
[{"$f":"IF('Výsledková listina'!D55<>\"\",A55+1,\"\")","v":52},15,{"$f":"'Startovní listina'!G77","v":"B"},{"$f":"'Startovní listina'!B77","v":94},{"$f":"'Startovní listina'!C77","v":"Benc"},{"$f":"'Startovní listina'!D77","v":"Karel"},{"$f":"'Startovní listina'!E77","v":1975},{"$f":"'Startovní listina'!F77","v":"Pivonice"},"03:14:08"]
[{"$f":"IF('Výsledková listina'!D56<>\"\",A56+1,\"\")","v":53},18,{"$f":"'Startovní listina'!G80","v":"A"},{"$f":"'Startovní listina'!B80","v":97},{"$f":"'Startovní listina'!C80","v":"Koutský"},{"$f":"'Startovní listina'!D80","v":"Tomáš"},{"$f":"'Startovní listina'!E80","v":1987},{"$f":"'Startovní listina'!F80","v":"Ledová stěna Vír"},"03:14:32"]
[{"$f":"IF('Výsledková listina'!D57<>\"\",A57+1,\"\")","v":54},19,{"$f":"'Startovní listina'!G73","v":"A"},{"$f":"'Startovní listina'!B73","v":90},{"$f":"'Startovní listina'!C73","v":"Hakl"},{"$f":"'Startovní listina'!D73","v":"Zdeněk"},{"$f":"'Startovní listina'!E73","v":1982},{"$f":"'Startovní listina'!F73","v":"SK Tri Cyklochlubna"},"03:14:48"]
[{"$f":"IF('Výsledková listina'!D58<>\"\",A58+1,\"\")","v":55},16,{"$f":"'Startovní listina'!G50","v":"B"},{"$f":"'Startovní listina'!B50","v":59},{"$f":"'Startovní listina'!C50","v":"Dvořák"},{"$f":"'Startovní listina'!D50","v":"Vojtěch"},{"$f":"'Startovní listina'!E50","v":1974},{"$f":"'Startovní listina'!F50","v":"Brno"},"03:16:29"]
[{"$f":"IF('Výsledková listina'!D59<>\"\",A59+1,\"\")","v":56},5,{"$f":"'Startovní listina'!G26","v":"D"},{"$f":"'Startovní listina'!B26","v":26},{"$f":"'Startovní listina'!C26","v":"Kohoutek"},{"$f":"'Startovní listina'!D26","v":"Jaromír"},{"$f":"'Startovní listina'!E26","v":1955},{"$f":"'Startovní listina'!F26","v":"watter and snow ski club Brno"},"03:16:30"]
[{"$f":"IF('Výsledková listina'!D60<>\"\",A60+1,\"\")","v":57},20,{"$f":"'Startovní listina'!G48","v":"A"},{"$f":"'Startovní listina'!B48","v":56},{"$f":"'Startovní listina'!C48","v":"Srnec"},{"$f":"'Startovní listina'!D48","v":"Lukáš"},{"$f":"'Startovní listina'!E48","v":1990},{"$f":"'Startovní listina'!F48","v":"Židlochovice"},"03:17:27"]
[{"$f":"IF('Výsledková listina'!D61<>\"\",A61+1,\"\")","v":58},17,{"$f":"'Startovní listina'!G24","v":"B"},{"$f":"'Startovní listina'!B24","v":23},{"$f":"'Startovní listina'!C24","v":"Kryštof"},{"$f":"'Startovní listina'!D24","v":"Ondřej"},{"$f":"'Startovní listina'!E24","v":1976},{"$f":"'Startovní listina'!F24","v":"Jiskra Vír"},"03:23:10"]
[{"$f":"IF('Výsledková listina'!D62<>\"\",A62+1,\"\")","v":59},2,{"$f":"'Startovní listina'!G81","v":"G"},{"$f":"'Startovní listina'!B81","v":98},{"$f":"'Startovní listina'!C81","v":"Tonarová"},{"$f":"'Startovní listina'!D81","v":"Miroslava"},{"$f":"'Startovní listina'!E81","v":1976},{"$f":"'Startovní listina'!F81","v":"Bory"},"03:27:04"]
[{"$f":"IF('Výsledková listina'!D63<>\"\",A63+1,\"\")","v":60},4,{"$f":"'Startovní listina'!G11","v":"F"},{"$f":"'Startovní listina'!B11","v":7},{"$f":"'Startovní listina'!C11","v":"Forýtková"},{"$f":"'Startovní listina'!D11","v":"Žaneta"},{"$f":"'Startovní listina'!E11","v":1984},{"$f":"'Startovní listina'!F11","v":"Praha"},"03:27:09"]
[{"$f":"IF('Výsledková listina'!D64<>\"\",A64+1,\"\")","v":61},6,{"$f":"'Startovní listina'!G53","v":"D"},{"$f":"'Startovní listina'!B53","v":62},{"$f":"'Startovní listina'!C53","v":"Nekuža"},{"$f":"'Startovní listina'!D53","v":"Jiří"},{"$f":"'Startovní listina'!E53","v":1951},{"$f":"'Startovní listina'!F53","v":"Runners Zbýšov"},"03:29:30"]
[{"$f":"IF('Výsledková listina'!D65<>\"\",A65+1,\"\")","v":62},12,{"$f":"'Startovní listina'!G75","v":"C"},{"$f":"'Startovní listina'!B75","v":92},{"$f":"'Startovní listina'!C75","v":"Novotný"},{"$f":"'Startovní listina'!D75","v":"Petr"},{"$f":"'Startovní listina'!E75","v":1965},{"$f":"'Startovní listina'!F75","v":"Kuřim"},"03:31:18"]
[{"$f":"IF('Výsledková listina'!D66<>\"\",A66+1,\"\")","v":63},21,{"$f":"'Startovní listina'!G41","v":"A"},{"$f":"'Startovní listina'!B41","v":45},{"$f":"'Startovní listina'!C41","v":"Misař"},{"$f":"'Startovní listina'!D41","v":"Ondřej"},{"$f":"'Startovní listina'!E41","v":2000},{"$f":"'Startovní listina'!F41","v":"Brno"},"03:37:20"]
[{"$f":"IF('Výsledková listina'!D67<>\"\",A67+1,\"\")","v":64},22,{"$f":"'Startovní listina'!G10","v":"A"},{"$f":"'Startovní listina'!B10","v":6},{"$f":"'Startovní listina'!C10","v":"Forýtek"},{"$f":"'Startovní listina'!D10","v":"Michal"},{"$f":"'Startovní listina'!E10","v":1982},{"$f":"'Startovní listina'!F10","v":"Praha"},"03:38:07"]
[{"$f":"IF('Výsledková listina'!D68<>\"\",A68+1,\"\")","v":65},13,{"$f":"'Startovní listina'!G78","v":"C"},{"$f":"'Startovní listina'!B78","v":95},{"$f":"'Startovní listina'!C78","v":"Zourek"},{"$f":"'Startovní listina'!D78","v":"Karel"},{"$f":"'Startovní listina'!E78","v":1959},{"$f":"'Startovní listina'!F78","v":"Bedřichovice"},"03:43:16"]
[{"$f":"IF('Výsledková listina'!D69<>\"\",A69+1,\"\")","v":66},2,{"$f":"'Startovní listina'!G68","v":"H"},{"$f":"'Startovní listina'!B68","v":84},{"$f":"'Startovní listina'!C68","v":"Podmelová"},{"$f":"'Startovní listina'!D68","v":"Vilma"},{"$f":"'Startovní listina'!E68","v":1962},{"$f":"'Startovní listina'!F68","v":"AC Moravská Slávia Brno"},"03:43:43"]
[{"$f":"IF('Výsledková listina'!D70<>\"\",A70+1,\"\")","v":67},18,{"$f":"'Startovní listina'!G79","v":"B"},{"$f":"'Startovní listina'!B79","v":96},{"$f":"'Startovní listina'!C79","v":"Konečný"},{"$f":"'Startovní listina'!D79","v":"Jaroslav"},{"$f":"'Startovní listina'!E79","v":1969},{"$f":"'Startovní listina'!F79","v":"Essens Popůvky"},"03:44:07"]
[{"$f":"IF('Výsledková listina'!D71<>\"\",A71+1,\"\")","v":68},7,{"$f":"'Startovní listina'!G19","v":"D"},{"$f":"'Startovní listina'!B19","v":17},{"$f":"'Startovní listina'!C19","v":"Zejda"},{"$f":"'Startovní listina'!D19","v":"Ivo"},{"$f":"'Startovní listina'!E19","v":1956},{"$f":"'Startovní listina'!F19","v":"AC Moravská Slávia Brno"},"03:45:32"]
[{"$f":"IF('Výsledková listina'!D72<>\"\",A72+1,\"\")","v":69},8,{"$f":"'Startovní listina'!G51","v":"D"},{"$f":"'Startovní listina'!B51","v":60},{"$f":"'Startovní listina'!C51","v":"Suchý"},{"$f":"'Startovní listina'!D51","v":"Karel"},{"$f":"'Startovní listina'!E51","v":1956},{"$f":"'Startovní listina'!F51","v":"Atletic Třebíč"},"03:46:18"]
[{"$f":"IF('Výsledková listina'!D73<>\"\",A73+1,\"\")","v":70},3,{"$f":"'Startovní listina'!G17","v":"H"},{"$f":"'Startovní listina'!B17","v":13},{"$f":"'Startovní listina'!C17","v":"Tesařová"},{"$f":"'Startovní listina'!D17","v":"Marie"},{"$f":"'Startovní listina'!E17","v":1954},{"$f":"'Startovní listina'!F17","v":"Křižanov"},"03:50:29"]
[{"$f":"IF('Výsledková listina'!D74<>\"\",A74+1,\"\")","v":71},4,{"$f":"'Startovní listina'!G25","v":"H"},{"$f":"'Startovní listina'!B25","v":24},{"$f":"'Startovní listina'!C25","v":"Šedová"},{"$f":"'Startovní listina'!D25","v":"Věra"},{"$f":"'Startovní listina'!E25","v":1964},{"$f":"'Startovní listina'!F25","v":"Atletic Třebíč"},"04:00:01"]
[{"$f":"IF('Výsledková listina'!D75<>\"\",A75+1,\"\")","v":72},1,{"$f":"'Startovní listina'!G18","v":"E"},{"$f":"'Startovní listina'!B18","v":14},{"$f":"'Startovní listina'!C18","v":"Holý"},{"$f":"'Startovní listina'!D18","v":"Josef"},{"$f":"'Startovní listina'!E18","v":1941},{"$f":"'Startovní listina'!F18","v":"AC Moravská Slávia Brno"},"04:01:12"]
[{"$f":"IF('Výsledková listina'!D76<>\"\",A76+1,\"\")","v":73},14,{"$f":"'Startovní listina'!G82","v":"C"},{"$f":"'Startovní listina'!B82","v":99},{"$f":"'Startovní listina'!C82","v":"Daněk"},{"$f":"'Startovní listina'!D82","v":"Milan"},{"$f":"'Startovní listina'!E82","v":1962},{"$f":"'Startovní listina'!F82","v":"Horizont kola Novák Blansko"},"04:01:34"]
[{"$f":"IF('Výsledková listina'!D77<>\"\",A77+1,\"\")","v":74},9,{"$f":"'Startovní listina'!G34","v":"D"},{"$f":"'Startovní listina'!B34","v":36},{"$f":"'Startovní listina'!C34","v":"Němec"},{"$f":"'Startovní listina'!D34","v":"Jaroslav"},{"$f":"'Startovní listina'!E34","v":1952},{"$f":"'Startovní listina'!F34","v":"Blansko"},"04:01:50"]
[{"$f":"IF('Výsledková listina'!D78<>\"\",A78+1,\"\")","v":75},15,{"$f":"'Startovní listina'!G21","v":"C"},{"$f":"'Startovní listina'!B21","v":19},{"$f":"'Startovní listina'!C21","v":"Krátký"},{"$f":"'Startovní listina'!D21","v":"Josef"},{"$f":"'Startovní listina'!E21","v":1965},{"$f":"'Startovní listina'!F21","v":"SKP Hvězda Pardubice"},"04:27:00"]
[{"$f":"IF('Výsledková listina'!D79<>\"\",A79+1,\"\")","v":76},23,{"$f":"'Startovní listina'!G83","v":"A"},{"$f":"'Startovní listina'!B83","v":100},{"$f":"'Startovní listina'!C83","v":"Šacl"},{"$f":"'Startovní listina'!D83","v":"Pavel"},{"$f":"'Startovní listina'!E83","v":1981},{"$f":"'Startovní listina'!F83","v":"Dolní Rožínka"},"DNF"]
[{"$f":"IF('Výsledková listina'!D80<>\"\",A80+1,\"\")","v":77},19,{"$f":"'Startovní listina'!G22","v":"B"},{"$f":"'Startovní listina'!B22","v":21},{"$f":"'Startovní listina'!C22","v":"Sláma"},{"$f":"'Startovní listina'!D22","v":"Adolf"},{"$f":"'Startovní listina'!E22","v":1970},{"$f":"'Startovní listina'!F22","v":"Žďár nad Sázavou"},"DNF"]
[{"$f":"IF('Výsledková listina'!D81<>\"\",A81+1,\"\")","v":78},16,{"$f":"'Startovní listina'!G43","v":"C"},{"$f":"'Startovní listina'!B43","v":47},{"$f":"'Startovní listina'!C43","v":"Šádek"},{"$f":"'Startovní listina'!D43","v":"Jiří"},{"$f":"'Startovní listina'!E43","v":1959},{"$f":"'Startovní listina'!F43","v":"Lomnice nad Popelkou"},"DNF"]
[{"$f":"IF('Výsledková listina'!D82<>\"\",A82+1,\"\")","v":79},5,{"$f":"'Startovní listina'!G54","v":"F"},{"$f":"'Startovní listina'!B54","v":63},{"$f":"'Startovní listina'!C54","v":"Rokosová"},{"$f":"'Startovní listina'!D54","v":"Ivana"},{"$f":"'Startovní listina'!E54","v":1982},{"$f":"'Startovní listina'!F54","v":"Polička"},"DNF"]
[{"$f":"IF('Výsledková listina'!D83<>\"\",A83+1,\"\")","v":80},5,{"$f":"'Startovní listina'!G29","v":"H"},{"$f":"'Startovní listina'!B29","v":30},{"$f":"'Startovní listina'!C29","v":"Martincová"},{"$f":"'Startovní listina'!D29","v":"Ivana"},{"$f":"'Startovní listina'!E29","v":1963},{"$f":"'Startovní listina'!F29","v":"AC Moravská Slávia Brno"},"DNF"]
[{"$f":"IF('Výsledková listina'!D84<>\"\",A84+1,\"\")","v":81},null,{"$f":"'Startovní listina'!G85","v":""},{"$f":"'Startovní listina'!B85","v":""},{"$f":"'Startovní listina'!C85","v":""},{"$f":"'Startovní listina'!D85","v":""},{"$f":"'Startovní listina'!E85","v":""},{"$f":"'Startovní listina'!F85","v":""}]
[{"$f":"IF('Výsledková listina'!D85<>\"\",A85+1,\"\")","v":""},null,{"$f":"'Startovní listina'!G86","v":""},{"$f":"'Startovní listina'!B86","v":""},{"$f":"'Startovní listina'!C86","v":""},{"$f":"'Startovní listina'!D86","v":""},{"$f":"'Startovní listina'!E86","v":""},{"$f":"'Startovní listina'!F86","v":""}]
[{"$f":"IF('Výsledková listina'!D86<>\"\",A86+1,\"\")","v":""},null,{"$f":"'Startovní listina'!G87","v":""},{"$f":"'Startovní listina'!B87","v":""},{"$f":"'Startovní listina'!C87","v":""},{"$f":"'Startovní listina'!D87","v":""},{"$f":"'Startovní listina'!E87","v":""},{"$f":"'Startovní listina'!F87","v":""}]
[{"$f":"IF('Výsledková listina'!D87<>\"\",A87+1,\"\")","v":""},null,{"$f":"'Startovní listina'!G88","v":""},{"$f":"'Startovní listina'!B88","v":""},{"$f":"'Startovní listina'!C88","v":""},{"$f":"'Startovní listina'!D88","v":""},{"$f":"'Startovní listina'!E88","v":""},{"$f":"'Startovní listina'!F88","v":""}]
[{"$f":"IF('Výsledková listina'!D88<>\"\",A88+1,\"\")","v":""},null,{"$f":"'Startovní listina'!G89","v":""},{"$f":"'Startovní listina'!B89","v":""},{"$f":"'Startovní listina'!C89","v":""},{"$f":"'Startovní listina'!D89","v":""},{"$f":"'Startovní listina'!E89","v":""},{"$f":"'Startovní listina'!F89","v":""}]
[{"$f":"IF('Výsledková listina'!D89<>\"\",A89+1,\"\")","v":""},null,{"$f":"'Startovní listina'!G90","v":""},{"$f":"'Startovní listina'!B90","v":""},{"$f":"'Startovní listina'!C90","v":""},{"$f":"'Startovní listina'!D90","v":""},{"$f":"'Startovní listina'!E90","v":""},{"$f":"'Startovní listina'!F90","v":""}]
[{"$f":"IF('Výsledková listina'!D90<>\"\",A90+1,\"\")","v":""},null,{"$f":"'Startovní listina'!G91","v":""},{"$f":"'Startovní listina'!B91","v":""},{"$f":"'Startovní listina'!C91","v":""},{"$f":"'Startovní listina'!D91","v":""},{"$f":"'Startovní listina'!E91","v":""},{"$f":"'Startovní listina'!F91","v":""}]
[{"$f":"IF('Výsledková listina'!D91<>\"\",A91+1,\"\")","v":""},null,{"$f":"'Startovní listina'!G92","v":""},{"$f":"'Startovní listina'!B92","v":""},{"$f":"'Startovní listina'!C92","v":""},{"$f":"'Startovní listina'!D92","v":""},{"$f":"'Startovní listina'!E92","v":""},{"$f":"'Startovní listina'!F92","v":""}]
[{"$f":"IF('Výsledková listina'!D92<>\"\",A92+1,\"\")","v":""},null,{"$f":"'Startovní listina'!G93","v":""},{"$f":"'Startovní listina'!B93","v":""},{"$f":"'Startovní listina'!C93","v":""},{"$f":"'Startovní listina'!D93","v":""},{"$f":"'Startovní listina'!E93","v":""},{"$f":"'Startovní listina'!F93","v":""}]
[{"$f":"IF('Výsledková listina'!D93<>\"\",A93+1,\"\")","v":""},null,{"$f":"'Startovní listina'!G94","v":""},{"$f":"'Startovní listina'!B94","v":""},{"$f":"'Startovní listina'!C94","v":""},{"$f":"'Startovní listina'!D94","v":""},{"$f":"'Startovní listina'!E94","v":""},{"$f":"'Startovní listina'!F94","v":""}]
[{"$f":"IF('Výsledková listina'!D94<>\"\",A94+1,\"\")","v":""},null,{"$f":"'Startovní listina'!G95","v":""},{"$f":"'Startovní listina'!B95","v":""},{"$f":"'Startovní listina'!C95","v":""},{"$f":"'Startovní listina'!D95","v":""},{"$f":"'Startovní listina'!E95","v":""},{"$f":"'Startovní listina'!F95","v":""}]
[{"$f":"IF('Výsledková listina'!D95<>\"\",A95+1,\"\")","v":""},null,{"$f":"'Startovní listina'!G96","v":""},{"$f":"'Startovní listina'!B96","v":""},{"$f":"'Startovní listina'!C96","v":""},{"$f":"'Startovní listina'!D96","v":""},{"$f":"'Startovní listina'!E96","v":""},{"$f":"'Startovní listina'!F96","v":""}]
[{"$f":"IF('Výsledková listina'!D96<>\"\",A96+1,\"\")","v":""},null,{"$f":"'Startovní listina'!G97","v":""},{"$f":"'Startovní listina'!B97","v":""},{"$f":"'Startovní listina'!C97","v":""},{"$f":"'Startovní listina'!D97","v":""},{"$f":"'Startovní listina'!E97","v":""},{"$f":"'Startovní listina'!F97","v":""}]
[{"$f":"IF('Výsledková listina'!D97<>\"\",A97+1,\"\")","v":""},null,{"$f":"'Startovní listina'!G98","v":""},{"$f":"'Startovní listina'!B98","v":""},{"$f":"'Startovní listina'!C98","v":""},{"$f":"'Startovní listina'!D98","v":""},{"$f":"'Startovní listina'!E98","v":""},{"$f":"'Startovní listina'!F98","v":""}]
[{"$f":"IF('Výsledková listina'!D98<>\"\",A98+1,\"\")","v":""},null,{"$f":"'Startovní listina'!G99","v":""},{"$f":"'Startovní listina'!B99","v":""},{"$f":"'Startovní listina'!C99","v":""},{"$f":"'Startovní listina'!D99","v":""},{"$f":"'Startovní listina'!E99","v":""},{"$f":"'Startovní listina'!F99","v":""}]
[{"$f":"IF('Výsledková listina'!D99<>\"\",A99+1,\"\")","v":""},null,{"$f":"'Startovní listina'!G100","v":""},{"$f":"'Startovní listina'!B100","v":""},{"$f":"'Startovní listina'!C100","v":""},{"$f":"'Startovní listina'!D100","v":""},{"$f":"'Startovní listina'!E100","v":""},{"$f":"'Startovní listina'!F100","v":""}]
[{"$f":"IF('Výsledková listina'!D100<>\"\",A100+1,\"\")","v":""},null,{"$f":"'Startovní listina'!G101","v":""},{"$f":"'Startovní listina'!B101","v":""},{"$f":"'Startovní listina'!C101","v":""},{"$f":"'Startovní listina'!D101","v":""},{"$f":"'Startovní listina'!E101","v":""},{"$f":"'Startovní listina'!F101","v":""}]
[{"$f":"IF('Výsledková listina'!D101<>\"\",A101+1,\"\")","v":""},null,{"$f":"'Startovní listina'!G102","v":""},{"$f":"'Startovní listina'!B102","v":""},{"$f":"'Startovní listina'!C102","v":""},{"$f":"'Startovní listina'!D102","v":""},{"$f":"'Startovní listina'!E102","v":""},{"$f":"'Startovní listina'!F102","v":""}]
[{"$f":"IF('Výsledková listina'!D102<>\"\",A102+1,\"\")","v":""},null,{"$f":"'Startovní listina'!G103","v":""},{"$f":"'Startovní listina'!B103","v":""},{"$f":"'Startovní listina'!C103","v":""},{"$f":"'Startovní listina'!D103","v":""},{"$f":"'Startovní listina'!E103","v":""},{"$f":"'Startovní listina'!F103","v":""}]
[{"$f":"IF('Výsledková listina'!D103<>\"\",A103+1,\"\")","v":""},null,{"$f":"'Startovní listina'!G104","v":""},{"$f":"'Startovní listina'!B104","v":""},{"$f":"'Startovní listina'!C104","v":""},{"$f":"'Startovní listina'!D104","v":""},{"$f":"'Startovní listina'!E104","v":""},{"$f":"'Startovní listina'!F104","v":""}]

{"sheet":"Družstva","index":3,"n_rows":25,"n_cols":11,"rows_kept":25,"cut":false,"hidden":false,"merged":[[17,1,18,1],[17,6,18,6],[17,8,18,8],[19,1,20,1],[19,6,20,6],[19,8,20,8],[11,6,12,6],[5,8,6,8],[7,8,8,8],[9,8,10,8],[15,1,16,1],[15,6,16,6],[15,8,16,8],[3,8,4,8],[11,8,12,8],[0,1,0,8],[1,1,1,8],[13,8,14,8],[3,1,4,1],[11,1,12,1],[5,1,6,1],[7,1,8,1],[9,1,10,1],[5,6,6,6],[13,1,14,1],[3,6,4,6],[13,6,14,6],[7,6,8,6],[9,6,10,6],[21,1,22,1],[21,6,22,6],[21,8,22,8],[23,1,24,1],[23,6,24,6],[23,8,24,8]]}
[null,{"$f":"\"Výsledková listina - Malý svratecký maratón \"&'Prezenční listina'!O2&\" - družstva\"","v":"Výsledková listina - Malý svratecký maratón 2016 - družstva"}]
[null,{"$f":"'Prezenční listina'!O2-1953&\". ročník\"","v":"63. ročník"}]
[null,"Pořadí","Startovní číslo","Příjmení","Jméno","Narození","Oddíl / Bydliště","Čas","Výsledný čas"]
[null,"1.",77,{"$f":"IF(ISERROR(VLOOKUP(C4,'[1]Startovní listina'!$B$5:$F$141,2)),\"\",VLOOKUP(C4,'[1]Startovní listina'!$B$5:$F$141,2))","v":"Rerych"},{"$f":"IF(ISERROR(VLOOKUP(C4,'[1]Startovní listina'!$B$5:$F$141,3)),\"\",VLOOKUP(C4,'[1]Startovní listina'!$B$5:$F$141,3))","v":"Jiří"},{"$f":"IF(ISERROR(VLOOKUP(C4,'[1]Startovní listina'!$B$5:$F$141,4)),\"\",VLOOKUP(C4,'[1]Startovní listina'!$B$5:$F$141,4))","v":1962},{"$f":"IF(K4=K5,K4,\"RŮZNÉ ODDÍLY !!!\")","v":"adidas Boost Team/AC Moravská Slávia Brno"},"02:15:54",{"$f":"IF((H4=0),\"\",H4+H5)","v":"04:14:09"},null,{"$f":"IF(ISERROR(VLOOKUP(C4,'Startovní listina'!$B$5:$F$141,5)),\"\",VLOOKUP(C4,'Startovní listina'!$B$5:$F$141,5))","v":"adidas Boost Team/AC Moravská Slávia Brno"}]
[null,null,83,{"$f":"IF(ISERROR(VLOOKUP(C5,'[1]Startovní listina'!$B$5:$F$141,2)),\"\",VLOOKUP(C5,'[1]Startovní listina'!$B$5:$F$141,2))","v":"Orálek"},{"$f":"IF(ISERROR(VLOOKUP(C5,'[1]Startovní listina'!$B$5:$F$141,3)),\"\",VLOOKUP(C5,'[1]Startovní listina'!$B$5:$F$141,3))","v":"Daniel"},{"$f":"IF(ISERROR(VLOOKUP(C5,'[1]Startovní listina'!$B$5:$F$141,4)),\"\",VLOOKUP(C5,'[1]Startovní listina'!$B$5:$F$141,4))","v":1970},null,"01:58:15",null,null,{"$f":"IF(ISERROR(VLOOKUP(C5,'Startovní listina'!$B$5:$F$141,5)),\"\",VLOOKUP(C5,'Startovní listina'!$B$5:$F$141,5))","v":"adidas Boost Team/AC Moravská Slávia Brno"}]
[null,"2.",64,{"$f":"IF(ISERROR(VLOOKUP(C6,'[1]Startovní listina'!$B$5:$F$141,2)),\"\",VLOOKUP(C6,'[1]Startovní listina'!$B$5:$F$141,2))","v":"Ožana"},{"$f":"IF(ISERROR(VLOOKUP(C6,'[1]Startovní listina'!$B$5:$F$141,3)),\"\",VLOOKUP(C6,'[1]Startovní listina'!$B$5:$F$141,3))","v":"Václav"},{"$f":"IF(ISERROR(VLOOKUP(C6,'[1]Startovní listina'!$B$5:$F$141,4)),\"\",VLOOKUP(C6,'[1]Startovní listina'!$B$5:$F$141,4))","v":1964},{"$f":"IF(K6=K7,K6,\"RŮZNÉ ODDÍLY !!!\")","v":"Atletic Třebíč"},"02:17:14",{"$f":"IF((H6=0),\"\",H6+H7)","v":"04:41:24"},null,{"$f":"IF(ISERROR(VLOOKUP(C6,'Startovní listina'!$B$5:$F$141,5)),\"\",VLOOKUP(C6,'Startovní listina'!$B$5:$F$141,5))","v":"Atletic Třebíč"}]
[null,null,61,{"$f":"IF(ISERROR(VLOOKUP(C7,'[1]Startovní listina'!$B$5:$F$141,2)),\"\",VLOOKUP(C7,'[1]Startovní listina'!$B$5:$F$141,2))","v":"Nováček"},{"$f":"IF(ISERROR(VLOOKUP(C7,'[1]Startovní listina'!$B$5:$F$141,3)),\"\",VLOOKUP(C7,'[1]Startovní listina'!$B$5:$F$141,3))","v":"Tomáš"},{"$f":"IF(ISERROR(VLOOKUP(C7,'[1]Startovní listina'!$B$5:$F$141,4)),\"\",VLOOKUP(C7,'[1]Startovní listina'!$B$5:$F$141,4))","v":1983},null,"02:24:10",null,null,{"$f":"IF(ISERROR(VLOOKUP(C7,'Startovní listina'!$B$5:$F$141,5)),\"\",VLOOKUP(C7,'Startovní listina'!$B$5:$F$141,5))","v":"Atletic Třebíč"}]
[null,"3.",35,{"$f":"IF(ISERROR(VLOOKUP(C8,'[1]Startovní listina'!$B$5:$F$141,2)),\"\",VLOOKUP(C8,'[1]Startovní listina'!$B$5:$F$141,2))","v":"Dušil"},{"$f":"IF(ISERROR(VLOOKUP(C8,'[1]Startovní listina'!$B$5:$F$141,3)),\"\",VLOOKUP(C8,'[1]Startovní listina'!$B$5:$F$141,3))","v":"Jaroslav"},{"$f":"IF(ISERROR(VLOOKUP(C8,'[1]Startovní listina'!$B$5:$F$141,4)),\"\",VLOOKUP(C8,'[1]Startovní listina'!$B$5:$F$141,4))","v":1970},{"$f":"IF(K8=K9,K8,\"RŮZNÉ ODDÍLY !!!\")","v":"Běžecký klub Brno"},"02:36:14",{"$f":"IF((H8=0),\"\",H8+H9)","v":"04:48:47"},null,{"$f":"IF(ISERROR(VLOOKUP(C8,'Startovní listina'!$B$5:$F$141,5)),\"\",VLOOKUP(C8,'Startovní listina'!$B$5:$F$141,5))","v":"Běžecký klub Brno"}]
[null,null,37,{"$f":"IF(ISERROR(VLOOKUP(C9,'[1]Startovní listina'!$B$5:$F$141,2)),\"\",VLOOKUP(C9,'[1]Startovní listina'!$B$5:$F$141,2))","v":"Hrdina"},{"$f":"IF(ISERROR(VLOOKUP(C9,'[1]Startovní listina'!$B$5:$F$141,3)),\"\",VLOOKUP(C9,'[1]Startovní listina'!$B$5:$F$141,3))","v":"Tomáš"},{"$f":"IF(ISERROR(VLOOKUP(C9,'[1]Startovní listina'!$B$5:$F$141,4)),\"\",VLOOKUP(C9,'[1]Startovní listina'!$B$5:$F$141,4))","v":1979},null,"02:12:33",null,null,{"$f":"IF(ISERROR(VLOOKUP(C9,'Startovní listina'!$B$5:$F$141,5)),\"\",VLOOKUP(C9,'Startovní listina'!$B$5:$F$141,5))","v":"Běžecký klub Brno"}]
[null,"4.",11,{"$f":"IF(ISERROR(VLOOKUP(C10,'[1]Startovní listina'!$B$5:$F$141,2)),\"\",VLOOKUP(C10,'[1]Startovní listina'!$B$5:$F$141,2))","v":"Kopečný"},{"$f":"IF(ISERROR(VLOOKUP(C10,'[1]Startovní listina'!$B$5:$F$141,3)),\"\",VLOOKUP(C10,'[1]Startovní listina'!$B$5:$F$141,3))","v":"Dušan"},{"$f":"IF(ISERROR(VLOOKUP(C10,'[1]Startovní listina'!$B$5:$F$141,4)),\"\",VLOOKUP(C10,'[1]Startovní listina'!$B$5:$F$141,4))","v":1973},{"$f":"IF(K10=K11,K10,\"RŮZNÉ ODDÍLY !!!\")","v":"AK Drnovice"},"03:44:07",{"$f":"IF((H10=0),\"\",H10+H11)","v":"06:04:19"},null,{"$f":"IF(ISERROR(VLOOKUP(C10,'Startovní listina'!$B$5:$F$141,5)),\"\",VLOOKUP(C10,'Startovní listina'!$B$5:$F$141,5))","v":"AK Drnovice"}]
[null,null,12,{"$f":"IF(ISERROR(VLOOKUP(C11,'[1]Startovní listina'!$B$5:$F$141,2)),\"\",VLOOKUP(C11,'[1]Startovní listina'!$B$5:$F$141,2))","v":"Koudelka"},{"$f":"IF(ISERROR(VLOOKUP(C11,'[1]Startovní listina'!$B$5:$F$141,3)),\"\",VLOOKUP(C11,'[1]Startovní listina'!$B$5:$F$141,3))","v":"Lukáš"},{"$f":"IF(ISERROR(VLOOKUP(C11,'[1]Startovní listina'!$B$5:$F$141,4)),\"\",VLOOKUP(C11,'[1]Startovní listina'!$B$5:$F$141,4))","v":1983},null,"02:20:12",null,null,{"$f":"IF(ISERROR(VLOOKUP(C11,'Startovní listina'!$B$5:$F$141,5)),\"\",VLOOKUP(C11,'Startovní listina'!$B$5:$F$141,5))","v":"AK Drnovice"}]
[null,"5.",6,{"$f":"IF(ISERROR(VLOOKUP(C12,'[1]Startovní listina'!$B$5:$F$141,2)),\"\",VLOOKUP(C12,'[1]Startovní listina'!$B$5:$F$141,2))","v":"Forýtek"},{"$f":"IF(ISERROR(VLOOKUP(C12,'[1]Startovní listina'!$B$5:$F$141,3)),\"\",VLOOKUP(C12,'[1]Startovní listina'!$B$5:$F$141,3))","v":"Michal"},{"$f":"IF(ISERROR(VLOOKUP(C12,'[1]Startovní listina'!$B$5:$F$141,4)),\"\",VLOOKUP(C12,'[1]Startovní listina'!$B$5:$F$141,4))","v":1982},{"$f":"IF(K12=K13,K12,\"RŮZNÉ ODDÍLY !!!\")","v":"Praha"},"03:38:07",{"$f":"IF((H12=0),\"\",H12+H13)","v":"07:05:16"},null,{"$f":"IF(ISERROR(VLOOKUP(C12,'Startovní listina'!$B$5:$F$141,5)),\"\",VLOOKUP(C12,'Startovní listina'!$B$5:$F$141,5))","v":"Praha"}]
[null,null,7,{"$f":"IF(ISERROR(VLOOKUP(C13,'[1]Startovní listina'!$B$5:$F$141,2)),\"\",VLOOKUP(C13,'[1]Startovní listina'!$B$5:$F$141,2))","v":"Forýtková"},{"$f":"IF(ISERROR(VLOOKUP(C13,'[1]Startovní listina'!$B$5:$F$141,3)),\"\",VLOOKUP(C13,'[1]Startovní listina'!$B$5:$F$141,3))","v":"Žaneta"},{"$f":"IF(ISERROR(VLOOKUP(C13,'[1]Startovní listina'!$B$5:$F$141,4)),\"\",VLOOKUP(C13,'[1]Startovní listina'!$B$5:$F$141,4))","v":1984},null,"03:27:09",null,null,{"$f":"IF(ISERROR(VLOOKUP(C13,'Startovní listina'!$B$5:$F$141,5)),\"\",VLOOKUP(C13,'Startovní listina'!$B$5:$F$141,5))","v":"Praha"}]
[null,"6.",null,{"$f":"IF(ISERROR(VLOOKUP(C14,'Startovní listina'!$B$5:$F$141,2)),\"\",VLOOKUP(C14,'Startovní listina'!$B$5:$F$141,2))","v":""},{"$f":"IF(ISERROR(VLOOKUP(C14,'Startovní listina'!$B$5:$F$141,3)),\"\",VLOOKUP(C14,'Startovní listina'!$B$5:$F$141,3))","v":""},{"$f":"IF(ISERROR(VLOOKUP(C14,'Startovní listina'!$B$5:$F$141,4)),\"\",VLOOKUP(C14,'Startovní listina'!$B$5:$F$141,4))","v":""},{"$f":"IF(K14=K15,K14,\"RŮZNÉ ODDÍLY !!!\")","v":""},null,{"$f":"IF((H14=0),\"\",H14+H15)","v":""},null,{"$f":"IF(ISERROR(VLOOKUP(C14,'Startovní listina'!$B$5:$F$141,5)),\"\",VLOOKUP(C14,'Startovní listina'!$B$5:$F$141,5))","v":""}]
[null,null,null,{"$f":"IF(ISERROR(VLOOKUP(C15,'Startovní listina'!$B$5:$F$141,2)),\"\",VLOOKUP(C15,'Startovní listina'!$B$5:$F$141,2))","v":""},{"$f":"IF(ISERROR(VLOOKUP(C15,'Startovní listina'!$B$5:$F$141,3)),\"\",VLOOKUP(C15,'Startovní listina'!$B$5:$F$141,3))","v":""},{"$f":"IF(ISERROR(VLOOKUP(C15,'Startovní listina'!$B$5:$F$141,4)),\"\",VLOOKUP(C15,'Startovní listina'!$B$5:$F$141,4))","v":""},null,null,null,null,{"$f":"IF(ISERROR(VLOOKUP(C15,'Startovní listina'!$B$5:$F$141,5)),\"\",VLOOKUP(C15,'Startovní listina'!$B$5:$F$141,5))","v":""}]
[null,"7.",null,{"$f":"IF(ISERROR(VLOOKUP(C16,'Startovní listina'!$B$5:$F$141,2)),\"\",VLOOKUP(C16,'Startovní listina'!$B$5:$F$141,2))","v":""},{"$f":"IF(ISERROR(VLOOKUP(C16,'Startovní listina'!$B$5:$F$141,3)),\"\",VLOOKUP(C16,'Startovní listina'!$B$5:$F$141,3))","v":""},{"$f":"IF(ISERROR(VLOOKUP(C16,'Startovní listina'!$B$5:$F$141,4)),\"\",VLOOKUP(C16,'Startovní listina'!$B$5:$F$141,4))","v":""},{"$f":"IF(K16=K17,K16,\"RŮZNÉ ODDÍLY !!!\")","v":""},null,{"$f":"IF((H16=0),\"\",H16+H17)","v":""},null,{"$f":"IF(ISERROR(VLOOKUP(C16,'Startovní listina'!$B$5:$F$141,5)),\"\",VLOOKUP(C16,'Startovní listina'!$B$5:$F$141,5))","v":""}]
[null,null,null,{"$f":"IF(ISERROR(VLOOKUP(C17,'Startovní listina'!$B$5:$F$141,2)),\"\",VLOOKUP(C17,'Startovní listina'!$B$5:$F$141,2))","v":""},{"$f":"IF(ISERROR(VLOOKUP(C17,'Startovní listina'!$B$5:$F$141,3)),\"\",VLOOKUP(C17,'Startovní listina'!$B$5:$F$141,3))","v":""},{"$f":"IF(ISERROR(VLOOKUP(C17,'Startovní listina'!$B$5:$F$141,4)),\"\",VLOOKUP(C17,'Startovní listina'!$B$5:$F$141,4))","v":""},null,null,null,null,{"$f":"IF(ISERROR(VLOOKUP(C17,'Startovní listina'!$B$5:$F$141,5)),\"\",VLOOKUP(C17,'Startovní listina'!$B$5:$F$141,5))","v":""}]
[null,"8.",null,{"$f":"IF(ISERROR(VLOOKUP(C18,'Startovní listina'!$B$5:$F$141,2)),\"\",VLOOKUP(C18,'Startovní listina'!$B$5:$F$141,2))","v":""},{"$f":"IF(ISERROR(VLOOKUP(C18,'Startovní listina'!$B$5:$F$141,3)),\"\",VLOOKUP(C18,'Startovní listina'!$B$5:$F$141,3))","v":""},{"$f":"IF(ISERROR(VLOOKUP(C18,'Startovní listina'!$B$5:$F$141,4)),\"\",VLOOKUP(C18,'Startovní listina'!$B$5:$F$141,4))","v":""},null,null,{"$f":"IF((H18=0),\"\",H18+H19)","v":""},null,{"$f":"IF(ISERROR(VLOOKUP(C18,'Startovní listina'!$B$5:$F$141,5)),\"\",VLOOKUP(C18,'Startovní listina'!$B$5:$F$141,5))","v":""}]
[null,null,null,{"$f":"IF(ISERROR(VLOOKUP(C19,'Startovní listina'!$B$5:$F$141,2)),\"\",VLOOKUP(C19,'Startovní listina'!$B$5:$F$141,2))","v":""},{"$f":"IF(ISERROR(VLOOKUP(C19,'Startovní listina'!$B$5:$F$141,3)),\"\",VLOOKUP(C19,'Startovní listina'!$B$5:$F$141,3))","v":""},{"$f":"IF(ISERROR(VLOOKUP(C19,'Startovní listina'!$B$5:$F$141,4)),\"\",VLOOKUP(C19,'Startovní listina'!$B$5:$F$141,4))","v":""},null,null,null,null,{"$f":"IF(ISERROR(VLOOKUP(C19,'Startovní listina'!$B$5:$F$141,5)),\"\",VLOOKUP(C19,'Startovní listina'!$B$5:$F$141,5))","v":""}]
[null,"9.",null,{"$f":"IF(ISERROR(VLOOKUP(C20,'Startovní listina'!$B$5:$F$141,2)),\"\",VLOOKUP(C20,'Startovní listina'!$B$5:$F$141,2))","v":""},{"$f":"IF(ISERROR(VLOOKUP(C20,'Startovní listina'!$B$5:$F$141,3)),\"\",VLOOKUP(C20,'Startovní listina'!$B$5:$F$141,3))","v":""},{"$f":"IF(ISERROR(VLOOKUP(C20,'Startovní listina'!$B$5:$F$141,4)),\"\",VLOOKUP(C20,'Startovní listina'!$B$5:$F$141,4))","v":""},null,null,{"$f":"IF((H20=0),\"\",H20+H21)","v":""},null,{"$f":"IF(ISERROR(VLOOKUP(C20,'Startovní listina'!$B$5:$F$141,5)),\"\",VLOOKUP(C20,'Startovní listina'!$B$5:$F$141,5))","v":""}]
[null,null,null,{"$f":"IF(ISERROR(VLOOKUP(C21,'Startovní listina'!$B$5:$F$141,2)),\"\",VLOOKUP(C21,'Startovní listina'!$B$5:$F$141,2))","v":""},{"$f":"IF(ISERROR(VLOOKUP(C21,'Startovní listina'!$B$5:$F$141,3)),\"\",VLOOKUP(C21,'Startovní listina'!$B$5:$F$141,3))","v":""},{"$f":"IF(ISERROR(VLOOKUP(C21,'Startovní listina'!$B$5:$F$141,4)),\"\",VLOOKUP(C21,'Startovní listina'!$B$5:$F$141,4))","v":""},null,null,null,null,{"$f":"IF(ISERROR(VLOOKUP(C21,'Startovní listina'!$B$5:$F$141,5)),\"\",VLOOKUP(C21,'Startovní listina'!$B$5:$F$141,5))","v":""}]
[null,"10.",null,{"$f":"IF(ISERROR(VLOOKUP(C22,'Startovní listina'!$B$5:$F$141,2)),\"\",VLOOKUP(C22,'Startovní listina'!$B$5:$F$141,2))","v":""},{"$f":"IF(ISERROR(VLOOKUP(C22,'Startovní listina'!$B$5:$F$141,3)),\"\",VLOOKUP(C22,'Startovní listina'!$B$5:$F$141,3))","v":""},{"$f":"IF(ISERROR(VLOOKUP(C22,'Startovní listina'!$B$5:$F$141,4)),\"\",VLOOKUP(C22,'Startovní listina'!$B$5:$F$141,4))","v":""},null,null,{"$f":"IF((H22=0),\"\",H22+H23)","v":""},null,{"$f":"IF(ISERROR(VLOOKUP(C22,'Startovní listina'!$B$5:$F$141,5)),\"\",VLOOKUP(C22,'Startovní listina'!$B$5:$F$141,5))","v":""}]
[null,null,null,{"$f":"IF(ISERROR(VLOOKUP(C23,'Startovní listina'!$B$5:$F$141,2)),\"\",VLOOKUP(C23,'Startovní listina'!$B$5:$F$141,2))","v":""},{"$f":"IF(ISERROR(VLOOKUP(C23,'Startovní listina'!$B$5:$F$141,3)),\"\",VLOOKUP(C23,'Startovní listina'!$B$5:$F$141,3))","v":""},{"$f":"IF(ISERROR(VLOOKUP(C23,'Startovní listina'!$B$5:$F$141,4)),\"\",VLOOKUP(C23,'Startovní listina'!$B$5:$F$141,4))","v":""},null,null,null,null,{"$f":"IF(ISERROR(VLOOKUP(C23,'Startovní listina'!$B$5:$F$141,5)),\"\",VLOOKUP(C23,'Startovní listina'!$B$5:$F$141,5))","v":""}]
[null,"11.",null,{"$f":"IF(ISERROR(VLOOKUP(C24,'Startovní listina'!$B$5:$F$141,2)),\"\",VLOOKUP(C24,'Startovní listina'!$B$5:$F$141,2))","v":""},{"$f":"IF(ISERROR(VLOOKUP(C24,'Startovní listina'!$B$5:$F$141,3)),\"\",VLOOKUP(C24,'Startovní listina'!$B$5:$F$141,3))","v":""},{"$f":"IF(ISERROR(VLOOKUP(C24,'Startovní listina'!$B$5:$F$141,4)),\"\",VLOOKUP(C24,'Startovní listina'!$B$5:$F$141,4))","v":""},null,null,{"$f":"IF((H24=0),\"\",H24+H25)","v":""},null,{"$f":"IF(ISERROR(VLOOKUP(C24,'Startovní listina'!$B$5:$F$141,5)),\"\",VLOOKUP(C24,'Startovní listina'!$B$5:$F$141,5))","v":""}]
[null,null,null,{"$f":"IF(ISERROR(VLOOKUP(C25,'Startovní listina'!$B$5:$F$141,2)),\"\",VLOOKUP(C25,'Startovní listina'!$B$5:$F$141,2))","v":""},{"$f":"IF(ISERROR(VLOOKUP(C25,'Startovní listina'!$B$5:$F$141,3)),\"\",VLOOKUP(C25,'Startovní listina'!$B$5:$F$141,3))","v":""},{"$f":"IF(ISERROR(VLOOKUP(C25,'Startovní listina'!$B$5:$F$141,4)),\"\",VLOOKUP(C25,'Startovní listina'!$B$5:$F$141,4))","v":""},null,null,null,null,{"$f":"IF(ISERROR(VLOOKUP(C25,'Startovní listina'!$B$5:$F$141,5)),\"\",VLOOKUP(C25,'Startovní listina'!$B$5:$F$141,5))","v":""}]

{"sheet":"Běh Vírem","index":4,"n_rows":27,"n_cols":12,"rows_kept":27,"cut":false,"hidden":false,"merged":[[0,0,0,7],[2,3,2,4],[1,3,1,4]]}
[{"$f":"\"Běh Vírem \"&'Prezenční listina'!O2","v":"Běh Vírem 2016"}]
[null,null,null,{"$f":"'Startovní listina'!$A$2","v":"2016-08-20"},{"$f":"'Startovní listina'!$A$2","v":"2016-08-20"}]
[null,null,null,{"$f":"'Prezenční listina'!$O$2-1966&\" . ročník\"","v":"50 . ročník"}]
[null,"Příjmení","Jméno","Narození","Oddíl / Bydliště","Startovní číslo","Čas","Pohlaví"]
["1.","Křenková","Kateřina",2001,"Přeštice",93,"00:12:38",{"$f":"IF(LEN(B5)=0,\" \",IF(MID(B5,LEN(B5),1)=\"á\",\"Ž\",\"M\"))","v":"Ž"}]
["2.","Sojková","Natálie",2000,"Kaplice",95,"00:14:28",{"$f":"IF(LEN(B6)=0,\" \",IF(MID(B6,LEN(B6),1)=\"á\",\"Ž\",\"M\"))","v":"Ž"}]
["3.","Soldánová","Jana",1999,"AK Drnovice",91,"00:15:09",{"$f":"IF(LEN(B7)=0,\" \",IF(MID(B7,LEN(B7),1)=\"á\",\"Ž\",\"M\"))","v":"Ž"}]
["4.","Křenková","Karolína",2001,"Přeštice",92,"00:15:49",{"$f":"IF(LEN(B8)=0,\" \",IF(MID(B8,LEN(B8),1)=\"á\",\"Ž\",\"M\"))","v":"Ž"}]
["1.","Starý","Michal",1998,"Nové Město na Moravě",72,"00:10:21",{"$f":"IF(LEN(B9)=0,\" \",IF(MID(B9,LEN(B9),1)=\"á\",\"Ž\",\"M\"))","v":"M"}]
["2.","Kabrda","Jiří",2001,"TJ Nové Město na Moravě",90,"00:10:30",{"$f":"IF(LEN(B10)=0,\" \",IF(MID(B10,LEN(B10),1)=\"á\",\"Ž\",\"M\"))","v":"M"}]
["3","Ammer","Matyáš",2002,"AC Čáslav",83,"00:11:04",{"$f":"IF(LEN(B11)=0,\" \",IF(MID(B11,LEN(B11),1)=\"á\",\"Ž\",\"M\"))","v":"M"}]
["4","Janů","Pavel",1999,"Hvězda Pardubice",82,"00:11:29",{"$f":"IF(LEN(B12)=0,\" \",IF(MID(B12,LEN(B12),1)=\"á\",\"Ž\",\"M\"))","v":"M"},null,null,null,";"]
["5","Coural","Jaroslav",2002,"Jiskra Vír",81,"00:12:03",{"$f":"IF(LEN(B13)=0,\" \",IF(MID(B13,LEN(B13),1)=\"á\",\"Ž\",\"M\"))","v":"M"}]
["6","Nikolyv","Jiří",2000,"Horní Rožínka",75,"00:12:35",{"$f":"IF(LEN(B14)=0,\" \",IF(MID(B14,LEN(B14),1)=\"á\",\"Ž\",\"M\"))","v":"M"}]
["7","Kluj","Jiří ",2003,"Brno",76,"00:13:30",{"$f":"IF(LEN(B15)=0,\" \",IF(MID(B15,LEN(B15),1)=\"á\",\"Ž\",\"M\"))","v":"M"}]
["8","Šacl","Marek",2004,"Dolní Rožínka",89,"00:13:49",{"$f":"IF(LEN(B16)=0,\" \",IF(MID(B16,LEN(B16),1)=\"á\",\"Ž\",\"M\"))","v":"M"}]
["9","Vondruška","Vojtěch",2003,"Dolní Rožínka",88,"00:14:13",{"$f":"IF(LEN(B17)=0,\" \",IF(MID(B17,LEN(B17),1)=\"á\",\"Ž\",\"M\"))","v":"M"}]
[null,null,null,null,null,null,null,{"$f":"IF(LEN(B18)=0,\" \",IF(MID(B18,LEN(B18),1)=\"á\",\"Ž\",\"M\"))","v":" "}]
[null,null,null,null,null,null,null," "]
[null,null,null,null,null,null,null," "]
[null,null,null,null,null,null,null," "]
[null,null,null,null,null,null,null," "]
[null,null,null,null,null,null,null," "]
[null,null,null,null,null,null,null," "]
[null,null,null,null,null,null,null," ",null,null,","]
[null,null,null,null,null,null,null," "]
[null,null,null,null,null,null,null," "]

{"sheet":"mezičasy","index":5,"n_rows":30,"n_cols":8,"rows_kept":30,"cut":false,"hidden":true,"merged":[[0,0,0,1],[0,2,0,3],[0,4,0,5],[0,6,0,7]]}
["5. km",null,"10. km",null,"16. km",null,"25. km"]
["číslo","čas","číslo","čas","číslo","čas","číslo","čas"]
[83,"00:17:02",31,"00:34:16",31,"00:55:10",31,"01:28:37"]
[31,":      :",83,":      :",83,"00:55:24",83,"01:29:24"]
[37,"00:19:08",8,"00:38:36",37,"01:02:56",37,"01:41:23"]
[8,":      :",37,"00:38:38",8,"01:04:06",8,"01:43:04"]
[74,"00:19:14",77,"00:39:12",64,":      :",77,"01:43:22"]
[12,":      :",64,":      :",77,":      :",null,":      :"]
[61,":      :",12,":      :",12,":      :",null,":      :"]
[69,":      :",61,":      :",61,"01:04:32",null,":      :"]
[54,"00:19:45",54,"00:40:29",54,"01:06:44",null,":      :"]
[93,"00:19:58",null,":      :",1,"01:07:50",null,":      :"]
[1,":      :",null,":      :",null,":      :",null,":      :"]
[35,"00:20:15",null,":      :",null,":      :",null,":      :"]
[48,":      :",null,":      :",34,"09:30:00",null,":      :"]
[38,"00:21:14",null,":      :",38,":      :",null,":      :"]
[34,"00:21:26",null,":      :",null,":      :",null,":      :"]
[30,"00:21:41",null,":      :",null,":      :",null,":      :"]
[18,":      :",null,":      :",null,":      :",null,":      :"]
[null,":      :",null,":      :",null,":      :",null,":      :"]
[null,":      :",null,":      :",null,":      :",null,":      :"]
[null,":      :",null,":      :",null,":      :",null,":      :"]
[null,":      :",null,":      :",null,":      :",null,":      :"]
[null,":      :",null,":      :",null,":      :",null,":      :"]
[null,":      :",null,":      :",null,":      :",null,":      :"]
[null,":      :",null,":      :",null,":      :",null,":      :"]
[null,":      :",null,":      :",null,":      :",null,":      :"]
[null,":      :",null,":      :",null,":      :",null,":      :"]
[null,":      :",null,":      :",null,":      :",null,":      :"]
[null,":      :",null,":      :",null,":      :",null,":      :"]

{"sheet":"mezičasy 2015","index":6,"n_rows":11,"n_cols":8,"rows_kept":11,"cut":false,"hidden":true,"merged":[[0,0,0,1],[0,2,0,3],[0,4,0,5],[0,6,0,7]]}
["5. km",null,"10. km",null,"16. km",null,"25. km"]
["číslo","čas","číslo","čas","číslo","čas","číslo","čas"]
[107,"00:16:50",107,"00:34:03",107,"00:55:14",107,"01:28:54"]
[60,"00:18:11",11,"00:36:39",11,"00:59:32",11,"01:34:32"]
[22,"00:18:11",60,"00:36:39",60,"00:59:30",60,"01:36:34"]
[82,"00:18:11",82,"00:37:05",40,"01:00:10",26,"01:36:52"]
[11,"00:18:11",40,"00:37:12",82,"01:00:15",40,"01:37:13"]
[26,"00:18:11"]
[40,"00:18:11"]
[]
[87,"00:20:50"]

{"sheet":"Diplom MSM A5","index":7,"n_rows":36,"n_cols":13,"rows_kept":36,"cut":false,"hidden":true,"merged":[[26,3,28,10],[29,6,31,6],[31,3,34,3],[32,12,33,13],[35,6,36,9]]}
[]
[]
[]
[]
[]
[]
[]
[]
[]
[]
[]
[]
[]
[]
[]
[]
[]
[]
[]
[]
[]
[]
[]
[]
[]
[]
[null,null,null,{"$f":"'Výsledková listina'!E5&\" \"&'Výsledková listina'!F5","v":"Kohut Jan"}]
[]
[]
[null,null,null,null,null,null,{"$f":"'Výsledková listina'!B5&\".\"","v":"1."}]
[]
[null,null,null,{"$f":"'Výsledková listina'!C5","v":"A"}]
[null,null,null,null,null,null,null,null,null,null,null,null,{"$f":"'Výsledková listina'!I5","v":"01:57:10"}]
[]
[]
[null,null,null,null,null,null,"20. srpna 2016"]

{"sheet":"Diplom MSM A5 (2)","index":8,"n_rows":36,"n_cols":13,"rows_kept":36,"cut":false,"hidden":true,"merged":[[26,3,28,10],[29,6,31,6],[31,3,34,3],[32,12,33,13],[35,6,36,9]]}
[]
[]
[]
[]
[]
[]
[]
[]
[]
[]
[]
[]
[]
[]
[]
[]
[]
[]
[]
[]
[]
[]
[]
[]
[]
[]
[null,null,null,{"$f":"'Výsledková listina'!E6&\" \"&'Výsledková listina'!F6","v":"Orálek Daniel"}]
[]
[]
[null,null,null,null,null,null,{"$f":"'Výsledková listina'!B6&\".\"","v":"1."}]
[]
[null,null,null,{"$f":"'Výsledková listina'!C6","v":"B"}]
[null,null,null,null,null,null,null,null,null,null,null,null,{"$f":"'Výsledková listina'!I6","v":"01:58:15"}]
[]
[]
[null,null,null,null,null,null,"20. srpna 2016"]

{"sheet":"Výsledková listina 2015","index":9,"n_rows":103,"n_cols":11,"rows_kept":103,"cut":false,"hidden":true,"merged":[[0,0,0,8],[1,0,1,8],[1,10,12,14],[2,0,2,8]]}
[{"$f":"\"Výsledková listina - Malý svratecký maraton \"&'[2]Prezenční listina'!O2","v":"Výsledková listina - Malý svratecký maraton 2015"}]
["2015-08-22",null,null,null,null,null,null,null,null,null,"\nPoté, co jsou dopsány časy VŠECH běžců, stisknout tlačítko 1.řazení \n\n\nVe sloupci B (Pořadí v kategorii) vytvořit posloupnou číselnou řadu pro každou kategorii a poté stisknout tlačítko 2.řazení\n\n\n                      !!! POZOR!!!\n\n               Použití tlačítek je nevratný krok!"]
[{"$f":"'[2]Prezenční listina'!O2-1953&\". ročník\"","v":"62. ročník"}]
["Celkové pořadí","Pořadí v kategorii","Kategorie","Startovní číslo","Příjmení","Jméno","Narození","Oddíl / Bydliště","Čas"]
[1,1,{"$f":"'[2]Startovní listina'!G98","v":"B"},{"$f":"'[2]Startovní listina'!B98","v":107},{"$f":"'[2]Startovní listina'!C98","v":"Orálek"},{"$f":"'[2]Startovní listina'!D98","v":"Daniel"},{"$f":"'[2]Startovní listina'!E98","v":1970},{"$f":"'[2]Startovní listina'!F98","v":"Moravská Slávia Brno"},"01:54:34"]
[{"$f":"IF('Výsledková listina 2015'!D5<>\"\",A5+1,\"\")","v":2},1,{"$f":"'[2]Startovní listina'!G15","v":"A"},{"$f":"'[2]Startovní listina'!B15","v":11},{"$f":"'[2]Startovní listina'!C15","v":"Fousek"},{"$f":"'[2]Startovní listina'!D15","v":"Jan"},{"$f":"'[2]Startovní listina'!E15","v":1991},{"$f":"'[2]Startovní listina'!F15","v":"MK Seitl Ostrava"},"02:01:16"]
[{"$f":"IF('Výsledková listina 2015'!D6<>\"\",A6+1,\"\")","v":3},2,{"$f":"'[2]Startovní listina'!G27","v":"A"},{"$f":"'[2]Startovní listina'!B27","v":26},{"$f":"'[2]Startovní listina'!C27","v":"Nováček"},{"$f":"'[2]Startovní listina'!D27","v":"Tomáš"},{"$f":"'[2]Startovní listina'!E27","v":1983},{"$f":"'[2]Startovní listina'!F27","v":"Atletic Třebíč"},"02:05:07"]
[{"$f":"IF('Výsledková listina 2015'!D7<>\"\",A7+1,\"\")","v":4},2,{"$f":"'[2]Startovní listina'!G12","v":"B"},{"$f":"'[2]Startovní listina'!B12","v":8},{"$f":"'[2]Startovní listina'!C12","v":"Škapa"},{"$f":"'[2]Startovní listina'!D12","v":"Marek"},{"$f":"'[2]Startovní listina'!E12","v":1971},{"$f":"'[2]Startovní listina'!F12","v":"MK Seitl Ostrava"},"02:05:40"]
[{"$f":"IF('Výsledková listina 2015'!D8<>\"\",A8+1,\"\")","v":5},3,{"$f":"'[2]Startovní listina'!G9","v":"B"},{"$f":"'[2]Startovní listina'!B9","v":5},{"$f":"'[2]Startovní listina'!C9","v":"Chramosta"},{"$f":"'[2]Startovní listina'!D9","v":"Jaroslav"},{"$f":"'[2]Startovní listina'!E9","v":1966},{"$f":"'[2]Startovní listina'!F9","v":"JABOJA Team Děčín"},"02:05:55"]
[{"$f":"IF('Výsledková listina 2015'!D9<>\"\",A9+1,\"\")","v":6},4,{"$f":"'[2]Startovní listina'!G39","v":"B"},{"$f":"'[2]Startovní listina'!B39","v":40},{"$f":"'[2]Startovní listina'!C39","v":"Ryška"},{"$f":"'[2]Startovní listina'!D39","v":"Vít"},{"$f":"'[2]Startovní listina'!E39","v":1975},{"$f":"'[2]Startovní listina'!F39","v":"VSK Univerzita Brno"},"02:07:35"]
[{"$f":"IF('Výsledková listina 2015'!D10<>\"\",A10+1,\"\")","v":7},3,{"$f":"'[2]Startovní listina'!G58","v":"A"},{"$f":"'[2]Startovní listina'!B58","v":60},{"$f":"'[2]Startovní listina'!C58","v":"Kupidlovský"},{"$f":"'[2]Startovní listina'!D58","v":"Daniel"},{"$f":"'[2]Startovní listina'!E58","v":1976},{"$f":"'[2]Startovní listina'!F58","v":"Stodůlky"},"02:07:54"]
[{"$f":"IF('Výsledková listina 2015'!D11<>\"\",A11+1,\"\")","v":8},5,{"$f":"'[2]Startovní listina'!G24","v":"B"},{"$f":"'[2]Startovní listina'!B24","v":22},{"$f":"'[2]Startovní listina'!C24","v":"Štýbnar"},{"$f":"'[2]Startovní listina'!D24","v":"Zbyněk"},{"$f":"'[2]Startovní listina'!E24","v":1974},{"$f":"'[2]Startovní listina'!F24","v":"Běžec Vysočiny Jihlava"},"02:08:44"]
[{"$f":"IF('Výsledková listina 2015'!D12<>\"\",A12+1,\"\")","v":9},6,{"$f":"'[2]Startovní listina'!G40","v":"B"},{"$f":"'[2]Startovní listina'!B40","v":41},{"$f":"'[2]Startovní listina'!C40","v":"Hýbl"},{"$f":"'[2]Startovní listina'!D40","v":"Jiří"},{"$f":"'[2]Startovní listina'!E40","v":1967},{"$f":"'[2]Startovní listina'!F40","v":"Hrušovany u Brna"},"02:10:10"]
[{"$f":"IF('Výsledková listina 2015'!D13<>\"\",A13+1,\"\")","v":10},4,{"$f":"'[2]Startovní listina'!G74","v":"A"},{"$f":"'[2]Startovní listina'!B74","v":82},{"$f":"'[2]Startovní listina'!C74","v":"Glier"},{"$f":"'[2]Startovní listina'!D74","v":"Michal"},{"$f":"'[2]Startovní listina'!E74","v":1982},{"$f":"'[2]Startovní listina'!F74","v":"Moravská Slávia Brno"},"02:11:00"]
[{"$f":"IF('Výsledková listina 2015'!D14<>\"\",A14+1,\"\")","v":11},7,{"$f":"'[2]Startovní listina'!G49","v":"B"},{"$f":"'[2]Startovní listina'!B49","v":50},{"$f":"'[2]Startovní listina'!C49","v":"Dušil"},{"$f":"'[2]Startovní listina'!D49","v":"Jaroslav"},{"$f":"'[2]Startovní listina'!E49","v":1970},{"$f":"'[2]Startovní listina'!F49","v":"Brno"},"02:13:13"]
[{"$f":"IF('Výsledková listina 2015'!D15<>\"\",A15+1,\"\")","v":12},1,{"$f":"'[2]Startovní listina'!G79","v":"F"},{"$f":"'[2]Startovní listina'!B79","v":87},{"$f":"'[2]Startovní listina'!C79","v":"Dýrová Macháčková"},{"$f":"'[2]Startovní listina'!D79","v":"Šárka"},{"$f":"'[2]Startovní listina'!E79","v":1983},{"$f":"'[2]Startovní listina'!F79","v":"Mizunoteam Brno"},"02:13:29"]
[{"$f":"IF('Výsledková listina 2015'!D16<>\"\",A16+1,\"\")","v":13},8,{"$f":"'[2]Startovní listina'!G41","v":"B"},{"$f":"'[2]Startovní listina'!B41","v":42},{"$f":"'[2]Startovní listina'!C41","v":"Horný"},{"$f":"'[2]Startovní listina'!D41","v":"Pavel"},{"$f":"'[2]Startovní listina'!E41","v":1973},{"$f":"'[2]Startovní listina'!F41","v":"VHT Přerov"},"02:16:46"]
[{"$f":"IF('Výsledková listina 2015'!D17<>\"\",A17+1,\"\")","v":14},1,{"$f":"'[2]Startovní listina'!G29","v":"C"},{"$f":"'[2]Startovní listina'!B29","v":28},{"$f":"'[2]Startovní listina'!C29","v":"Kratochvíl"},{"$f":"'[2]Startovní listina'!D29","v":"Pavel"},{"$f":"'[2]Startovní listina'!E29","v":1960},{"$f":"'[2]Startovní listina'!F29","v":"Atletic Třebíč"},"02:19:07"]
[{"$f":"IF('Výsledková listina 2015'!D18<>\"\",A18+1,\"\")","v":15},5,{"$f":"'[2]Startovní listina'!G51","v":"A"},{"$f":"'[2]Startovní listina'!B51","v":53},{"$f":"'[2]Startovní listina'!C51","v":"Očenášek"},{"$f":"'[2]Startovní listina'!D51","v":"Zdeněk"},{"$f":"'[2]Startovní listina'!E51","v":1976},{"$f":"'[2]Startovní listina'!F51","v":"Brno"},"02:19:36"]
[{"$f":"IF('Výsledková listina 2015'!D19<>\"\",A19+1,\"\")","v":16},9,{"$f":"'[2]Startovní listina'!G47","v":"B"},{"$f":"'[2]Startovní listina'!B47","v":48},{"$f":"'[2]Startovní listina'!C47","v":"Alman"},{"$f":"'[2]Startovní listina'!D47","v":"Dušan"},{"$f":"'[2]Startovní listina'!E47","v":1967},{"$f":"'[2]Startovní listina'!F47","v":"Babice"},"02:19:48"]
[{"$f":"IF('Výsledková listina 2015'!D20<>\"\",A20+1,\"\")","v":17},6,{"$f":"'[2]Startovní listina'!G86","v":"A"},{"$f":"'[2]Startovní listina'!B86","v":95},{"$f":"'[2]Startovní listina'!C86","v":"Kratochvíl"},{"$f":"'[2]Startovní listina'!D86","v":"Jaroslav"},{"$f":"'[2]Startovní listina'!E86","v":1977},{"$f":"'[2]Startovní listina'!F86","v":"SDH Hluboké"},"02:21:00"]
[{"$f":"IF('Výsledková listina 2015'!D22<>\"\",A21+1,\"\")","v":18},10,{"$f":"'[2]Startovní listina'!G48","v":"B"},{"$f":"'[2]Startovní listina'!B48","v":49},{"$f":"'[2]Startovní listina'!C48","v":"Plekanec"},{"$f":"'[2]Startovní listina'!D48","v":"Juraj"},{"$f":"'[2]Startovní listina'!E48","v":1974},{"$f":"'[2]Startovní listina'!F48","v":"Brno"},"02:21:35"]
[{"$f":"IF('Výsledková listina 2015'!D21<>\"\",A22+1,\"\")","v":19},2,{"$f":"'[2]Startovní listina'!G50","v":"F"},{"$f":"'[2]Startovní listina'!B50","v":51},{"$f":"'[2]Startovní listina'!C50","v":"Pešáková"},{"$f":"'[2]Startovní listina'!D50","v":"Mirka"},{"$f":"'[2]Startovní listina'!E50","v":1985},{"$f":"'[2]Startovní listina'!F50","v":"AK RACERS Tetčice"},"02:21:57"]
[{"$f":"IF('Výsledková listina 2015'!D23<>\"\",A23+1,\"\")","v":20},11,{"$f":"'[2]Startovní listina'!G89","v":"B"},{"$f":"'[2]Startovní listina'!B89","v":98},{"$f":"'[2]Startovní listina'!C89","v":"Konečný"},{"$f":"'[2]Startovní listina'!D89","v":"Libor"},{"$f":"'[2]Startovní listina'!E89","v":1971},{"$f":"'[2]Startovní listina'!F89","v":"Kuřim"},"02:23:07"]
[{"$f":"IF('Výsledková listina 2015'!D24<>\"\",A24+1,\"\")","v":21},2,{"$f":"'[2]Startovní listina'!G59","v":"C"},{"$f":"'[2]Startovní listina'!B59","v":61},{"$f":"'[2]Startovní listina'!C59","v":"Bezrouk"},{"$f":"'[2]Startovní listina'!D59","v":"Jiří"},{"$f":"'[2]Startovní listina'!E59","v":1962},{"$f":"'[2]Startovní listina'!F59","v":"Křtiny"},"02:23:11"]
[{"$f":"IF('Výsledková listina 2015'!D25<>\"\",A25+1,\"\")","v":22},7,{"$f":"'[2]Startovní listina'!G56","v":"A"},{"$f":"'[2]Startovní listina'!B56","v":58},{"$f":"'[2]Startovní listina'!C56","v":"Řezníček"},{"$f":"'[2]Startovní listina'!D56","v":"Roman"},{"$f":"'[2]Startovní listina'!E56","v":1977},{"$f":"'[2]Startovní listina'!F56","v":"Žďár nad Sázavou"},"02:24:19"]
[{"$f":"IF('Výsledková listina 2015'!D26<>\"\",A26+1,\"\")","v":23},8,{"$f":"'[2]Startovní listina'!G22","v":"A"},{"$f":"'[2]Startovní listina'!B22","v":19},{"$f":"'[2]Startovní listina'!C22","v":"Pokorný"},{"$f":"'[2]Startovní listina'!D22","v":"Václav"},{"$f":"'[2]Startovní listina'!E22","v":1978},{"$f":"'[2]Startovní listina'!F22","v":"Brno"},"02:25:09"]
[{"$f":"IF('Výsledková listina 2015'!D27<>\"\",A27+1,\"\")","v":24},9,{"$f":"'[2]Startovní listina'!G28","v":"A"},{"$f":"'[2]Startovní listina'!B28","v":27},{"$f":"'[2]Startovní listina'!C28","v":"Bohuslav"},{"$f":"'[2]Startovní listina'!D28","v":"Martin"},{"$f":"'[2]Startovní listina'!E28","v":1987},{"$f":"'[2]Startovní listina'!F28","v":"Atletic Třebíč"},"02:26:07"]
[{"$f":"IF('Výsledková listina 2015'!D28<>\"\",A28+1,\"\")","v":25},10,{"$f":"'[2]Startovní listina'!G38","v":"A"},{"$f":"'[2]Startovní listina'!B38","v":38},{"$f":"'[2]Startovní listina'!C38","v":"Kocur"},{"$f":"'[2]Startovní listina'!D38","v":"Lukáš"},{"$f":"'[2]Startovní listina'!E38","v":1977},{"$f":"'[2]Startovní listina'!F38","v":"VHS Brno"},"02:26:38"]
[{"$f":"IF('Výsledková listina 2015'!D29<>\"\",A29+1,\"\")","v":26},11,{"$f":"'[2]Startovní listina'!G61","v":"A"},{"$f":"'[2]Startovní listina'!B61","v":63},{"$f":"'[2]Startovní listina'!C61","v":"Sedláček"},{"$f":"'[2]Startovní listina'!D61","v":"Aleš"},{"$f":"'[2]Startovní listina'!E61","v":1976},{"$f":"'[2]Startovní listina'!F61","v":"Sokol Přísnotice"},"02:27:55"]
[{"$f":"IF('Výsledková listina 2015'!D30<>\"\",A30+1,\"\")","v":27},12,{"$f":"'[2]Startovní listina'!G84","v":"B"},{"$f":"'[2]Startovní listina'!B84","v":93},{"$f":"'[2]Startovní listina'!C84","v":"Havlíček"},{"$f":"'[2]Startovní listina'!D84","v":"Ivo"},{"$f":"'[2]Startovní listina'!E84","v":1966},{"$f":"'[2]Startovní listina'!F84","v":"Lánov - Krkonoše"},"02:28:22"]
[{"$f":"IF('Výsledková listina 2015'!D31<>\"\",A31+1,\"\")","v":28},13,{"$f":"'[2]Startovní listina'!G87","v":"B"},{"$f":"'[2]Startovní listina'!B87","v":96},{"$f":"'[2]Startovní listina'!C87","v":"Hladký"},{"$f":"'[2]Startovní listina'!D87","v":"Jiří"},{"$f":"'[2]Startovní listina'!E87","v":1975},{"$f":"'[2]Startovní listina'!F87","v":"Brno - Nový Lískovec"},"02:29:21"]
[{"$f":"IF('Výsledková listina 2015'!D32<>\"\",A32+1,\"\")","v":29},14,{"$f":"'[2]Startovní listina'!G91","v":"B"},{"$f":"'[2]Startovní listina'!B91","v":100},{"$f":"'[2]Startovní listina'!C91","v":"Fučík"},{"$f":"'[2]Startovní listina'!D91","v":"Jaroslav"},{"$f":"'[2]Startovní listina'!E91","v":1974},{"$f":"'[2]Startovní listina'!F91","v":"Prosetín"},"02:30:31"]
[{"$f":"IF('Výsledková listina 2015'!D33<>\"\",A33+1,\"\")","v":30},15,{"$f":"'[2]Startovní listina'!G83","v":"B"},{"$f":"'[2]Startovní listina'!B83","v":92},{"$f":"'[2]Startovní listina'!C83","v":"Řezníček"},{"$f":"'[2]Startovní listina'!D83","v":"Petr"},{"$f":"'[2]Startovní listina'!E83","v":1973},{"$f":"'[2]Startovní listina'!F83","v":"Polnička"},"02:31:15"]
[{"$f":"IF('Výsledková listina 2015'!D34<>\"\",A34+1,\"\")","v":31},1,{"$f":"'[2]Startovní listina'!G35","v":"H"},{"$f":"'[2]Startovní listina'!B35","v":35},{"$f":"'[2]Startovní listina'!C35","v":"Krátká"},{"$f":"'[2]Startovní listina'!D35","v":"Anna"},{"$f":"'[2]Startovní listina'!E35","v":1969},{"$f":"'[2]Startovní listina'!F35","v":"Hvězda SKP Pardubice"},"02:31:40"]
[{"$f":"IF('Výsledková listina 2015'!D35<>\"\",A35+1,\"\")","v":32},16,{"$f":"'[2]Startovní listina'!G37","v":"B"},{"$f":"'[2]Startovní listina'!B37","v":37},{"$f":"'[2]Startovní listina'!C37","v":"Kropáček"},{"$f":"'[2]Startovní listina'!D37","v":"Jaroslav"},{"$f":"'[2]Startovní listina'!E37","v":1970},{"$f":"'[2]Startovní listina'!F37","v":"Brno"},"02:32:28"]
[{"$f":"IF('Výsledková listina 2015'!D36<>\"\",A36+1,\"\")","v":33},3,{"$f":"'[2]Startovní listina'!G14","v":"C"},{"$f":"'[2]Startovní listina'!B14","v":10},{"$f":"'[2]Startovní listina'!C14","v":"Dvorský"},{"$f":"'[2]Startovní listina'!D14","v":"Ladislav"},{"$f":"'[2]Startovní listina'!E14","v":1965},{"$f":"'[2]Startovní listina'!F14","v":"MK Seitl Ostrava"},"02:32:37"]
[{"$f":"IF('Výsledková listina 2015'!D37<>\"\",A37+1,\"\")","v":34},4,{"$f":"'[2]Startovní listina'!G43","v":"C"},{"$f":"'[2]Startovní listina'!B43","v":44},{"$f":"'[2]Startovní listina'!C43","v":"Suchý"},{"$f":"'[2]Startovní listina'!D43","v":"Karel"},{"$f":"'[2]Startovní listina'!E43","v":1956},{"$f":"'[2]Startovní listina'!F43","v":"Atletic Třebíč"},"02:32:49"]
[{"$f":"IF('Výsledková listina 2015'!D38<>\"\",A38+1,\"\")","v":35},12,{"$f":"'[2]Startovní listina'!G67","v":"A"},{"$f":"'[2]Startovní listina'!B67","v":73},{"$f":"'[2]Startovní listina'!C67","v":"Brabenec"},{"$f":"'[2]Startovní listina'!D67","v":"Aleš"},{"$f":"'[2]Startovní listina'!E67","v":1987},{"$f":"'[2]Startovní listina'!F67","v":"Žďár nad Sázavou"},"02:34:42"]
[{"$f":"IF('Výsledková listina 2015'!D39<>\"\",A39+1,\"\")","v":36},5,{"$f":"'[2]Startovní listina'!G95","v":"C"},{"$f":"'[2]Startovní listina'!B95","v":104},{"$f":"'[2]Startovní listina'!C95","v":"Sedláček"},{"$f":"'[2]Startovní listina'!D95","v":"Svatopluk"},{"$f":"'[2]Startovní listina'!E95","v":1957},{"$f":"'[2]Startovní listina'!F95","v":"Moravská Slávia Brno"},"02:34:44"]
[{"$f":"IF('Výsledková listina 2015'!D40<>\"\",A40+1,\"\")","v":37},3,{"$f":"'[2]Startovní listina'!G54","v":"F"},{"$f":"'[2]Startovní listina'!B54","v":56},{"$f":"'[2]Startovní listina'!C54","v":"Johaníková"},{"$f":"'[2]Startovní listina'!D54","v":"Lucie"},{"$f":"'[2]Startovní listina'!E54","v":1986},{"$f":"'[2]Startovní listina'!F54","v":"Moravská Slávia Brno"},"02:37:38"]
[{"$f":"IF('Výsledková listina 2015'!D41<>\"\",A41+1,\"\")","v":38},17,{"$f":"'[2]Startovní listina'!G30","v":"B"},{"$f":"'[2]Startovní listina'!B30","v":29},{"$f":"'[2]Startovní listina'!C30","v":"Provazník"},{"$f":"'[2]Startovní listina'!D30","v":"Milan"},{"$f":"'[2]Startovní listina'!E30","v":1966},{"$f":"'[2]Startovní listina'!F30","v":"Polička"},"02:37:53"]
[{"$f":"IF('Výsledková listina 2015'!D42<>\"\",A42+1,\"\")","v":39},13,{"$f":"'[2]Startovní listina'!G31","v":"A"},{"$f":"'[2]Startovní listina'!B31","v":30},{"$f":"'[2]Startovní listina'!C31","v":"Mikeš"},{"$f":"'[2]Startovní listina'!D31","v":"Petr"},{"$f":"'[2]Startovní listina'!E31","v":1977},{"$f":"'[2]Startovní listina'!F31","v":"Vyškovec"},"02:38:44"]
[{"$f":"IF('Výsledková listina 2015'!D43<>\"\",A43+1,\"\")","v":40},6,{"$f":"'[2]Startovní listina'!G60","v":"C"},{"$f":"'[2]Startovní listina'!B60","v":62},{"$f":"'[2]Startovní listina'!C60","v":"Čuhel"},{"$f":"'[2]Startovní listina'!D60","v":"Jiří"},{"$f":"'[2]Startovní listina'!E60","v":1958},{"$f":"'[2]Startovní listina'!F60","v":"Křtěnov"},"02:38:54"]
[{"$f":"IF('Výsledková listina 2015'!D44<>\"\",A44+1,\"\")","v":41},14,{"$f":"'[2]Startovní listina'!G63","v":"A"},{"$f":"'[2]Startovní listina'!B63","v":67},{"$f":"'[2]Startovní listina'!C63","v":"Dubský"},{"$f":"'[2]Startovní listina'!D63","v":"Roman"},{"$f":"'[2]Startovní listina'!E63","v":1978},{"$f":"'[2]Startovní listina'!F63","v":"SK Přibyslav"},"02:39:15"]
[{"$f":"IF('Výsledková listina 2015'!D45<>\"\",A45+1,\"\")","v":42},1,{"$f":"'[2]Startovní listina'!G13","v":"D"},{"$f":"'[2]Startovní listina'!B13","v":9},{"$f":"'[2]Startovní listina'!C13","v":"Výtisk"},{"$f":"'[2]Startovní listina'!D13","v":"Alfons"},{"$f":"'[2]Startovní listina'!E13","v":1949},{"$f":"'[2]Startovní listina'!F13","v":"MK Seitl Ostrava"},"02:40:16"]
[{"$f":"IF('Výsledková listina 2015'!D46<>\"\",A46+1,\"\")","v":43},15,{"$f":"'[2]Startovní listina'!G6","v":"A"},{"$f":"'[2]Startovní listina'!B6","v":2},{"$f":"'[2]Startovní listina'!C6","v":"Pivec"},{"$f":"'[2]Startovní listina'!D6","v":"Jan"},{"$f":"'[2]Startovní listina'!E6","v":1981},{"$f":"'[2]Startovní listina'!F6","v":"HAL 3000 Brno"},"02:40:25"]
[{"$f":"IF('Výsledková listina 2015'!D47<>\"\",A47+1,\"\")","v":44},7,{"$f":"'[2]Startovní listina'!G55","v":"C"},{"$f":"'[2]Startovní listina'!B55","v":57},{"$f":"'[2]Startovní listina'!C55","v":"Češner"},{"$f":"'[2]Startovní listina'!D55","v":"Vladimír"},{"$f":"'[2]Startovní listina'!E55","v":1958},{"$f":"'[2]Startovní listina'!F55","v":"Odolena Voda"},"02:40:36"]
[{"$f":"IF('Výsledková listina 2015'!D48<>\"\",A48+1,\"\")","v":45},18,{"$f":"'[2]Startovní listina'!G62","v":"B"},{"$f":"'[2]Startovní listina'!B62","v":64},{"$f":"'[2]Startovní listina'!C62","v":"Cechmaister"},{"$f":"'[2]Startovní listina'!D62","v":"Bohumil"},{"$f":"'[2]Startovní listina'!E62","v":1974},{"$f":"'[2]Startovní listina'!F62","v":"Sokol Přísnotice"},"02:42:35"]
[{"$f":"IF('Výsledková listina 2015'!D49<>\"\",A49+1,\"\")","v":46},16,{"$f":"'[2]Startovní listina'!G57","v":"A"},{"$f":"'[2]Startovní listina'!B57","v":59},{"$f":"'[2]Startovní listina'!C57","v":"Hübner"},{"$f":"'[2]Startovní listina'!D57","v":"Jan"},{"$f":"'[2]Startovní listina'!E57","v":1978},{"$f":"'[2]Startovní listina'!F57","v":"SDH Bolešín"},"02:42:39"]
[{"$f":"IF('Výsledková listina 2015'!D50<>\"\",A50+1,\"\")","v":47},8,{"$f":"'[2]Startovní listina'!G68","v":"C"},{"$f":"'[2]Startovní listina'!B68","v":74},{"$f":"'[2]Startovní listina'!C68","v":"Brabenec"},{"$f":"'[2]Startovní listina'!D68","v":"Miroslav"},{"$f":"'[2]Startovní listina'!E68","v":1959},{"$f":"'[2]Startovní listina'!F68","v":"Žďár nad Sázavou"},"02:42:43"]
[{"$f":"IF('Výsledková listina 2015'!D51<>\"\",A51+1,\"\")","v":48},17,{"$f":"'[2]Startovní listina'!G20","v":"A"},{"$f":"'[2]Startovní listina'!B20","v":17},{"$f":"'[2]Startovní listina'!C20","v":"Kameníček"},{"$f":"'[2]Startovní listina'!D20","v":"Michal"},{"$f":"'[2]Startovní listina'!E20","v":1986},{"$f":"'[2]Startovní listina'!F20","v":"Vinařice"},"02:43:21"]
[{"$f":"IF('Výsledková listina 2015'!D52<>\"\",A52+1,\"\")","v":49},2,{"$f":"'[2]Startovní listina'!G80","v":"D"},{"$f":"'[2]Startovní listina'!B80","v":89},{"$f":"'[2]Startovní listina'!C80","v":"Kohoutek"},{"$f":"'[2]Startovní listina'!D80","v":"Jaromír"},{"$f":"'[2]Startovní listina'!E80","v":1955},{"$f":"'[2]Startovní listina'!F80","v":"Brno"},"02:45:32"]
[{"$f":"IF('Výsledková listina 2015'!D53<>\"\",A53+1,\"\")","v":50},1,{"$f":"'[2]Startovní listina'!G11","v":"G"},{"$f":"'[2]Startovní listina'!B11","v":7},{"$f":"'[2]Startovní listina'!C11","v":"Komárková"},{"$f":"'[2]Startovní listina'!D11","v":"Zdeňka"},{"$f":"'[2]Startovní listina'!E11","v":1974},{"$f":"'[2]Startovní listina'!F11","v":"SDH Bolešín"},"02:45:37"]
[{"$f":"IF('Výsledková listina 2015'!D54<>\"\",A54+1,\"\")","v":51},18,{"$f":"'[2]Startovní listina'!G53","v":"A"},{"$f":"'[2]Startovní listina'!B53","v":55},{"$f":"'[2]Startovní listina'!C53","v":"Kolman"},{"$f":"'[2]Startovní listina'!D53","v":"Jakub"},{"$f":"'[2]Startovní listina'!E53","v":1976},{"$f":"'[2]Startovní listina'!F53","v":"Posilovna Průvan"},"02:46:25"]
[{"$f":"IF('Výsledková listina 2015'!D55<>\"\",A55+1,\"\")","v":52},19,{"$f":"'[2]Startovní listina'!G66","v":"A"},{"$f":"'[2]Startovní listina'!B66","v":72},{"$f":"'[2]Startovní listina'!C66","v":"Mička"},{"$f":"'[2]Startovní listina'!D66","v":"Michal"},{"$f":"'[2]Startovní listina'!E66","v":1987},{"$f":"'[2]Startovní listina'!F66","v":"Žďár nad Sázavou"},"02:46:48"]
[{"$f":"IF('Výsledková listina 2015'!D56<>\"\",A56+1,\"\")","v":53},9,{"$f":"'[2]Startovní listina'!G71","v":"C"},{"$f":"'[2]Startovní listina'!B71","v":77},{"$f":"'[2]Startovní listina'!C71","v":"Barták"},{"$f":"'[2]Startovní listina'!D71","v":"Roland"},{"$f":"'[2]Startovní listina'!E71","v":1965},{"$f":"'[2]Startovní listina'!F71","v":"Kuřim"},"02:47:00"]
[{"$f":"IF('Výsledková listina 2015'!D57<>\"\",A57+1,\"\")","v":54},20,{"$f":"'[2]Startovní listina'!G78","v":"A"},{"$f":"'[2]Startovní listina'!B78","v":86},{"$f":"'[2]Startovní listina'!C78","v":"Kosmák"},{"$f":"'[2]Startovní listina'!D78","v":"Václav"},{"$f":"'[2]Startovní listina'!E78","v":1983},{"$f":"'[2]Startovní listina'!F78","v":"Brno"},"02:49:04"]
[{"$f":"IF('Výsledková listina 2015'!D58<>\"\",A58+1,\"\")","v":55},19,{"$f":"'[2]Startovní listina'!G42","v":"B"},{"$f":"'[2]Startovní listina'!B42","v":43},{"$f":"'[2]Startovní listina'!C42","v":"Dvořák"},{"$f":"'[2]Startovní listina'!D42","v":"Vojtěch"},{"$f":"'[2]Startovní listina'!E42","v":1974},{"$f":"'[2]Startovní listina'!F42","v":"Brno"},"02:49:46"]
[{"$f":"IF('Výsledková listina 2015'!D59<>\"\",A59+1,\"\")","v":56},3,{"$f":"'[2]Startovní listina'!G46","v":"D"},{"$f":"'[2]Startovní listina'!B46","v":47},{"$f":"'[2]Startovní listina'!C46","v":"Boháč"},{"$f":"'[2]Startovní listina'!D46","v":"Jiří"},{"$f":"'[2]Startovní listina'!E46","v":1954},{"$f":"'[2]Startovní listina'!F46","v":"Běhej Brno com"},"02:50:33"]
[{"$f":"IF('Výsledková listina 2015'!D60<>\"\",A60+1,\"\")","v":57},21,{"$f":"'[2]Startovní listina'!G82","v":"A"},{"$f":"'[2]Startovní listina'!B82","v":91},{"$f":"'[2]Startovní listina'!C82","v":"Poneš"},{"$f":"'[2]Startovní listina'!D82","v":"Pavel"},{"$f":"'[2]Startovní listina'!E82","v":1978},{"$f":"'[2]Startovní listina'!F82","v":"TK SOKOLI Brno"},"02:50:59"]
[{"$f":"IF('Výsledková listina 2015'!D61<>\"\",A61+1,\"\")","v":58},2,{"$f":"'[2]Startovní listina'!G88","v":"G"},{"$f":"'[2]Startovní listina'!B88","v":97},{"$f":"'[2]Startovní listina'!C88","v":"Tonarová"},{"$f":"'[2]Startovní listina'!D88","v":"Miroslava"},{"$f":"'[2]Startovní listina'!E88","v":1976},{"$f":"'[2]Startovní listina'!F88","v":"Bory"},"02:53:55"]
[{"$f":"IF('Výsledková listina 2015'!D62<>\"\",A62+1,\"\")","v":59},22,{"$f":"'[2]Startovní listina'!G90","v":"A"},{"$f":"'[2]Startovní listina'!B90","v":99},{"$f":"'[2]Startovní listina'!C90","v":"Vacula"},{"$f":"'[2]Startovní listina'!D90","v":"Ondřej"},{"$f":"'[2]Startovní listina'!E90","v":1981},{"$f":"'[2]Startovní listina'!F90","v":"AC Lelek Lelekovice"},"02:55:52"]
[{"$f":"IF('Výsledková listina 2015'!D63<>\"\",A63+1,\"\")","v":60},10,{"$f":"'[2]Startovní listina'!G70","v":"C"},{"$f":"'[2]Startovní listina'!B70","v":76},{"$f":"'[2]Startovní listina'!C70","v":"Novotný"},{"$f":"'[2]Startovní listina'!D70","v":"Petr"},{"$f":"'[2]Startovní listina'!E70","v":1965},{"$f":"'[2]Startovní listina'!F70","v":"Kuřim"},"02:57:35"]
[{"$f":"IF('Výsledková listina 2015'!D64<>\"\",A64+1,\"\")","v":61},20,{"$f":"'[2]Startovní listina'!G65","v":"B"},{"$f":"'[2]Startovní listina'!B65","v":70},{"$f":"'[2]Startovní listina'!C65","v":"Strakoš"},{"$f":"'[2]Startovní listina'!D65","v":"Vilém"},{"$f":"'[2]Startovní listina'!E65","v":1969},{"$f":"'[2]Startovní listina'!F65","v":"SK Fuga Kuřim"},"02:58:55"]
[{"$f":"IF('Výsledková listina 2015'!D65<>\"\",A65+1,\"\")","v":62},23,{"$f":"'[2]Startovní listina'!G32","v":"A"},{"$f":"'[2]Startovní listina'!B32","v":31},{"$f":"'[2]Startovní listina'!C32","v":"Kryštof"},{"$f":"'[2]Startovní listina'!D32","v":"Ondřej"},{"$f":"'[2]Startovní listina'!E32","v":1976},{"$f":"'[2]Startovní listina'!F32","v":"Jiskra Vír"},"02:59:30"]
[{"$f":"IF('Výsledková listina 2015'!D66<>\"\",A66+1,\"\")","v":63},11,{"$f":"'[2]Startovní listina'!G10","v":"C"},{"$f":"'[2]Startovní listina'!B10","v":6},{"$f":"'[2]Startovní listina'!C10","v":"Zourek"},{"$f":"'[2]Startovní listina'!D10","v":"Karel"},{"$f":"'[2]Startovní listina'!E10","v":1959},{"$f":"'[2]Startovní listina'!F10","v":"Brno"},"03:00:21"]
[{"$f":"IF('Výsledková listina 2015'!D67<>\"\",A67+1,\"\")","v":64},12,{"$f":"'[2]Startovní listina'!G34","v":"C"},{"$f":"'[2]Startovní listina'!B34","v":34},{"$f":"'[2]Startovní listina'!C34","v":"Navrátil"},{"$f":"'[2]Startovní listina'!D34","v":"Petr"},{"$f":"'[2]Startovní listina'!E34","v":1963},{"$f":"'[2]Startovní listina'!F34","v":"Rožná"},"03:00:59"]
[{"$f":"IF('Výsledková listina 2015'!D68<>\"\",A68+1,\"\")","v":65},2,{"$f":"'[2]Startovní listina'!G19","v":"H"},{"$f":"'[2]Startovní listina'!B19","v":16},{"$f":"'[2]Startovní listina'!C19","v":"Kameníčková"},{"$f":"'[2]Startovní listina'!D19","v":"Veronika"},{"$f":"'[2]Startovní listina'!E19","v":1966},{"$f":"'[2]Startovní listina'!F19","v":"Vinařice"},"03:01:04"]
[{"$f":"IF('Výsledková listina 2015'!D69<>\"\",A69+1,\"\")","v":66},4,{"$f":"'[2]Startovní listina'!G73","v":"D"},{"$f":"'[2]Startovní listina'!B73","v":80},{"$f":"'[2]Startovní listina'!C73","v":"Nekuža"},{"$f":"'[2]Startovní listina'!D73","v":"Jiří"},{"$f":"'[2]Startovní listina'!E73","v":1951},{"$f":"'[2]Startovní listina'!F73","v":"RUNNERS Zbýšov"},"03:01:32"]
[{"$f":"IF('Výsledková listina 2015'!D70<>\"\",A70+1,\"\")","v":67},21,{"$f":"'[2]Startovní listina'!G75","v":"B"},{"$f":"'[2]Startovní listina'!B75","v":83},{"$f":"'[2]Startovní listina'!C75","v":"Holoubek"},{"$f":"'[2]Startovní listina'!D75","v":"Jindřich"},{"$f":"'[2]Startovní listina'!E75","v":1968},{"$f":"'[2]Startovní listina'!F75","v":"Brno"},"03:01:37"]
[{"$f":"IF('Výsledková listina 2015'!D71<>\"\",A71+1,\"\")","v":68},13,{"$f":"'[2]Startovní listina'!G5","v":"C"},{"$f":"'[2]Startovní listina'!B5","v":1},{"$f":"'[2]Startovní listina'!C5","v":"Bečička"},{"$f":"'[2]Startovní listina'!D5","v":"Petr"},{"$f":"'[2]Startovní listina'!E5","v":1960},{"$f":"'[2]Startovní listina'!F5","v":"HAL 3000 Brno"},"03:02:17"]
[{"$f":"IF('Výsledková listina 2015'!D72<>\"\",A72+1,\"\")","v":69},4,{"$f":"'[2]Startovní listina'!G25","v":"F"},{"$f":"'[2]Startovní listina'!B25","v":23},{"$f":"'[2]Startovní listina'!C25","v":"Vašalovská"},{"$f":"'[2]Startovní listina'!D25","v":"Petra"},{"$f":"'[2]Startovní listina'!E25","v":1986},{"$f":"'[2]Startovní listina'!F25","v":"Atletic Třebíč"},"03:04:10"]
[{"$f":"IF('Výsledková listina 2015'!D73<>\"\",A73+1,\"\")","v":70},24,{"$f":"'[2]Startovní listina'!G92","v":"A"},{"$f":"'[2]Startovní listina'!B92","v":101},{"$f":"'[2]Startovní listina'!C92","v":"Milka"},{"$f":"'[2]Startovní listina'!D92","v":"Zdeněk"},{"$f":"'[2]Startovní listina'!E92","v":1984},{"$f":"'[2]Startovní listina'!F92","v":"Brno"},"03:04:27"]
[{"$f":"IF('Výsledková listina 2015'!D74<>\"\",A74+1,\"\")","v":71},14,{"$f":"'[2]Startovní listina'!G17","v":"C"},{"$f":"'[2]Startovní listina'!B17","v":13},{"$f":"'[2]Startovní listina'!C17","v":"Kresta"},{"$f":"'[2]Startovní listina'!D17","v":"Roman"},{"$f":"'[2]Startovní listina'!E17","v":1965},{"$f":"'[2]Startovní listina'!F17","v":"Brno"},"03:06:22"]
[{"$f":"IF('Výsledková listina 2015'!D75<>\"\",A75+1,\"\")","v":72},3,{"$f":"'[2]Startovní listina'!G26","v":"H"},{"$f":"'[2]Startovní listina'!B26","v":24},{"$f":"'[2]Startovní listina'!C26","v":"Mahelová"},{"$f":"'[2]Startovní listina'!D26","v":"Jitka"},{"$f":"'[2]Startovní listina'!E26","v":1962},{"$f":"'[2]Startovní listina'!F26","v":"Atletic Třebíč"},"03:06:38"]
[{"$f":"IF('Výsledková listina 2015'!D76<>\"\",A76+1,\"\")","v":73},5,{"$f":"'[2]Startovní listina'!G7","v":"F"},{"$f":"'[2]Startovní listina'!B7","v":3},{"$f":"'[2]Startovní listina'!C7","v":"Dostálová"},{"$f":"'[2]Startovní listina'!D7","v":"Vendula"},{"$f":"'[2]Startovní listina'!E7","v":1981},{"$f":"'[2]Startovní listina'!F7","v":"HAL 3000 Brno"},"03:07:50"]
[{"$f":"IF('Výsledková listina 2015'!D77<>\"\",A77+1,\"\")","v":74},25,{"$f":"'[2]Startovní listina'!G44","v":"A"},{"$f":"'[2]Startovní listina'!B44","v":45},{"$f":"'[2]Startovní listina'!C44","v":"Hakl"},{"$f":"'[2]Startovní listina'!D44","v":"Martin"},{"$f":"'[2]Startovní listina'!E44","v":1987},{"$f":"'[2]Startovní listina'!F44","v":"Running with Those that Carit"},"03:10:37"]
[{"$f":"IF('Výsledková listina 2015'!D78<>\"\",A78+1,\"\")","v":75},26,{"$f":"'[2]Startovní listina'!G96","v":"A"},{"$f":"'[2]Startovní listina'!B96","v":105},{"$f":"'[2]Startovní listina'!C96","v":"Procházka"},{"$f":"'[2]Startovní listina'!D96","v":"Pavel"},{"$f":"'[2]Startovní listina'!E96","v":1988},{"$f":"'[2]Startovní listina'!F96","v":"Bystřice nad Pernštejnem"},"03:12:26"]
[{"$f":"IF('Výsledková listina 2015'!D79<>\"\",A79+1,\"\")","v":76},22,{"$f":"'[2]Startovní listina'!G94","v":"B"},{"$f":"'[2]Startovní listina'!B94","v":103},{"$f":"'[2]Startovní listina'!C94","v":"Junga"},{"$f":"'[2]Startovní listina'!D94","v":"Stanislav"},{"$f":"'[2]Startovní listina'!E94","v":1971},{"$f":"'[2]Startovní listina'!F94","v":"Újezd u Brna"},"03:13:50"]
[{"$f":"IF('Výsledková listina 2015'!D80<>\"\",A80+1,\"\")","v":77},5,{"$f":"'[2]Startovní listina'!G52","v":"D"},{"$f":"'[2]Startovní listina'!B52","v":54},{"$f":"'[2]Startovní listina'!C52","v":"Mareš"},{"$f":"'[2]Startovní listina'!D52","v":"Bohumil"},{"$f":"'[2]Startovní listina'!E52","v":1951},{"$f":"'[2]Startovní listina'!F52","v":"LEAR Brno"},"03:14:48"]
[{"$f":"IF('Výsledková listina 2015'!D81<>\"\",A81+1,\"\")","v":78},4,{"$f":"'[2]Startovní listina'!G97","v":"H"},{"$f":"'[2]Startovní listina'!B97","v":106},{"$f":"'[2]Startovní listina'!C97","v":"Podmelová"},{"$f":"'[2]Startovní listina'!D97","v":"Vilma"},{"$f":"'[2]Startovní listina'!E97","v":1962},{"$f":"'[2]Startovní listina'!F97","v":"Moravská Slávia Brno"},"03:14:54"]
[{"$f":"IF('Výsledková listina 2015'!D82<>\"\",A82+1,\"\")","v":79},6,{"$f":"'[2]Startovní listina'!G64","v":"F"},{"$f":"'[2]Startovní listina'!B64","v":69},{"$f":"'[2]Startovní listina'!C64","v":"Rokosová"},{"$f":"'[2]Startovní listina'!D64","v":"Ivana"},{"$f":"'[2]Startovní listina'!E64","v":1982},{"$f":"'[2]Startovní listina'!F64","v":"Polička"},"03:18:47"]
[{"$f":"IF('Výsledková listina 2015'!D83<>\"\",A83+1,\"\")","v":80},15,{"$f":"'[2]Startovní listina'!G76","v":"C"},{"$f":"'[2]Startovní listina'!B76","v":84},{"$f":"'[2]Startovní listina'!C76","v":"Šilhan"},{"$f":"'[2]Startovní listina'!D76","v":"Vladimír"},{"$f":"'[2]Startovní listina'!E76","v":1957},{"$f":"'[2]Startovní listina'!F76","v":"Original Ježek Babice nad Svitavou"},"03:18:56"]
[{"$f":"IF('Výsledková listina 2015'!D84<>\"\",A84+1,\"\")","v":81},23,{"$f":"'[2]Startovní listina'!G45","v":"B"},{"$f":"'[2]Startovní listina'!B45","v":46},{"$f":"'[2]Startovní listina'!C45","v":"Münster"},{"$f":"'[2]Startovní listina'!D45","v":"Libor"},{"$f":"'[2]Startovní listina'!E45","v":1966},{"$f":"'[2]Startovní listina'!F45","v":"Blansko"},"03:21:11"]
[{"$f":"IF('Výsledková listina 2015'!D85<>\"\",A85+1,\"\")","v":82},3,{"$f":"'[2]Startovní listina'!G81","v":"G"},{"$f":"'[2]Startovní listina'!B81","v":90},{"$f":"'[2]Startovní listina'!C81","v":"Ježová"},{"$f":"'[2]Startovní listina'!D81","v":"Martina"},{"$f":"'[2]Startovní listina'!E81","v":1975},{"$f":"'[2]Startovní listina'!F81","v":"Brno"},"03:24:59"]
[{"$f":"IF('Výsledková listina 2015'!D86<>\"\",A86+1,\"\")","v":83},24,{"$f":"'[2]Startovní listina'!G85","v":"B"},{"$f":"'[2]Startovní listina'!B85","v":94},{"$f":"'[2]Startovní listina'!C85","v":"Benc"},{"$f":"'[2]Startovní listina'!D85","v":"Karel"},{"$f":"'[2]Startovní listina'!E85","v":1975},{"$f":"'[2]Startovní listina'!F85","v":"Pivonice"},"03:28:11"]
[{"$f":"IF('Výsledková listina 2015'!D87<>\"\",A87+1,\"\")","v":84},7,{"$f":"'[2]Startovní listina'!G8","v":"F"},{"$f":"'[2]Startovní listina'!B8","v":4},{"$f":"'[2]Startovní listina'!C8","v":"Navrátilová"},{"$f":"'[2]Startovní listina'!D8","v":"Vlasta"},{"$f":"'[2]Startovní listina'!E8","v":1983},{"$f":"'[2]Startovní listina'!F8","v":"Vír"},"03:30:08"]
[{"$f":"IF('Výsledková listina 2015'!D88<>\"\",A88+1,\"\")","v":85},25,{"$f":"'[2]Startovní listina'!G93","v":"B"},{"$f":"'[2]Startovní listina'!B93","v":102},{"$f":"'[2]Startovní listina'!C93","v":"Konečný"},{"$f":"'[2]Startovní listina'!D93","v":"Jaroslav"},{"$f":"'[2]Startovní listina'!E93","v":1969},{"$f":"'[2]Startovní listina'!F93","v":"Popůvky"},"03:31:45"]
[{"$f":"IF('Výsledková listina 2015'!D89<>\"\",A89+1,\"\")","v":86},5,{"$f":"'[2]Startovní listina'!G16","v":"H"},{"$f":"'[2]Startovní listina'!B16","v":12},{"$f":"'[2]Startovní listina'!C16","v":"Tesařová"},{"$f":"'[2]Startovní listina'!D16","v":"Marie"},{"$f":"'[2]Startovní listina'!E16","v":1954},{"$f":"'[2]Startovní listina'!F16","v":"Křižanov"},"03:32:08"]
[{"$f":"IF('Výsledková listina 2015'!D90<>\"\",A90+1,\"\")","v":87},8,{"$f":"'[2]Startovní listina'!G21","v":"F"},{"$f":"'[2]Startovní listina'!B21","v":18},{"$f":"'[2]Startovní listina'!C21","v":"Peštuková"},{"$f":"'[2]Startovní listina'!D21","v":"Ivana"},{"$f":"'[2]Startovní listina'!E21","v":1990},{"$f":"'[2]Startovní listina'!F21","v":"Vinařice"},"03:32:23"]
[{"$f":"IF('Výsledková listina 2015'!D91<>\"\",A91+1,\"\")","v":88},26,{"$f":"'[2]Startovní listina'!G77","v":"B"},{"$f":"'[2]Startovní listina'!B77","v":85},{"$f":"'[2]Startovní listina'!C77","v":"Jaskulka"},{"$f":"'[2]Startovní listina'!D77","v":"Martin"},{"$f":"'[2]Startovní listina'!E77","v":1968},{"$f":"'[2]Startovní listina'!F77","v":"Kuřim"},"03:37:46"]
[{"$f":"IF('Výsledková listina 2015'!D92<>\"\",A92+1,\"\")","v":89},1,{"$f":"'[2]Startovní listina'!G18","v":"E"},{"$f":"'[2]Startovní listina'!B18","v":14},{"$f":"'[2]Startovní listina'!C18","v":"Holý"},{"$f":"'[2]Startovní listina'!D18","v":"Josef"},{"$f":"'[2]Startovní listina'!E18","v":1941},{"$f":"'[2]Startovní listina'!F18","v":"Moravská Slávia Brno"},"03:42:45"]
[{"$f":"IF('Výsledková listina 2015'!D93<>\"\",A93+1,\"\")","v":90},6,{"$f":"'[2]Startovní listina'!G33","v":"H"},{"$f":"'[2]Startovní listina'!B33","v":33},{"$f":"'[2]Startovní listina'!C33","v":"Šedová"},{"$f":"'[2]Startovní listina'!D33","v":"Věra"},{"$f":"'[2]Startovní listina'!E33","v":1964},{"$f":"'[2]Startovní listina'!F33","v":"Atletic Třebíč"},"03:44:49"]
[{"$f":"IF('Výsledková listina 2015'!D94<>\"\",A94+1,\"\")","v":91},16,{"$f":"'[2]Startovní listina'!G36","v":"C"},{"$f":"'[2]Startovní listina'!B36","v":36},{"$f":"'[2]Startovní listina'!C36","v":"Krátký"},{"$f":"'[2]Startovní listina'!D36","v":"Josef"},{"$f":"'[2]Startovní listina'!E36","v":1965},{"$f":"'[2]Startovní listina'!F36","v":"Hvězda SKP Pardubice"},"03:49:35"]
[{"$f":"IF('Výsledková listina 2015'!D95<>\"\",A95+1,\"\")","v":92},6,{"$f":"'[2]Startovní listina'!G72","v":"D"},{"$f":"'[2]Startovní listina'!B72","v":79},{"$f":"'[2]Startovní listina'!C72","v":"Vídeňský"},{"$f":"'[2]Startovní listina'!D72","v":"Jiří"},{"$f":"'[2]Startovní listina'!E72","v":1947},{"$f":"'[2]Startovní listina'!F72","v":"KD Moravské Budějovice"},"04:02:08"]
[{"$f":"IF('Výsledková listina 2015'!D96<>\"\",A96+1,\"\")","v":93},2,{"$f":"'[2]Startovní listina'!G23","v":"E"},{"$f":"'[2]Startovní listina'!B23","v":21},{"$f":"'[2]Startovní listina'!C23","v":"Hrubý"},{"$f":"'[2]Startovní listina'!D23","v":"Milan"},{"$f":"'[2]Startovní listina'!E23","v":1938},{"$f":"'[2]Startovní listina'!F23","v":"Blansko"},"04:13:01"]
[{"$f":"IF('Výsledková listina 2015'!D97<>\"\",A97+1,\"\")","v":94},7,{"$f":"'[2]Startovní listina'!G69","v":"D"},{"$f":"'[2]Startovní listina'!B69","v":75},{"$f":"'[2]Startovní listina'!C69","v":"Kaše"},{"$f":"'[2]Startovní listina'!D69","v":"Jaroslav"},{"$f":"'[2]Startovní listina'!E69","v":1953},{"$f":"'[2]Startovní listina'!F69","v":"Club běžeckých outsiderů"},"DNF"]
[{"$f":"IF('Výsledková listina 2015'!D98<>\"\",A98+1,\"\")","v":95},null,{"$f":"'[2]Startovní listina'!G99","v":""},{"$f":"'[2]Startovní listina'!B99","v":""},{"$f":"'[2]Startovní listina'!C99","v":""},{"$f":"'[2]Startovní listina'!D99","v":""},{"$f":"'[2]Startovní listina'!E99","v":""},{"$f":"'[2]Startovní listina'!F99","v":""}]
[{"$f":"IF('Výsledková listina 2015'!D99<>\"\",A99+1,\"\")","v":""},null,{"$f":"'[2]Startovní listina'!G100","v":""},{"$f":"'[2]Startovní listina'!B100","v":""},{"$f":"'[2]Startovní listina'!C100","v":""},{"$f":"'[2]Startovní listina'!D100","v":""},{"$f":"'[2]Startovní listina'!E100","v":""},{"$f":"'[2]Startovní listina'!F100","v":""}]
[{"$f":"IF('Výsledková listina 2015'!D100<>\"\",A100+1,\"\")","v":""},null,{"$f":"'[2]Startovní listina'!G101","v":""},{"$f":"'[2]Startovní listina'!B101","v":""},{"$f":"'[2]Startovní listina'!C101","v":""},{"$f":"'[2]Startovní listina'!D101","v":""},{"$f":"'[2]Startovní listina'!E101","v":""},{"$f":"'[2]Startovní listina'!F101","v":""}]
[{"$f":"IF('Výsledková listina 2015'!D101<>\"\",A101+1,\"\")","v":""},null,{"$f":"'[2]Startovní listina'!G102","v":""},{"$f":"'[2]Startovní listina'!B102","v":""},{"$f":"'[2]Startovní listina'!C102","v":""},{"$f":"'[2]Startovní listina'!D102","v":""},{"$f":"'[2]Startovní listina'!E102","v":""},{"$f":"'[2]Startovní listina'!F102","v":""}]
[{"$f":"IF('Výsledková listina 2015'!D102<>\"\",A102+1,\"\")","v":""},null,{"$f":"'[2]Startovní listina'!G103","v":""},{"$f":"'[2]Startovní listina'!B103","v":""},{"$f":"'[2]Startovní listina'!C103","v":""},{"$f":"'[2]Startovní listina'!D103","v":""},{"$f":"'[2]Startovní listina'!E103","v":""},{"$f":"'[2]Startovní listina'!F103","v":""}]

{"sheet":"Družstva (prac.)","index":10,"n_rows":21,"n_cols":11,"rows_kept":21,"cut":false,"hidden":true,"merged":[[5,1,6,1],[5,6,6,6],[5,8,6,8],[0,1,0,8],[1,1,1,8],[3,1,4,1],[3,6,4,6],[3,8,4,8],[7,1,8,1],[7,6,8,6],[7,8,8,8],[9,1,10,1],[9,6,10,6],[9,8,10,8],[11,1,12,1],[11,6,12,6],[11,8,12,8],[13,1,14,1],[13,6,14,6],[13,8,14,8],[19,1,20,1],[19,6,20,6],[19,8,20,8],[15,1,16,1],[15,6,16,6],[15,8,16,8],[17,1,18,1],[17,6,18,6],[17,8,18,8]]}
[null,{"$f":"\"Výsledková listina - Malý svratecký maratón \"&'Prezenční listina'!O2&\" - družstva\"","v":"Výsledková listina - Malý svratecký maratón 2016 - družstva"}]
[null,{"$f":"'Prezenční listina'!O2-1953&\". ročník\"","v":"63. ročník"}]
[null,"Pořadí","Startovní číslo","Příjmení","Jméno","Narození","Oddíl / Bydliště","Čas","Výsledný čas"]
[null,"1.",3,{"$f":"IF(ISERROR(VLOOKUP(C4,'Startovní listina'!$B$5:$F$141,2)),\"\",VLOOKUP(C4,'Startovní listina'!$B$5:$F$141,2))","v":"Češner"},{"$f":"IF(ISERROR(VLOOKUP(C4,'Startovní listina'!$B$5:$F$141,3)),\"\",VLOOKUP(C4,'Startovní listina'!$B$5:$F$141,3))","v":"Vladimír"},{"$f":"IF(ISERROR(VLOOKUP(C4,'Startovní listina'!$B$5:$F$141,4)),\"\",VLOOKUP(C4,'Startovní listina'!$B$5:$F$141,4))","v":1958},{"$f":"IF(K4=K5,K4,\"RŮZNÉ ODDÍLY !!!\")","v":"RŮZNÉ ODDÍLY !!!"},"03:07:50",{"$f":"IF((H4=0),\"\",H4+H5)","v":"05:48:15"},null,{"$f":"IF(ISERROR(VLOOKUP(C4,'Startovní listina'!$B$5:$F$141,5)),\"\",VLOOKUP(C4,'Startovní listina'!$B$5:$F$141,5))","v":"Odolená Voda"}]
[null,null,2,{"$f":"IF(ISERROR(VLOOKUP(C5,'Startovní listina'!$B$5:$F$141,2)),\"\",VLOOKUP(C5,'Startovní listina'!$B$5:$F$141,2))","v":"Barvíř"},{"$f":"IF(ISERROR(VLOOKUP(C5,'Startovní listina'!$B$5:$F$141,3)),\"\",VLOOKUP(C5,'Startovní listina'!$B$5:$F$141,3))","v":"Jiří"},{"$f":"IF(ISERROR(VLOOKUP(C5,'Startovní listina'!$B$5:$F$141,4)),\"\",VLOOKUP(C5,'Startovní listina'!$B$5:$F$141,4))","v":1982},null,"02:40:25",null,null,{"$f":"IF(ISERROR(VLOOKUP(C5,'Startovní listina'!$B$5:$F$141,5)),\"\",VLOOKUP(C5,'Startovní listina'!$B$5:$F$141,5))","v":"R.I.P. Brno"}]
[null,"2.",11,{"$f":"IF(ISERROR(VLOOKUP(C6,'Startovní listina'!$B$5:$F$141,2)),\"\",VLOOKUP(C6,'Startovní listina'!$B$5:$F$141,2))","v":"Kopečný"},{"$f":"IF(ISERROR(VLOOKUP(C6,'Startovní listina'!$B$5:$F$141,3)),\"\",VLOOKUP(C6,'Startovní listina'!$B$5:$F$141,3))","v":"Dušan"},{"$f":"IF(ISERROR(VLOOKUP(C6,'Startovní listina'!$B$5:$F$141,4)),\"\",VLOOKUP(C6,'Startovní listina'!$B$5:$F$141,4))","v":1973},{"$f":"IF(K6=K7,K6,\"RŮZNÉ ODDÍLY !!!\")","v":"RŮZNÉ ODDÍLY !!!"},"02:01:16",{"$f":"IF((H6=0),\"\",H6+H7)","v":"04:06:56"},null,{"$f":"IF(ISERROR(VLOOKUP(C6,'Startovní listina'!$B$5:$F$141,5)),\"\",VLOOKUP(C6,'Startovní listina'!$B$5:$F$141,5))","v":"AK Drnovice"}]
[null,null,8,{"$f":"IF(ISERROR(VLOOKUP(C7,'Startovní listina'!$B$5:$F$141,2)),\"\",VLOOKUP(C7,'Startovní listina'!$B$5:$F$141,2))","v":"Chramosta"},{"$f":"IF(ISERROR(VLOOKUP(C7,'Startovní listina'!$B$5:$F$141,3)),\"\",VLOOKUP(C7,'Startovní listina'!$B$5:$F$141,3))","v":"Jaroslav"},{"$f":"IF(ISERROR(VLOOKUP(C7,'Startovní listina'!$B$5:$F$141,4)),\"\",VLOOKUP(C7,'Startovní listina'!$B$5:$F$141,4))","v":1966},null,"02:05:40",null,null,{"$f":"IF(ISERROR(VLOOKUP(C7,'Startovní listina'!$B$5:$F$141,5)),\"\",VLOOKUP(C7,'Startovní listina'!$B$5:$F$141,5))","v":"JABOJA Team Děčín"}]
[null,"3.",9,{"$f":"IF(ISERROR(VLOOKUP(C8,'Startovní listina'!$B$5:$F$141,2)),\"\",VLOOKUP(C8,'Startovní listina'!$B$5:$F$141,2))","v":"Vytisk"},{"$f":"IF(ISERROR(VLOOKUP(C8,'Startovní listina'!$B$5:$F$141,3)),\"\",VLOOKUP(C8,'Startovní listina'!$B$5:$F$141,3))","v":"Alfons"},{"$f":"IF(ISERROR(VLOOKUP(C8,'Startovní listina'!$B$5:$F$141,4)),\"\",VLOOKUP(C8,'Startovní listina'!$B$5:$F$141,4))","v":1949},{"$f":"IF(K8=K9,K8,\"RŮZNÉ ODDÍLY !!!\")","v":"RŮZNÉ ODDÍLY !!!"},"02:40:16",{"$f":"IF((H8=0),\"\",H8+H9)","v":"05:12:53"},null,{"$f":"IF(ISERROR(VLOOKUP(C8,'Startovní listina'!$B$5:$F$141,5)),\"\",VLOOKUP(C8,'Startovní listina'!$B$5:$F$141,5))","v":"MKS Ostrava"}]
[null,null,10,{"$f":"IF(ISERROR(VLOOKUP(C9,'Startovní listina'!$B$5:$F$141,2)),\"\",VLOOKUP(C9,'Startovní listina'!$B$5:$F$141,2))","v":"Bolek"},{"$f":"IF(ISERROR(VLOOKUP(C9,'Startovní listina'!$B$5:$F$141,3)),\"\",VLOOKUP(C9,'Startovní listina'!$B$5:$F$141,3))","v":"Rostislav"},{"$f":"IF(ISERROR(VLOOKUP(C9,'Startovní listina'!$B$5:$F$141,4)),\"\",VLOOKUP(C9,'Startovní listina'!$B$5:$F$141,4))","v":1965},null,"02:32:37",null,null,{"$f":"IF(ISERROR(VLOOKUP(C9,'Startovní listina'!$B$5:$F$141,5)),\"\",VLOOKUP(C9,'Startovní listina'!$B$5:$F$141,5))","v":"Insportline Ostrava"}]
[null,"4.",23,{"$f":"IF(ISERROR(VLOOKUP(C10,'Startovní listina'!$B$5:$F$141,2)),\"\",VLOOKUP(C10,'Startovní listina'!$B$5:$F$141,2))","v":"Kryštof"},{"$f":"IF(ISERROR(VLOOKUP(C10,'Startovní listina'!$B$5:$F$141,3)),\"\",VLOOKUP(C10,'Startovní listina'!$B$5:$F$141,3))","v":"Ondřej"},{"$f":"IF(ISERROR(VLOOKUP(C10,'Startovní listina'!$B$5:$F$141,4)),\"\",VLOOKUP(C10,'Startovní listina'!$B$5:$F$141,4))","v":1976},{"$f":"IF(K10=K11,K10,\"RŮZNÉ ODDÍLY !!!\")","v":"RŮZNÉ ODDÍLY !!!"},"03:04:10",{"$f":"IF((H10=0),\"\",H10+H11)","v":"06:10:48"},null,{"$f":"IF(ISERROR(VLOOKUP(C10,'Startovní listina'!$B$5:$F$141,5)),\"\",VLOOKUP(C10,'Startovní listina'!$B$5:$F$141,5))","v":"Jiskra Vír"}]
[null,null,24,{"$f":"IF(ISERROR(VLOOKUP(C11,'Startovní listina'!$B$5:$F$141,2)),\"\",VLOOKUP(C11,'Startovní listina'!$B$5:$F$141,2))","v":"Šedová"},{"$f":"IF(ISERROR(VLOOKUP(C11,'Startovní listina'!$B$5:$F$141,3)),\"\",VLOOKUP(C11,'Startovní listina'!$B$5:$F$141,3))","v":"Věra"},{"$f":"IF(ISERROR(VLOOKUP(C11,'Startovní listina'!$B$5:$F$141,4)),\"\",VLOOKUP(C11,'Startovní listina'!$B$5:$F$141,4))","v":1964},null,"03:06:38",null,null,{"$f":"IF(ISERROR(VLOOKUP(C11,'Startovní listina'!$B$5:$F$141,5)),\"\",VLOOKUP(C11,'Startovní listina'!$B$5:$F$141,5))","v":"Atletic Třebíč"}]
[null,"5.",35,{"$f":"IF(ISERROR(VLOOKUP(C12,'Startovní listina'!$B$5:$F$141,2)),\"\",VLOOKUP(C12,'Startovní listina'!$B$5:$F$141,2))","v":"Dušil"},{"$f":"IF(ISERROR(VLOOKUP(C12,'Startovní listina'!$B$5:$F$141,3)),\"\",VLOOKUP(C12,'Startovní listina'!$B$5:$F$141,3))","v":"Jaroslav"},{"$f":"IF(ISERROR(VLOOKUP(C12,'Startovní listina'!$B$5:$F$141,4)),\"\",VLOOKUP(C12,'Startovní listina'!$B$5:$F$141,4))","v":1970},{"$f":"IF(K12=K13,K12,\"RŮZNÉ ODDÍLY !!!\")","v":"RŮZNÉ ODDÍLY !!!"},"02:31:40",{"$f":"IF((H12=0),\"\",H12+H13)","v":"06:21:15"},null,{"$f":"IF(ISERROR(VLOOKUP(C12,'Startovní listina'!$B$5:$F$141,5)),\"\",VLOOKUP(C12,'Startovní listina'!$B$5:$F$141,5))","v":"Běžecký klub Brno"}]
[null,null,36,{"$f":"IF(ISERROR(VLOOKUP(C13,'Startovní listina'!$B$5:$F$141,2)),\"\",VLOOKUP(C13,'Startovní listina'!$B$5:$F$141,2))","v":"Němec"},{"$f":"IF(ISERROR(VLOOKUP(C13,'Startovní listina'!$B$5:$F$141,3)),\"\",VLOOKUP(C13,'Startovní listina'!$B$5:$F$141,3))","v":"Jaroslav"},{"$f":"IF(ISERROR(VLOOKUP(C13,'Startovní listina'!$B$5:$F$141,4)),\"\",VLOOKUP(C13,'Startovní listina'!$B$5:$F$141,4))","v":1952},null,"03:49:35",null,null,{"$f":"IF(ISERROR(VLOOKUP(C13,'Startovní listina'!$B$5:$F$141,5)),\"\",VLOOKUP(C13,'Startovní listina'!$B$5:$F$141,5))","v":"Blansko"}]
[null,"6.",82,{"$f":"IF(ISERROR(VLOOKUP(C14,'Startovní listina'!$B$5:$F$141,2)),\"\",VLOOKUP(C14,'Startovní listina'!$B$5:$F$141,2))","v":"Šorf"},{"$f":"IF(ISERROR(VLOOKUP(C14,'Startovní listina'!$B$5:$F$141,3)),\"\",VLOOKUP(C14,'Startovní listina'!$B$5:$F$141,3))","v":"Ivo"},{"$f":"IF(ISERROR(VLOOKUP(C14,'Startovní listina'!$B$5:$F$141,4)),\"\",VLOOKUP(C14,'Startovní listina'!$B$5:$F$141,4))","v":1975},{"$f":"IF(K14=K15,K14,\"RŮZNÉ ODDÍLY !!!\")","v":"RŮZNÉ ODDÍLY !!!"},"02:11:00",{"$f":"IF((H14=0),\"\",H14+H15)","v":"04:05:34"},null,{"$f":"IF(ISERROR(VLOOKUP(C14,'Startovní listina'!$B$5:$F$141,5)),\"\",VLOOKUP(C14,'Startovní listina'!$B$5:$F$141,5))","v":"ABND Racing Team Bystřice nad Pernštejnem"}]
[null,null,107,{"$f":"IF(ISERROR(VLOOKUP(C15,'Startovní listina'!$B$5:$F$141,2)),\"\",VLOOKUP(C15,'Startovní listina'!$B$5:$F$141,2))","v":"Jeneš"},{"$f":"IF(ISERROR(VLOOKUP(C15,'Startovní listina'!$B$5:$F$141,3)),\"\",VLOOKUP(C15,'Startovní listina'!$B$5:$F$141,3))","v":"Kamil"},{"$f":"IF(ISERROR(VLOOKUP(C15,'Startovní listina'!$B$5:$F$141,4)),\"\",VLOOKUP(C15,'Startovní listina'!$B$5:$F$141,4))","v":1984},null,"01:54:34",null,null,{"$f":"IF(ISERROR(VLOOKUP(C15,'Startovní listina'!$B$5:$F$141,5)),\"\",VLOOKUP(C15,'Startovní listina'!$B$5:$F$141,5))","v":"3KJRUN"}]
[null,"7.",28,{"$f":"IF(ISERROR(VLOOKUP(C16,'Startovní listina'!$B$5:$F$141,2)),\"\",VLOOKUP(C16,'Startovní listina'!$B$5:$F$141,2))","v":"Mareš"},{"$f":"IF(ISERROR(VLOOKUP(C16,'Startovní listina'!$B$5:$F$141,3)),\"\",VLOOKUP(C16,'Startovní listina'!$B$5:$F$141,3))","v":"Bohumil"},{"$f":"IF(ISERROR(VLOOKUP(C16,'Startovní listina'!$B$5:$F$141,4)),\"\",VLOOKUP(C16,'Startovní listina'!$B$5:$F$141,4))","v":1951},{"$f":"IF(K16=K17,K16,\"RŮZNÉ ODDÍLY !!!\")","v":"RŮZNÉ ODDÍLY !!!"},"02:19:07",{"$f":"IF((H16=0),\"\",H16+H17)","v":"04:24:14"},null,{"$f":"IF(ISERROR(VLOOKUP(C16,'Startovní listina'!$B$5:$F$141,5)),\"\",VLOOKUP(C16,'Startovní listina'!$B$5:$F$141,5))","v":"LEAR Brno"}]
[null,null,26,{"$f":"IF(ISERROR(VLOOKUP(C17,'Startovní listina'!$B$5:$F$141,2)),\"\",VLOOKUP(C17,'Startovní listina'!$B$5:$F$141,2))","v":"Kohoutek"},{"$f":"IF(ISERROR(VLOOKUP(C17,'Startovní listina'!$B$5:$F$141,3)),\"\",VLOOKUP(C17,'Startovní listina'!$B$5:$F$141,3))","v":"Jaromír"},{"$f":"IF(ISERROR(VLOOKUP(C17,'Startovní listina'!$B$5:$F$141,4)),\"\",VLOOKUP(C17,'Startovní listina'!$B$5:$F$141,4))","v":1955},null,"02:05:07",null,null,{"$f":"IF(ISERROR(VLOOKUP(C17,'Startovní listina'!$B$5:$F$141,5)),\"\",VLOOKUP(C17,'Startovní listina'!$B$5:$F$141,5))","v":"watter and snow ski club Brno"}]
[null,"8.",null,{"$f":"IF(ISERROR(VLOOKUP(C18,'Startovní listina'!$B$5:$F$141,2)),\"\",VLOOKUP(C18,'Startovní listina'!$B$5:$F$141,2))","v":""},{"$f":"IF(ISERROR(VLOOKUP(C18,'Startovní listina'!$B$5:$F$141,3)),\"\",VLOOKUP(C18,'Startovní listina'!$B$5:$F$141,3))","v":""},{"$f":"IF(ISERROR(VLOOKUP(C18,'Startovní listina'!$B$5:$F$141,4)),\"\",VLOOKUP(C18,'Startovní listina'!$B$5:$F$141,4))","v":""},{"$f":"IF(K18=K19,K18,\"RŮZNÉ ODDÍLY !!!\")","v":""},null,{"$f":"IF((H18=0),\"\",H18+H19)","v":""},null,{"$f":"IF(ISERROR(VLOOKUP(C18,'Startovní listina'!$B$5:$F$141,5)),\"\",VLOOKUP(C18,'Startovní listina'!$B$5:$F$141,5))","v":""}]
[null,null,null,{"$f":"IF(ISERROR(VLOOKUP(C19,'Startovní listina'!$B$5:$F$141,2)),\"\",VLOOKUP(C19,'Startovní listina'!$B$5:$F$141,2))","v":""},{"$f":"IF(ISERROR(VLOOKUP(C19,'Startovní listina'!$B$5:$F$141,3)),\"\",VLOOKUP(C19,'Startovní listina'!$B$5:$F$141,3))","v":""},{"$f":"IF(ISERROR(VLOOKUP(C19,'Startovní listina'!$B$5:$F$141,4)),\"\",VLOOKUP(C19,'Startovní listina'!$B$5:$F$141,4))","v":""},null,null,null,null,{"$f":"IF(ISERROR(VLOOKUP(C19,'Startovní listina'!$B$5:$F$141,5)),\"\",VLOOKUP(C19,'Startovní listina'!$B$5:$F$141,5))","v":""}]
[null,"9.",null,{"$f":"IF(ISERROR(VLOOKUP(C20,'Startovní listina'!$B$5:$F$141,2)),\"\",VLOOKUP(C20,'Startovní listina'!$B$5:$F$141,2))","v":""},{"$f":"IF(ISERROR(VLOOKUP(C20,'Startovní listina'!$B$5:$F$141,3)),\"\",VLOOKUP(C20,'Startovní listina'!$B$5:$F$141,3))","v":""},{"$f":"IF(ISERROR(VLOOKUP(C20,'Startovní listina'!$B$5:$F$141,4)),\"\",VLOOKUP(C20,'Startovní listina'!$B$5:$F$141,4))","v":""},{"$f":"IF(K20=K21,K20,\"RŮZNÉ ODDÍLY !!!\")","v":""},null,{"$f":"IF((H20=0),\"\",H20+H21)","v":""},null,{"$f":"IF(ISERROR(VLOOKUP(C20,'Startovní listina'!$B$5:$F$141,5)),\"\",VLOOKUP(C20,'Startovní listina'!$B$5:$F$141,5))","v":""}]
[null,null,null,{"$f":"IF(ISERROR(VLOOKUP(C21,'Startovní listina'!$B$5:$F$141,2)),\"\",VLOOKUP(C21,'Startovní listina'!$B$5:$F$141,2))","v":""},{"$f":"IF(ISERROR(VLOOKUP(C21,'Startovní listina'!$B$5:$F$141,3)),\"\",VLOOKUP(C21,'Startovní listina'!$B$5:$F$141,3))","v":""},{"$f":"IF(ISERROR(VLOOKUP(C21,'Startovní listina'!$B$5:$F$141,4)),\"\",VLOOKUP(C21,'Startovní listina'!$B$5:$F$141,4))","v":""},null,null,null,null,{"$f":"IF(ISERROR(VLOOKUP(C21,'Startovní listina'!$B$5:$F$141,5)),\"\",VLOOKUP(C21,'Startovní listina'!$B$5:$F$141,5))","v":""}]

{"sheet":"Výsledková listina (2)","index":11,"n_rows":103,"n_cols":11,"rows_kept":103,"cut":false,"hidden":true,"merged":[[0,0,0,8],[1,0,1,8],[1,10,12,14],[2,0,2,8]]}
[{"$f":"\"Výsledková listina - Malý svratecký maraton \"&'Prezenční listina'!O2","v":"Výsledková listina - Malý svratecký maraton 2016"}]
["2015-08-22",null,null,null,null,null,null,null,null,null,"\nPoté, co jsou dopsány časy VŠECH běžců, stisknout tlačítko 1.řazení \n\n\nVe sloupci B (Pořadí v kategorii) vytvořit posloupnou číselnou řadu pro každou kategorii a poté stisknout tlačítko 2.řazení\n\n\n                      !!! POZOR!!!\n\n               Použití tlačítek je nevratný krok!"]
[{"$f":"'Prezenční listina'!O2-1953&\". ročník\"","v":"63. ročník"}]
["Celkové pořadí","Pořadí v kategorii","Kategorie","Startovní číslo","Příjmení","Jméno","Narození","Oddíl / Bydliště","Čas"]
[1,1,{"$f":"'Startovní listina'!G47","v":"B"},{"$f":"'Startovní listina'!B47","v":54},{"$f":"'Startovní listina'!C47","v":"Hýbl"},{"$f":"'Startovní listina'!D47","v":"Jiří"},{"$f":"'Startovní listina'!E47","v":1967},{"$f":"'Startovní listina'!F47","v":"Hrušovany u Brna"},"02:19:48"]
[{"$f":"IF('Výsledková listina (2)'!D5<>\"\",A5+1,\"\")","v":2},null,{"$f":"'Startovní listina'!G71","v":"B"},{"$f":"'Startovní listina'!B71","v":87},{"$f":"'Startovní listina'!C71","v":"Hančl"},{"$f":"'Startovní listina'!D71","v":"Roman"},{"$f":"'Startovní listina'!E71","v":1967},{"$f":"'Startovní listina'!F71","v":"Tišnov"},"02:47:00"]
[{"$f":"IF('Výsledková listina (2)'!D6<>\"\",A6+1,\"\")","v":3},null,{"$f":"'Startovní listina'!G5","v":"A"},{"$f":"'Startovní listina'!B5","v":1},{"$f":"'Startovní listina'!C5","v":"Kratochvíl"},{"$f":"'Startovní listina'!D5","v":"Jaroslav"},{"$f":"'Startovní listina'!E5","v":1977},{"$f":"'Startovní listina'!F5","v":"SDH Hluboké"},"03:02:17"]
[{"$f":"IF('Výsledková listina (2)'!D7<>\"\",A7+1,\"\")","v":4},null,{"$f":"'Startovní listina'!G85","v":""},{"$f":"'Startovní listina'!B85","v":""},{"$f":"'Startovní listina'!C85","v":""},{"$f":"'Startovní listina'!D85","v":""},{"$f":"'Startovní listina'!E85","v":""},{"$f":"'Startovní listina'!F85","v":""},"03:28:11"]
[{"$f":"IF('Výsledková listina (2)'!D8<>\"\",A8+1,\"\")","v":""},null,{"$f":"'Startovní listina'!G59","v":"B"},{"$f":"'Startovní listina'!B59","v":72},{"$f":"'Startovní listina'!C59","v":"Báňa"},{"$f":"'Startovní listina'!D59","v":"Karel"},{"$f":"'Startovní listina'!E59","v":1975},{"$f":"'Startovní listina'!F59","v":"Jabloňov"},"02:23:11"]
[{"$f":"IF('Výsledková listina (2)'!D9<>\"\",A9+1,\"\")","v":{"$error":"#VALUE!"}},null,{"$f":"'Startovní listina'!G46","v":"B"},{"$f":"'Startovní listina'!B46","v":51},{"$f":"'Startovní listina'!C46","v":"Kropáček"},{"$f":"'Startovní listina'!D46","v":"Jaroslav"},{"$f":"'Startovní listina'!E46","v":1970},{"$f":"'Startovní listina'!F46","v":"Brno"},"02:50:33"]
[{"$f":"IF('Výsledková listina (2)'!D10<>\"\",A10+1,\"\")","v":{"$error":"#VALUE!"}},null,{"$f":"'Startovní listina'!G28","v":"D"},{"$f":"'Startovní listina'!B28","v":28},{"$f":"'Startovní listina'!C28","v":"Mareš"},{"$f":"'Startovní listina'!D28","v":"Bohumil"},{"$f":"'Startovní listina'!E28","v":1951},{"$f":"'Startovní listina'!F28","v":"LEAR Brno"},"02:26:07"]
[{"$f":"IF('Výsledková listina (2)'!D11<>\"\",A11+1,\"\")","v":{"$error":"#VALUE!"}},null,{"$f":"'Startovní listina'!G67","v":"B"},{"$f":"'Startovní listina'!B67","v":83},{"$f":"'Startovní listina'!C67","v":"Orálek"},{"$f":"'Startovní listina'!D67","v":"Daniel"},{"$f":"'Startovní listina'!E67","v":1970},{"$f":"'Startovní listina'!F67","v":"adidas Boost Team/AC Moravská Slávia Brno"},"02:34:42"]
[{"$f":"IF('Výsledková listina (2)'!D12<>\"\",A12+1,\"\")","v":{"$error":"#VALUE!"}},null,{"$f":"'Startovní listina'!G68","v":"H"},{"$f":"'Startovní listina'!B68","v":84},{"$f":"'Startovní listina'!C68","v":"Podmelová"},{"$f":"'Startovní listina'!D68","v":"Vilma"},{"$f":"'Startovní listina'!E68","v":1962},{"$f":"'Startovní listina'!F68","v":"AC Moravská Slávia Brno"},"02:42:43"]
[{"$f":"IF('Výsledková listina (2)'!D13<>\"\",A13+1,\"\")","v":{"$error":"#VALUE!"}},null,{"$f":"'Startovní listina'!G62","v":"C"},{"$f":"'Startovní listina'!B62","v":76},{"$f":"'Startovní listina'!C62","v":"Prokop"},{"$f":"'Startovní listina'!D62","v":"Ondřej"},{"$f":"'Startovní listina'!E62","v":1962},{"$f":"'Startovní listina'!F62","v":"Čau, Brno"},"02:42:35"]
[{"$f":"IF('Výsledková listina (2)'!D14<>\"\",A14+1,\"\")","v":{"$error":"#VALUE!"}},null,{"$f":"'Startovní listina'!G55","v":"C"},{"$f":"'Startovní listina'!B55","v":64},{"$f":"'Startovní listina'!C55","v":"Ožana"},{"$f":"'Startovní listina'!D55","v":"Václav"},{"$f":"'Startovní listina'!E55","v":1964},{"$f":"'Startovní listina'!F55","v":"Atletic Třebíč"},"02:40:36"]
[{"$f":"IF('Výsledková listina (2)'!D15<>\"\",A15+1,\"\")","v":{"$error":"#VALUE!"}},null,{"$f":"'Startovní listina'!G60","v":"A"},{"$f":"'Startovní listina'!B60","v":73},{"$f":"'Startovní listina'!C60","v":"Hlavsa"},{"$f":"'Startovní listina'!D60","v":"Tomáš"},{"$f":"'Startovní listina'!E60","v":1983},{"$f":"'Startovní listina'!F60","v":"Adamov"},"02:38:54"]
[{"$f":"IF('Výsledková listina (2)'!D16<>\"\",A16+1,\"\")","v":{"$error":"#VALUE!"}},null,{"$f":"'Startovní listina'!G7","v":"C"},{"$f":"'Startovní listina'!B7","v":3},{"$f":"'Startovní listina'!C7","v":"Češner"},{"$f":"'Startovní listina'!D7","v":"Vladimír"},{"$f":"'Startovní listina'!E7","v":1958},{"$f":"'Startovní listina'!F7","v":"Odolená Voda"},"03:07:50"]
[{"$f":"IF('Výsledková listina (2)'!D17<>\"\",A17+1,\"\")","v":{"$error":"#VALUE!"}},null,{"$f":"'Startovní listina'!G63","v":"C"},{"$f":"'Startovní listina'!B63","v":77},{"$f":"'Startovní listina'!C63","v":"Rerych"},{"$f":"'Startovní listina'!D63","v":"Jiří"},{"$f":"'Startovní listina'!E63","v":1962},{"$f":"'Startovní listina'!F63","v":"adidas Boost Team/AC Moravská Slávia Brno"},"02:39:15"]
[{"$f":"IF('Výsledková listina (2)'!D18<>\"\",A18+1,\"\")","v":{"$error":"#VALUE!"}},null,{"$f":"'Startovní listina'!G49","v":"C"},{"$f":"'Startovní listina'!B49","v":58},{"$f":"'Startovní listina'!C49","v":"Šimunek"},{"$f":"'Startovní listina'!D49","v":"Martin"},{"$f":"'Startovní listina'!E49","v":1966},{"$f":"'Startovní listina'!F49","v":"Botanka running, Modřice"},"02:13:13"]
[{"$f":"IF('Výsledková listina (2)'!D19<>\"\",A19+1,\"\")","v":{"$error":"#VALUE!"}},null,{"$f":"'Startovní listina'!G14","v":"C"},{"$f":"'Startovní listina'!B14","v":10},{"$f":"'Startovní listina'!C14","v":"Bolek"},{"$f":"'Startovní listina'!D14","v":"Rostislav"},{"$f":"'Startovní listina'!E14","v":1965},{"$f":"'Startovní listina'!F14","v":"Insportline Ostrava"},"02:32:37"]
[{"$f":"IF('Výsledková listina (2)'!D20<>\"\",A20+1,\"\")","v":{"$error":"#VALUE!"}},null,{"$f":"'Startovní listina'!G42","v":"A"},{"$f":"'Startovní listina'!B42","v":46},{"$f":"'Startovní listina'!C42","v":"Vágner"},{"$f":"'Startovní listina'!D42","v":"Vojtěch"},{"$f":"'Startovní listina'!E42","v":1999},{"$f":"'Startovní listina'!F42","v":"Brno"},"02:49:46"]
[{"$f":"IF('Výsledková listina (2)'!D22<>\"\",A21+1,\"\")","v":{"$error":"#VALUE!"}},null,{"$f":"'Startovní listina'!G79","v":"B"},{"$f":"'Startovní listina'!B79","v":96},{"$f":"'Startovní listina'!C79","v":"Konečný"},{"$f":"'Startovní listina'!D79","v":"Jaroslav"},{"$f":"'Startovní listina'!E79","v":1969},{"$f":"'Startovní listina'!F79","v":"Essens Popůvky"},"02:13:29"]
[{"$f":"IF('Výsledková listina (2)'!D21<>\"\",A22+1,\"\")","v":{"$error":"#VALUE!"}},null,{"$f":"'Startovní listina'!G15","v":"B"},{"$f":"'Startovní listina'!B15","v":11},{"$f":"'Startovní listina'!C15","v":"Kopečný"},{"$f":"'Startovní listina'!D15","v":"Dušan"},{"$f":"'Startovní listina'!E15","v":1973},{"$f":"'Startovní listina'!F15","v":"AK Drnovice"},"02:01:16"]
[{"$f":"IF('Výsledková listina (2)'!D23<>\"\",A23+1,\"\")","v":{"$error":"#VALUE!"}},null,{"$f":"'Startovní listina'!G91","v":""},{"$f":"'Startovní listina'!B91","v":""},{"$f":"'Startovní listina'!C91","v":""},{"$f":"'Startovní listina'!D91","v":""},{"$f":"'Startovní listina'!E91","v":""},{"$f":"'Startovní listina'!F91","v":""},"02:30:31"]
[{"$f":"IF('Výsledková listina (2)'!D24<>\"\",A24+1,\"\")","v":""},null,{"$f":"'Startovní listina'!G74","v":"A"},{"$f":"'Startovní listina'!B74","v":91},{"$f":"'Startovní listina'!C74","v":"Hakl"},{"$f":"'Startovní listina'!D74","v":"Martin"},{"$f":"'Startovní listina'!E74","v":1987},{"$f":"'Startovní listina'!F74","v":"Running With Those That Can't"},"02:11:00"]
[{"$f":"IF('Výsledková listina (2)'!D25<>\"\",A25+1,\"\")","v":{"$error":"#VALUE!"}},null,{"$f":"'Startovní listina'!G44","v":"A"},{"$f":"'Startovní listina'!B44","v":48},{"$f":"'Startovní listina'!C44","v":"Příhoda"},{"$f":"'Startovní listina'!D44","v":"Jan"},{"$f":"'Startovní listina'!E44","v":1983},{"$f":"'Startovní listina'!F44","v":"Ždánice"},"03:10:37"]
[{"$f":"IF('Výsledková listina (2)'!D26<>\"\",A26+1,\"\")","v":{"$error":"#VALUE!"}},null,{"$f":"'Startovní listina'!G84","v":"A"},{"$f":"'Startovní listina'!B84","v":101},{"$f":"'Startovní listina'!C84","v":"Jeneš"},{"$f":"'Startovní listina'!D84","v":"Kamil"},{"$f":"'Startovní listina'!E84","v":1984},{"$f":"'Startovní listina'!F84","v":"3KJRUN"},"02:28:22"]
[{"$f":"IF('Výsledková listina (2)'!D27<>\"\",A27+1,\"\")","v":{"$error":"#VALUE!"}},null,{"$f":"'Startovní listina'!G87","v":""},{"$f":"'Startovní listina'!B87","v":""},{"$f":"'Startovní listina'!C87","v":""},{"$f":"'Startovní listina'!D87","v":""},{"$f":"'Startovní listina'!E87","v":""},{"$f":"'Startovní listina'!F87","v":""},"02:29:21"]
[{"$f":"IF('Výsledková listina (2)'!D28<>\"\",A28+1,\"\")","v":""},null,{"$f":"'Startovní listina'!G75","v":"C"},{"$f":"'Startovní listina'!B75","v":92},{"$f":"'Startovní listina'!C75","v":"Novotný"},{"$f":"'Startovní listina'!D75","v":"Petr"},{"$f":"'Startovní listina'!E75","v":1965},{"$f":"'Startovní listina'!F75","v":"Kuřim"},"03:01:37"]
[{"$f":"IF('Výsledková listina (2)'!D29<>\"\",A29+1,\"\")","v":{"$error":"#VALUE!"}},null,{"$f":"'Startovní listina'!G18","v":"E"},{"$f":"'Startovní listina'!B18","v":14},{"$f":"'Startovní listina'!C18","v":"Holý"},{"$f":"'Startovní listina'!D18","v":"Josef"},{"$f":"'Startovní listina'!E18","v":1941},{"$f":"'Startovní listina'!F18","v":"AC Moravská Slávia Brno"}]
[{"$f":"IF('Výsledková listina (2)'!D30<>\"\",A30+1,\"\")","v":{"$error":"#VALUE!"}},null,{"$f":"'Startovní listina'!G41","v":"A"},{"$f":"'Startovní listina'!B41","v":45},{"$f":"'Startovní listina'!C41","v":"Misař"},{"$f":"'Startovní listina'!D41","v":"Ondřej"},{"$f":"'Startovní listina'!E41","v":2000},{"$f":"'Startovní listina'!F41","v":"Brno"},"02:16:46"]
[{"$f":"IF('Výsledková listina (2)'!D31<>\"\",A31+1,\"\")","v":{"$error":"#VALUE!"}},null,{"$f":"'Startovní listina'!G23","v":"C"},{"$f":"'Startovní listina'!B23","v":22},{"$f":"'Startovní listina'!C23","v":"Provazník"},{"$f":"'Startovní listina'!D23","v":"Milan"},{"$f":"'Startovní listina'!E23","v":1966},{"$f":"'Startovní listina'!F23","v":"Atletika Polička"}]
[{"$f":"IF('Výsledková listina (2)'!D32<>\"\",A32+1,\"\")","v":{"$error":"#VALUE!"}},null,{"$f":"'Startovní listina'!G57","v":"A"},{"$f":"'Startovní listina'!B57","v":69},{"$f":"'Startovní listina'!C57","v":"Brabenec"},{"$f":"'Startovní listina'!D57","v":"Aleš"},{"$f":"'Startovní listina'!E57","v":1987},{"$f":"'Startovní listina'!F57","v":"Žďár nad Sázavou"},"02:42:39"]
[{"$f":"IF('Výsledková listina (2)'!D33<>\"\",A33+1,\"\")","v":{"$error":"#VALUE!"}},null,{"$f":"'Startovní listina'!G40","v":"A"},{"$f":"'Startovní listina'!B40","v":44},{"$f":"'Startovní listina'!C40","v":"Dubský"},{"$f":"'Startovní listina'!D40","v":"Roman"},{"$f":"'Startovní listina'!E40","v":1978},{"$f":"'Startovní listina'!F40","v":"Přibyslav"},"02:10:10"]
[{"$f":"IF('Výsledková listina (2)'!D34<>\"\",A34+1,\"\")","v":{"$error":"#VALUE!"}},null,{"$f":"'Startovní listina'!G9","v":"F"},{"$f":"'Startovní listina'!B9","v":5},{"$f":"'Startovní listina'!C9","v":"Železná"},{"$f":"'Startovní listina'!D9","v":"Lada"},{"$f":"'Startovní listina'!E9","v":1989},{"$f":"'Startovní listina'!F9","v":"Brno"},"02:05:55"]
[{"$f":"IF('Výsledková listina (2)'!D35<>\"\",A35+1,\"\")","v":{"$error":"#VALUE!"}},null,{"$f":"'Startovní listina'!G77","v":"B"},{"$f":"'Startovní listina'!B77","v":94},{"$f":"'Startovní listina'!C77","v":"Benc"},{"$f":"'Startovní listina'!D77","v":"Karel"},{"$f":"'Startovní listina'!E77","v":1975},{"$f":"'Startovní listina'!F77","v":"Pivonice"}]
[{"$f":"IF('Výsledková listina (2)'!D36<>\"\",A36+1,\"\")","v":{"$error":"#VALUE!"}},null,{"$f":"'Startovní listina'!G81","v":"G"},{"$f":"'Startovní listina'!B81","v":98},{"$f":"'Startovní listina'!C81","v":"Tonarová"},{"$f":"'Startovní listina'!D81","v":"Miroslava"},{"$f":"'Startovní listina'!E81","v":1976},{"$f":"'Startovní listina'!F81","v":"Bory"},"03:24:59"]
[{"$f":"IF('Výsledková listina (2)'!D37<>\"\",A37+1,\"\")","v":{"$error":"#VALUE!"}},null,{"$f":"'Startovní listina'!G54","v":"F"},{"$f":"'Startovní listina'!B54","v":63},{"$f":"'Startovní listina'!C54","v":"Rokosová"},{"$f":"'Startovní listina'!D54","v":"Ivana"},{"$f":"'Startovní listina'!E54","v":1982},{"$f":"'Startovní listina'!F54","v":"Polička"},"02:37:38"]
[{"$f":"IF('Výsledková listina (2)'!D38<>\"\",A38+1,\"\")","v":{"$error":"#VALUE!"}},null,{"$f":"'Startovní listina'!G94","v":""},{"$f":"'Startovní listina'!B94","v":""},{"$f":"'Startovní listina'!C94","v":""},{"$f":"'Startovní listina'!D94","v":""},{"$f":"'Startovní listina'!E94","v":""},{"$f":"'Startovní listina'!F94","v":""},"03:13:50"]
[{"$f":"IF('Výsledková listina (2)'!D39<>\"\",A39+1,\"\")","v":""},null,{"$f":"'Startovní listina'!G20","v":"H"},{"$f":"'Startovní listina'!B20","v":18},{"$f":"'Startovní listina'!C20","v":"Krátká"},{"$f":"'Startovní listina'!D20","v":"Anna"},{"$f":"'Startovní listina'!E20","v":1969},{"$f":"'Startovní listina'!F20","v":"SKP Hvězda Pardubice"},"02:43:21"]
[{"$f":"IF('Výsledková listina (2)'!D40<>\"\",A40+1,\"\")","v":{"$error":"#VALUE!"}},null,{"$f":"'Startovní listina'!G19","v":"D"},{"$f":"'Startovní listina'!B19","v":17},{"$f":"'Startovní listina'!C19","v":"Zejda"},{"$f":"'Startovní listina'!D19","v":"Ivo"},{"$f":"'Startovní listina'!E19","v":1956},{"$f":"'Startovní listina'!F19","v":"AC Moravská Slávia Brno"},"03:01:04"]
[{"$f":"IF('Výsledková listina (2)'!D41<>\"\",A41+1,\"\")","v":{"$error":"#VALUE!"}},null,{"$f":"'Startovní listina'!G69","v":"A"},{"$f":"'Startovní listina'!B69","v":85},{"$f":"'Startovní listina'!C69","v":"Řezníček"},{"$f":"'Startovní listina'!D69","v":"Roman"},{"$f":"'Startovní listina'!E69","v":1977},{"$f":"'Startovní listina'!F69","v":"Žďár nad Sázavou"},"DNF"]
[{"$f":"IF('Výsledková listina (2)'!D42<>\"\",A42+1,\"\")","v":{"$error":"#VALUE!"}},null,{"$f":"'Startovní listina'!G38","v":"C"},{"$f":"'Startovní listina'!B38","v":41},{"$f":"'Startovní listina'!C38","v":"Barták"},{"$f":"'Startovní listina'!D38","v":"Ronald"},{"$f":"'Startovní listina'!E38","v":1965},{"$f":"'Startovní listina'!F38","v":"Kuřim"},"02:26:38"]
[{"$f":"IF('Výsledková listina (2)'!D43<>\"\",A43+1,\"\")","v":{"$error":"#VALUE!"}},null,{"$f":"'Startovní listina'!G80","v":"A"},{"$f":"'Startovní listina'!B80","v":97},{"$f":"'Startovní listina'!C80","v":"Koutský"},{"$f":"'Startovní listina'!D80","v":"Tomáš"},{"$f":"'Startovní listina'!E80","v":1987},{"$f":"'Startovní listina'!F80","v":"Ledová stěna Vír"},"02:45:32"]
[{"$f":"IF('Výsledková listina (2)'!D44<>\"\",A44+1,\"\")","v":{"$error":"#VALUE!"}},null,{"$f":"'Startovní listina'!G53","v":"D"},{"$f":"'Startovní listina'!B53","v":62},{"$f":"'Startovní listina'!C53","v":"Nekuža"},{"$f":"'Startovní listina'!D53","v":"Jiří"},{"$f":"'Startovní listina'!E53","v":1951},{"$f":"'Startovní listina'!F53","v":"Runners Zbýšov"},"02:46:25"]
[{"$f":"IF('Výsledková listina (2)'!D45<>\"\",A45+1,\"\")","v":{"$error":"#VALUE!"}},null,{"$f":"'Startovní listina'!G11","v":"F"},{"$f":"'Startovní listina'!B11","v":7},{"$f":"'Startovní listina'!C11","v":"Forýtková"},{"$f":"'Startovní listina'!D11","v":"Žaneta"},{"$f":"'Startovní listina'!E11","v":1984},{"$f":"'Startovní listina'!F11","v":"Praha"},"02:45:37"]
[{"$f":"IF('Výsledková listina (2)'!D46<>\"\",A46+1,\"\")","v":{"$error":"#VALUE!"}},null,{"$f":"'Startovní listina'!G89","v":""},{"$f":"'Startovní listina'!B89","v":""},{"$f":"'Startovní listina'!C89","v":""},{"$f":"'Startovní listina'!D89","v":""},{"$f":"'Startovní listina'!E89","v":""},{"$f":"'Startovní listina'!F89","v":""},"02:23:07"]
[{"$f":"IF('Výsledková listina (2)'!D47<>\"\",A47+1,\"\")","v":""},null,{"$f":"'Startovní listina'!G93","v":""},{"$f":"'Startovní listina'!B93","v":""},{"$f":"'Startovní listina'!C93","v":""},{"$f":"'Startovní listina'!D93","v":""},{"$f":"'Startovní listina'!E93","v":""},{"$f":"'Startovní listina'!F93","v":""}]
[{"$f":"IF('Výsledková listina (2)'!D48<>\"\",A48+1,\"\")","v":""},null,{"$f":"'Startovní listina'!G78","v":"C"},{"$f":"'Startovní listina'!B78","v":95},{"$f":"'Startovní listina'!C78","v":"Zourek"},{"$f":"'Startovní listina'!D78","v":"Karel"},{"$f":"'Startovní listina'!E78","v":1959},{"$f":"'Startovní listina'!F78","v":"Bedřichovice"},"02:49:04"]
[{"$f":"IF('Výsledková listina (2)'!D49<>\"\",A49+1,\"\")","v":{"$error":"#VALUE!"}},null,{"$f":"'Startovní listina'!G35","v":"A"},{"$f":"'Startovní listina'!B35","v":37},{"$f":"'Startovní listina'!C35","v":"Hrdina"},{"$f":"'Startovní listina'!D35","v":"Tomáš"},{"$f":"'Startovní listina'!E35","v":1979},{"$f":"'Startovní listina'!F35","v":"Běžecký klub Brno"},"02:31:40"]
[{"$f":"IF('Výsledková listina (2)'!D50<>\"\",A50+1,\"\")","v":{"$error":"#VALUE!"}},null,{"$f":"'Startovní listina'!G36","v":"F"},{"$f":"'Startovní listina'!B36","v":38},{"$f":"'Startovní listina'!C36","v":"Pešáková"},{"$f":"'Startovní listina'!D36","v":"Mirka"},{"$f":"'Startovní listina'!E36","v":1985},{"$f":"'Startovní listina'!F36","v":"AC Racers Tetčice"}]
[{"$f":"IF('Výsledková listina (2)'!D51<>\"\",A51+1,\"\")","v":{"$error":"#VALUE!"}},null,{"$f":"'Startovní listina'!G29","v":"H"},{"$f":"'Startovní listina'!B29","v":30},{"$f":"'Startovní listina'!C29","v":"Martincová"},{"$f":"'Startovní listina'!D29","v":"Ivana"},{"$f":"'Startovní listina'!E29","v":1963},{"$f":"'Startovní listina'!F29","v":"AC Moravská Slávia Brno"},"02:19:07"]
[{"$f":"IF('Výsledková listina (2)'!D52<>\"\",A52+1,\"\")","v":{"$error":"#VALUE!"}},null,{"$f":"'Startovní listina'!G86","v":""},{"$f":"'Startovní listina'!B86","v":""},{"$f":"'Startovní listina'!C86","v":""},{"$f":"'Startovní listina'!D86","v":""},{"$f":"'Startovní listina'!E86","v":""},{"$f":"'Startovní listina'!F86","v":""},"02:21:00"]
[{"$f":"IF('Výsledková listina (2)'!D53<>\"\",A53+1,\"\")","v":""},null,{"$f":"'Startovní listina'!G17","v":"H"},{"$f":"'Startovní listina'!B17","v":13},{"$f":"'Startovní listina'!C17","v":"Tesařová"},{"$f":"'Startovní listina'!D17","v":"Marie"},{"$f":"'Startovní listina'!E17","v":1954},{"$f":"'Startovní listina'!F17","v":"Křižanov"},"03:06:22"]
[{"$f":"IF('Výsledková listina (2)'!D54<>\"\",A54+1,\"\")","v":{"$error":"#VALUE!"}},null,{"$f":"'Startovní listina'!G37","v":"B"},{"$f":"'Startovní listina'!B37","v":40},{"$f":"'Startovní listina'!C37","v":"Brázda"},{"$f":"'Startovní listina'!D37","v":"Richard"},{"$f":"'Startovní listina'!E37","v":1975},{"$f":"'Startovní listina'!F37","v":"AC NOTARBRAZDA.CZ"},"02:32:28"]
[{"$f":"IF('Výsledková listina (2)'!D55<>\"\",A55+1,\"\")","v":{"$error":"#VALUE!"}},null,{"$f":"'Startovní listina'!G32","v":"F"},{"$f":"'Startovní listina'!B32","v":34},{"$f":"'Startovní listina'!C32","v":"Dýrová Macháčková"},{"$f":"'Startovní listina'!D32","v":"Šárka"},{"$f":"'Startovní listina'!E32","v":1983},{"$f":"'Startovní listina'!F32","v":"AK Olymp Brno"},"02:59:30"]
[{"$f":"IF('Výsledková listina (2)'!D56<>\"\",A56+1,\"\")","v":{"$error":"#VALUE!"}},null,{"$f":"'Startovní listina'!G58","v":"A"},{"$f":"'Startovní listina'!B58","v":70},{"$f":"'Startovní listina'!C58","v":"Mička"},{"$f":"'Startovní listina'!D58","v":"Michal"},{"$f":"'Startovní listina'!E58","v":1987},{"$f":"'Startovní listina'!F58","v":"Žďár nad Sázavou"},"02:07:54"]
[{"$f":"IF('Výsledková listina (2)'!D57<>\"\",A57+1,\"\")","v":{"$error":"#VALUE!"}},null,{"$f":"'Startovní listina'!G26","v":"D"},{"$f":"'Startovní listina'!B26","v":26},{"$f":"'Startovní listina'!C26","v":"Kohoutek"},{"$f":"'Startovní listina'!D26","v":"Jaromír"},{"$f":"'Startovní listina'!E26","v":1955},{"$f":"'Startovní listina'!F26","v":"watter and snow ski club Brno"},"03:06:38"]
[{"$f":"IF('Výsledková listina (2)'!D58<>\"\",A58+1,\"\")","v":{"$error":"#VALUE!"}},null,{"$f":"'Startovní listina'!G52","v":"A"},{"$f":"'Startovní listina'!B52","v":61},{"$f":"'Startovní listina'!C52","v":"Nováček"},{"$f":"'Startovní listina'!D52","v":"Tomáš"},{"$f":"'Startovní listina'!E52","v":1983},{"$f":"'Startovní listina'!F52","v":"Atletic Třebíč"},"03:14:48"]
[{"$f":"IF('Výsledková listina (2)'!D59<>\"\",A59+1,\"\")","v":{"$error":"#VALUE!"}},null,{"$f":"'Startovní listina'!G66","v":"B"},{"$f":"'Startovní listina'!B66","v":82},{"$f":"'Startovní listina'!C66","v":"Šorf"},{"$f":"'Startovní listina'!D66","v":"Ivo"},{"$f":"'Startovní listina'!E66","v":1975},{"$f":"'Startovní listina'!F66","v":"ABND Racing Team Bystřice nad Pernštejnem"},"02:46:48"]
[{"$f":"IF('Výsledková listina (2)'!D60<>\"\",A60+1,\"\")","v":{"$error":"#VALUE!"}},null,{"$f":"'Startovní listina'!G31","v":"B"},{"$f":"'Startovní listina'!B31","v":33},{"$f":"'Startovní listina'!C31","v":"Dvořáček"},{"$f":"'Startovní listina'!D31","v":"Jiří"},{"$f":"'Startovní listina'!E31","v":1968},{"$f":"'Startovní listina'!F31","v":"Elite sport team"},"02:38:44"]
[{"$f":"IF('Výsledková listina (2)'!D61<>\"\",A61+1,\"\")","v":{"$error":"#VALUE!"}},null,{"$f":"'Startovní listina'!G92","v":""},{"$f":"'Startovní listina'!B92","v":""},{"$f":"'Startovní listina'!C92","v":""},{"$f":"'Startovní listina'!D92","v":""},{"$f":"'Startovní listina'!E92","v":""},{"$f":"'Startovní listina'!F92","v":""},"03:04:27"]
[{"$f":"IF('Výsledková listina (2)'!D62<>\"\",A62+1,\"\")","v":""},null,{"$f":"'Startovní listina'!G45","v":"A"},{"$f":"'Startovní listina'!B45","v":49},{"$f":"'Startovní listina'!C45","v":"Kocur"},{"$f":"'Startovní listina'!D45","v":"Lukáš"},{"$f":"'Startovní listina'!E45","v":1977},{"$f":"'Startovní listina'!F45","v":"VHS Brno"},"03:21:11"]
[{"$f":"IF('Výsledková listina (2)'!D63<>\"\",A63+1,\"\")","v":{"$error":"#VALUE!"}},null,{"$f":"'Startovní listina'!G34","v":"D"},{"$f":"'Startovní listina'!B34","v":36},{"$f":"'Startovní listina'!C34","v":"Němec"},{"$f":"'Startovní listina'!D34","v":"Jaroslav"},{"$f":"'Startovní listina'!E34","v":1952},{"$f":"'Startovní listina'!F34","v":"Blansko"},"03:00:59"]
[{"$f":"IF('Výsledková listina (2)'!D64<>\"\",A64+1,\"\")","v":{"$error":"#VALUE!"}},null,{"$f":"'Startovní listina'!G8","v":"G"},{"$f":"'Startovní listina'!B8","v":4},{"$f":"'Startovní listina'!C8","v":"Komárková"},{"$f":"'Startovní listina'!D8","v":"Zdeňka"},{"$f":"'Startovní listina'!E8","v":1974},{"$f":"'Startovní listina'!F8","v":"SDH Bolešín"},"03:30:08"]
[{"$f":"IF('Výsledková listina (2)'!D65<>\"\",A65+1,\"\")","v":{"$error":"#VALUE!"}},null,{"$f":"'Startovní listina'!G73","v":"A"},{"$f":"'Startovní listina'!B73","v":90},{"$f":"'Startovní listina'!C73","v":"Hakl"},{"$f":"'Startovní listina'!D73","v":"Zdeněk"},{"$f":"'Startovní listina'!E73","v":1982},{"$f":"'Startovní listina'!F73","v":"SK Tri Cyklochlubna"},"03:01:32"]
[{"$f":"IF('Výsledková listina (2)'!D66<>\"\",A66+1,\"\")","v":{"$error":"#VALUE!"}},null,{"$f":"'Startovní listina'!G27","v":"D"},{"$f":"'Startovní listina'!B27","v":27},{"$f":"'Startovní listina'!C27","v":"Kubík"},{"$f":"'Startovní listina'!D27","v":"Jaromír"},{"$f":"'Startovní listina'!E27","v":1955},{"$f":"'Startovní listina'!F27","v":"Blansko"},"02:05:07"]
[{"$f":"IF('Výsledková listina (2)'!D67<>\"\",A67+1,\"\")","v":{"$error":"#VALUE!"}},null,{"$f":"'Startovní listina'!G70","v":"D"},{"$f":"'Startovní listina'!B70","v":86},{"$f":"'Startovní listina'!C70","v":"Šperka"},{"$f":"'Startovní listina'!D70","v":"Oldřich"},{"$f":"'Startovní listina'!E70","v":1956},{"$f":"'Startovní listina'!F70","v":"Jedovnice"},"02:57:35"]
[{"$f":"IF('Výsledková listina (2)'!D68<>\"\",A68+1,\"\")","v":{"$error":"#VALUE!"}},null,{"$f":"'Startovní listina'!G51","v":"D"},{"$f":"'Startovní listina'!B51","v":60},{"$f":"'Startovní listina'!C51","v":"Suchý"},{"$f":"'Startovní listina'!D51","v":"Karel"},{"$f":"'Startovní listina'!E51","v":1956},{"$f":"'Startovní listina'!F51","v":"Atletic Třebíč"},"02:19:36"]
[{"$f":"IF('Výsledková listina (2)'!D69<>\"\",A69+1,\"\")","v":{"$error":"#VALUE!"}},null,{"$f":"'Startovní listina'!G98","v":""},{"$f":"'Startovní listina'!B98","v":""},{"$f":"'Startovní listina'!C98","v":""},{"$f":"'Startovní listina'!D98","v":""},{"$f":"'Startovní listina'!E98","v":""},{"$f":"'Startovní listina'!F98","v":""},"01:54:34"]
[{"$f":"IF('Výsledková listina (2)'!D70<>\"\",A70+1,\"\")","v":""},null,{"$f":"'Startovní listina'!G50","v":"B"},{"$f":"'Startovní listina'!B50","v":59},{"$f":"'Startovní listina'!C50","v":"Dvořák"},{"$f":"'Startovní listina'!D50","v":"Vojtěch"},{"$f":"'Startovní listina'!E50","v":1974},{"$f":"'Startovní listina'!F50","v":"Brno"},"02:21:57"]
[{"$f":"IF('Výsledková listina (2)'!D71<>\"\",A71+1,\"\")","v":{"$error":"#VALUE!"}},null,{"$f":"'Startovní listina'!G21","v":"C"},{"$f":"'Startovní listina'!B21","v":19},{"$f":"'Startovní listina'!C21","v":"Krátký"},{"$f":"'Startovní listina'!D21","v":"Josef"},{"$f":"'Startovní listina'!E21","v":1965},{"$f":"'Startovní listina'!F21","v":"SKP Hvězda Pardubice"}]
[{"$f":"IF('Výsledková listina (2)'!D72<>\"\",A72+1,\"\")","v":{"$error":"#VALUE!"}},null,{"$f":"'Startovní listina'!G6","v":"A"},{"$f":"'Startovní listina'!B6","v":2},{"$f":"'Startovní listina'!C6","v":"Barvíř"},{"$f":"'Startovní listina'!D6","v":"Jiří"},{"$f":"'Startovní listina'!E6","v":1982},{"$f":"'Startovní listina'!F6","v":"R.I.P. Brno"},"02:40:25"]
[{"$f":"IF('Výsledková listina (2)'!D73<>\"\",A73+1,\"\")","v":{"$error":"#VALUE!"}},null,{"$f":"'Startovní listina'!G48","v":"A"},{"$f":"'Startovní listina'!B48","v":56},{"$f":"'Startovní listina'!C48","v":"Srnec"},{"$f":"'Startovní listina'!D48","v":"Lukáš"},{"$f":"'Startovní listina'!E48","v":1990},{"$f":"'Startovní listina'!F48","v":"Židlochovice"},"02:21:35"]
[{"$f":"IF('Výsledková listina (2)'!D74<>\"\",A74+1,\"\")","v":{"$error":"#VALUE!"}},null,{"$f":"'Startovní listina'!G97","v":""},{"$f":"'Startovní listina'!B97","v":""},{"$f":"'Startovní listina'!C97","v":""},{"$f":"'Startovní listina'!D97","v":""},{"$f":"'Startovní listina'!E97","v":""},{"$f":"'Startovní listina'!F97","v":""},"03:14:54"]
[{"$f":"IF('Výsledková listina (2)'!D75<>\"\",A75+1,\"\")","v":""},null,{"$f":"'Startovní listina'!G22","v":"B"},{"$f":"'Startovní listina'!B22","v":21},{"$f":"'Startovní listina'!C22","v":"Sláma"},{"$f":"'Startovní listina'!D22","v":"Adolf"},{"$f":"'Startovní listina'!E22","v":1970},{"$f":"'Startovní listina'!F22","v":"Žďár nad Sázavou"},"02:25:09"]
[{"$f":"IF('Výsledková listina (2)'!D76<>\"\",A76+1,\"\")","v":{"$error":"#VALUE!"}},null,{"$f":"'Startovní listina'!G82","v":"C"},{"$f":"'Startovní listina'!B82","v":99},{"$f":"'Startovní listina'!C82","v":"Daněk"},{"$f":"'Startovní listina'!D82","v":"Milan"},{"$f":"'Startovní listina'!E82","v":1962},{"$f":"'Startovní listina'!F82","v":"Horizont kola Novák Blansko"},"02:50:59"]
[{"$f":"IF('Výsledková listina (2)'!D77<>\"\",A77+1,\"\")","v":{"$error":"#VALUE!"}},null,{"$f":"'Startovní listina'!G96","v":""},{"$f":"'Startovní listina'!B96","v":""},{"$f":"'Startovní listina'!C96","v":""},{"$f":"'Startovní listina'!D96","v":""},{"$f":"'Startovní listina'!E96","v":""},{"$f":"'Startovní listina'!F96","v":""},"03:12:26"]
[{"$f":"IF('Výsledková listina (2)'!D78<>\"\",A78+1,\"\")","v":""},null,{"$f":"'Startovní listina'!G30","v":"A"},{"$f":"'Startovní listina'!B30","v":31},{"$f":"'Startovní listina'!C30","v":"Kohut"},{"$f":"'Startovní listina'!D30","v":"Jan"},{"$f":"'Startovní listina'!E30","v":1985},{"$f":"'Startovní listina'!F30","v":"Elite Sport Team Blansko"},"02:37:53"]
[{"$f":"IF('Výsledková listina (2)'!D79<>\"\",A79+1,\"\")","v":{"$error":"#VALUE!"}},null,{"$f":"'Startovní listina'!G64","v":"C"},{"$f":"'Startovní listina'!B64","v":79},{"$f":"'Startovní listina'!C64","v":"Nosek"},{"$f":"'Startovní listina'!D64","v":"Pavel"},{"$f":"'Startovní listina'!E64","v":1965},{"$f":"'Startovní listina'!F64","v":"ASK Slavkov o.s."},"03:18:47"]
[{"$f":"IF('Výsledková listina (2)'!D80<>\"\",A80+1,\"\")","v":{"$error":"#VALUE!"}},null,{"$f":"'Startovní listina'!G39","v":"B"},{"$f":"'Startovní listina'!B39","v":42},{"$f":"'Startovní listina'!C39","v":"Alman"},{"$f":"'Startovní listina'!D39","v":"Dušan"},{"$f":"'Startovní listina'!E39","v":1967},{"$f":"'Startovní listina'!F39","v":"Babice nad Svitavou"},"02:07:35"]
[{"$f":"IF('Výsledková listina (2)'!D81<>\"\",A81+1,\"\")","v":{"$error":"#VALUE!"}},null,{"$f":"'Startovní listina'!G56","v":"C"},{"$f":"'Startovní listina'!B56","v":67},{"$f":"'Startovní listina'!C56","v":"Brabenec"},{"$f":"'Startovní listina'!D56","v":"Miroslav"},{"$f":"'Startovní listina'!E56","v":1959},{"$f":"'Startovní listina'!F56","v":"Žďár nad Sázavou"},"02:24:19"]
[{"$f":"IF('Výsledková listina (2)'!D82<>\"\",A82+1,\"\")","v":{"$error":"#VALUE!"}},null,{"$f":"'Startovní listina'!G83","v":"A"},{"$f":"'Startovní listina'!B83","v":100},{"$f":"'Startovní listina'!C83","v":"Šacl"},{"$f":"'Startovní listina'!D83","v":"Pavel"},{"$f":"'Startovní listina'!E83","v":1981},{"$f":"'Startovní listina'!F83","v":"Dolní Rožínka"},"02:31:15"]
[{"$f":"IF('Výsledková listina (2)'!D83<>\"\",A83+1,\"\")","v":{"$error":"#VALUE!"}},null,{"$f":"'Startovní listina'!G61","v":"A"},{"$f":"'Startovní listina'!B61","v":75},{"$f":"'Startovní listina'!C61","v":"Kalich"},{"$f":"'Startovní listina'!D61","v":"Radim"},{"$f":"'Startovní listina'!E61","v":1985},{"$f":"'Startovní listina'!F61","v":"Odranec"},"02:27:55"]
[{"$f":"IF('Výsledková listina (2)'!D84<>\"\",A84+1,\"\")","v":{"$error":"#VALUE!"}},null,{"$f":"'Startovní listina'!G95","v":""},{"$f":"'Startovní listina'!B95","v":""},{"$f":"'Startovní listina'!C95","v":""},{"$f":"'Startovní listina'!D95","v":""},{"$f":"'Startovní listina'!E95","v":""},{"$f":"'Startovní listina'!F95","v":""},"02:34:44"]
[{"$f":"IF('Výsledková listina (2)'!D85<>\"\",A85+1,\"\")","v":""},null,{"$f":"'Startovní listina'!G65","v":"B"},{"$f":"'Startovní listina'!B65","v":80},{"$f":"'Startovní listina'!C65","v":"Petrů"},{"$f":"'Startovní listina'!D65","v":"Roman"},{"$f":"'Startovní listina'!E65","v":1976},{"$f":"'Startovní listina'!F65","v":"Drnovice"},"02:58:55"]
[{"$f":"IF('Výsledková listina (2)'!D86<>\"\",A86+1,\"\")","v":{"$error":"#VALUE!"}},null,{"$f":"'Startovní listina'!G43","v":"C"},{"$f":"'Startovní listina'!B43","v":47},{"$f":"'Startovní listina'!C43","v":"Šádek"},{"$f":"'Startovní listina'!D43","v":"Jiří"},{"$f":"'Startovní listina'!E43","v":1959},{"$f":"'Startovní listina'!F43","v":"Lomnice nad Popelkou"},"02:32:49"]
[{"$f":"IF('Výsledková listina (2)'!D87<>\"\",A87+1,\"\")","v":{"$error":"#VALUE!"}},null,{"$f":"'Startovní listina'!G33","v":"B"},{"$f":"'Startovní listina'!B33","v":35},{"$f":"'Startovní listina'!C33","v":"Dušil"},{"$f":"'Startovní listina'!D33","v":"Jaroslav"},{"$f":"'Startovní listina'!E33","v":1970},{"$f":"'Startovní listina'!F33","v":"Běžecký klub Brno"}]
[{"$f":"IF('Výsledková listina (2)'!D88<>\"\",A88+1,\"\")","v":{"$error":"#VALUE!"}},null,{"$f":"'Startovní listina'!G76","v":"B"},{"$f":"'Startovní listina'!B76","v":93},{"$f":"'Startovní listina'!C76","v":"Konečný"},{"$f":"'Startovní listina'!D76","v":"Libor"},{"$f":"'Startovní listina'!E76","v":1971},{"$f":"'Startovní listina'!F76","v":"Kuřim"},"03:18:56"]
[{"$f":"IF('Výsledková listina (2)'!D89<>\"\",A89+1,\"\")","v":{"$error":"#VALUE!"}},null,{"$f":"'Startovní listina'!G12","v":"C"},{"$f":"'Startovní listina'!B12","v":8},{"$f":"'Startovní listina'!C12","v":"Chramosta"},{"$f":"'Startovní listina'!D12","v":"Jaroslav"},{"$f":"'Startovní listina'!E12","v":1966},{"$f":"'Startovní listina'!F12","v":"JABOJA Team Děčín"},"02:05:40"]
[{"$f":"IF('Výsledková listina (2)'!D90<>\"\",A90+1,\"\")","v":{"$error":"#VALUE!"}},null,{"$f":"'Startovní listina'!G24","v":"B"},{"$f":"'Startovní listina'!B24","v":23},{"$f":"'Startovní listina'!C24","v":"Kryštof"},{"$f":"'Startovní listina'!D24","v":"Ondřej"},{"$f":"'Startovní listina'!E24","v":1976},{"$f":"'Startovní listina'!F24","v":"Jiskra Vír"},"02:08:44"]
[{"$f":"IF('Výsledková listina (2)'!D91<>\"\",A91+1,\"\")","v":{"$error":"#VALUE!"}},null,{"$f":"'Startovní listina'!G16","v":"A"},{"$f":"'Startovní listina'!B16","v":12},{"$f":"'Startovní listina'!C16","v":"Koudelka"},{"$f":"'Startovní listina'!D16","v":"Lukáš"},{"$f":"'Startovní listina'!E16","v":1983},{"$f":"'Startovní listina'!F16","v":"AK Drnovice"}]
[{"$f":"IF('Výsledková listina (2)'!D92<>\"\",A92+1,\"\")","v":{"$error":"#VALUE!"}},null,{"$f":"'Startovní listina'!G88","v":""},{"$f":"'Startovní listina'!B88","v":""},{"$f":"'Startovní listina'!C88","v":""},{"$f":"'Startovní listina'!D88","v":""},{"$f":"'Startovní listina'!E88","v":""},{"$f":"'Startovní listina'!F88","v":""},"02:53:55"]
[{"$f":"IF('Výsledková listina (2)'!D93<>\"\",A93+1,\"\")","v":""},null,{"$f":"'Startovní listina'!G90","v":""},{"$f":"'Startovní listina'!B90","v":""},{"$f":"'Startovní listina'!C90","v":""},{"$f":"'Startovní listina'!D90","v":""},{"$f":"'Startovní listina'!E90","v":""},{"$f":"'Startovní listina'!F90","v":""},"02:55:52"]
[{"$f":"IF('Výsledková listina (2)'!D94<>\"\",A94+1,\"\")","v":""},null,{"$f":"'Startovní listina'!G25","v":"H"},{"$f":"'Startovní listina'!B25","v":24},{"$f":"'Startovní listina'!C25","v":"Šedová"},{"$f":"'Startovní listina'!D25","v":"Věra"},{"$f":"'Startovní listina'!E25","v":1964},{"$f":"'Startovní listina'!F25","v":"Atletic Třebíč"},"03:04:10"]
[{"$f":"IF('Výsledková listina (2)'!D95<>\"\",A95+1,\"\")","v":{"$error":"#VALUE!"}},null,{"$f":"'Startovní listina'!G72","v":"B"},{"$f":"'Startovní listina'!B72","v":89},{"$f":"'Startovní listina'!C72","v":"Weis"},{"$f":"'Startovní listina'!D72","v":"Josef"},{"$f":"'Startovní listina'!E72","v":1974},{"$f":"'Startovní listina'!F72","v":"Elite Sport Boskovice"}]
[{"$f":"IF('Výsledková listina (2)'!D96<>\"\",A96+1,\"\")","v":{"$error":"#VALUE!"}},null,{"$f":"'Startovní listina'!G13","v":"D"},{"$f":"'Startovní listina'!B13","v":9},{"$f":"'Startovní listina'!C13","v":"Vytisk"},{"$f":"'Startovní listina'!D13","v":"Alfons"},{"$f":"'Startovní listina'!E13","v":1949},{"$f":"'Startovní listina'!F13","v":"MKS Ostrava"},"02:40:16"]
[{"$f":"IF('Výsledková listina (2)'!D97<>\"\",A97+1,\"\")","v":{"$error":"#VALUE!"}},null,{"$f":"'Startovní listina'!G10","v":"A"},{"$f":"'Startovní listina'!B10","v":6},{"$f":"'Startovní listina'!C10","v":"Forýtek"},{"$f":"'Startovní listina'!D10","v":"Michal"},{"$f":"'Startovní listina'!E10","v":1982},{"$f":"'Startovní listina'!F10","v":"Praha"},"03:00:21"]
[{"$f":"IF('Výsledková listina (2)'!D98<>\"\",A98+1,\"\")","v":{"$error":"#VALUE!"}},null,{"$f":"'Startovní listina'!G99","v":""},{"$f":"'Startovní listina'!B99","v":""},{"$f":"'Startovní listina'!C99","v":""},{"$f":"'Startovní listina'!D99","v":""},{"$f":"'Startovní listina'!E99","v":""},{"$f":"'Startovní listina'!F99","v":""}]
[{"$f":"IF('Výsledková listina (2)'!D99<>\"\",A99+1,\"\")","v":""},null,{"$f":"'Startovní listina'!G100","v":""},{"$f":"'Startovní listina'!B100","v":""},{"$f":"'Startovní listina'!C100","v":""},{"$f":"'Startovní listina'!D100","v":""},{"$f":"'Startovní listina'!E100","v":""},{"$f":"'Startovní listina'!F100","v":""}]
[{"$f":"IF('Výsledková listina (2)'!D100<>\"\",A100+1,\"\")","v":""},null,{"$f":"'Startovní listina'!G101","v":""},{"$f":"'Startovní listina'!B101","v":""},{"$f":"'Startovní listina'!C101","v":""},{"$f":"'Startovní listina'!D101","v":""},{"$f":"'Startovní listina'!E101","v":""},{"$f":"'Startovní listina'!F101","v":""}]
[{"$f":"IF('Výsledková listina (2)'!D101<>\"\",A101+1,\"\")","v":""},null,{"$f":"'Startovní listina'!G102","v":""},{"$f":"'Startovní listina'!B102","v":""},{"$f":"'Startovní listina'!C102","v":""},{"$f":"'Startovní listina'!D102","v":""},{"$f":"'Startovní listina'!E102","v":""},{"$f":"'Startovní listina'!F102","v":""}]
[{"$f":"IF('Výsledková listina (2)'!D102<>\"\",A102+1,\"\")","v":""},null,{"$f":"'Startovní listina'!G103","v":""},{"$f":"'Startovní listina'!B103","v":""},{"$f":"'Startovní listina'!C103","v":""},{"$f":"'Startovní listina'!D103","v":""},{"$f":"'Startovní listina'!E103","v":""},{"$f":"'Startovní listina'!F103","v":""}]